﻿VENDOR,CATEGORY,AMOUNT,PAYMENT_DATE
303 Taxi,Purchased Transportation,"$90,263.80 ",1/5/2023
303 Taxi,Purchased Transportation,"$348,231.41 ",1/12/2023
303 Taxi,Purchased Transportation,"$85,931.42 ",2/9/2023
303 Taxi,Purchased Transportation,"$292,899.26 ",2/10/2023
303 Taxi,Purchased Transportation,"$374,975.70 ",3/9/2023
303 Taxi,Purchased Transportation,"$34,315.11 ",3/17/2023
303 Taxi,Purchased Transportation,"$63,821.22 ",4/7/2023
303 Taxi,Purchased Transportation,"$4,392.30 ",4/13/2023
303 Taxi,Purchased Transportation,"$306,780.18 ",4/20/2023
303 Taxi,Purchased Transportation,"$5,149.01 ",4/27/2023
303 Taxi,Purchased Transportation,"$434,323.67 ",5/25/2023
303 Taxi,Purchased Transportation,"$16,111.87 ",6/29/2023
303 Taxi,Purchased Transportation,"$67,358.78 ",7/6/2023
303 Taxi,Purchased Transportation,"$391,433.20 ",7/13/2023
303 Taxi,Purchased Transportation,"$97,287.47 ",8/11/2023
303 Taxi,Purchased Transportation,"$360,580.91 ",8/25/2023
303 Taxi,Purchased Transportation,"$364,178.80 ",9/7/2023
303 Taxi,Purchased Transportation,"$97,982.38 ",9/8/2023
303 Taxi,Purchased Transportation,"$3,499.47 ",9/28/2023
303 Taxi,Purchased Transportation,"$499,762.65 ",10/5/2023
303 Taxi,Purchased Transportation,"$26,385.44 ",10/26/2023
303 Taxi,Purchased Transportation,"$88,626.06 ",10/31/2023
303 Taxi,Purchased Transportation,"$436,032.20 ",11/9/2023
303 Taxi,Purchased Transportation,"$8,898.26 ",11/16/2023
303 Taxi,Purchased Transportation,"$524,613.46 ",11/24/2023
303 Taxi,Purchased Transportation,"$107,265.05 ",12/21/2023
303 Taxi,Purchased Transportation,"$456,185.19 ",12/29/2023
4imprint,Miscellaneous,"$3,194.96 ",12/7/2023
5 Star Interpreting Chicago LLC,Miscellaneous,$280.00 ,2/23/2023
5 Star Interpreting Chicago LLC,Miscellaneous,$630.00 ,3/9/2023
5 Star Interpreting Chicago LLC,Miscellaneous,$280.00 ,3/30/2023
5 Star Interpreting Chicago LLC,Miscellaneous,$140.00 ,4/13/2023
5 Star Interpreting Chicago LLC,Miscellaneous,$280.00 ,5/18/2023
5 Star Interpreting Chicago LLC,Miscellaneous,$590.00 ,6/8/2023
5 Star Interpreting Chicago LLC,Miscellaneous,$297.50 ,7/6/2023
5 Star Interpreting Chicago LLC,Miscellaneous,$280.00 ,8/10/2023
5 Star Interpreting Chicago LLC,Miscellaneous,$560.00 ,9/7/2023
5 Star Interpreting Chicago LLC,Miscellaneous,$280.00 ,10/12/2023
5 Star Interpreting Chicago LLC,Miscellaneous,"$1,540.00 ",11/22/2023
5167 Taxi Inc,Purchased Transportation,$289.50 ,1/19/2023
5167 Taxi Inc,Purchased Transportation,$206.00 ,1/26/2023
5167 Taxi Inc,Purchased Transportation,$448.50 ,2/9/2023
5167 Taxi Inc,Purchased Transportation,$602.25 ,2/16/2023
5167 Taxi Inc,Purchased Transportation,$387.75 ,3/9/2023
5167 Taxi Inc,Purchased Transportation,$285.00 ,3/16/2023
5167 Taxi Inc,Purchased Transportation,$233.75 ,3/23/2023
5167 Taxi Inc,Purchased Transportation,$447.25 ,4/20/2023
5167 Taxi Inc,Purchased Transportation,$566.00 ,5/18/2023
5167 Taxi Inc,Purchased Transportation,$531.75 ,5/31/2023
5167 Taxi Inc,Purchased Transportation,$686.75 ,7/6/2023
5167 Taxi Inc,Purchased Transportation,$175.50 ,7/27/2023
5167 Taxi Inc,Purchased Transportation,$388.00 ,8/10/2023
5167 Taxi Inc,Purchased Transportation,$184.00 ,8/17/2023
5167 Taxi Inc,Purchased Transportation,$150.00 ,9/8/2023
5167 Taxi Inc,Purchased Transportation,$235.00 ,9/14/2023
5167 Taxi Inc,Purchased Transportation,$782.50 ,10/12/2023
5167 Taxi Inc,Purchased Transportation,"$1,076.75 ",11/30/2023
5167 Taxi Inc,Purchased Transportation,$567.75 ,12/7/2023
5167 Taxi Inc,Purchased Transportation,$727.75 ,12/29/2023
9280-0366 Québec Inc dba Transit,Services,"$5,500.00 ",2/8/2023
9280-0366 Québec Inc dba Transit,Services,"$5,500.00 ",3/13/2023
9280-0366 Québec Inc dba Transit,Services,"$5,500.00 ",4/3/2023
9280-0366 Québec Inc dba Transit,Services,"$11,000.00 ",5/30/2023
A&A Auto Parts Stores Inc,Fuel/Parts Inventory,"$11,470.80 ",1/19/2023
A&A Auto Parts Stores Inc,Fuel/Parts Inventory,$993.48 ,1/31/2023
A&A Auto Parts Stores Inc,Fuel/Parts Inventory,"$1,450.44 ",2/16/2023
A&A Auto Parts Stores Inc,Fuel/Parts Inventory,"$6,126.28 ",4/27/2023
A&A Auto Parts Stores Inc,Fuel/Parts Inventory,"$14,306.48 ",5/11/2023
A&A Auto Parts Stores Inc,Fuel/Parts Inventory,"$1,521.00 ",7/6/2023
A&A Auto Parts Stores Inc,Fuel/Parts Inventory,"$7,159.32 ",8/4/2023
A&A Auto Parts Stores Inc,Fuel/Parts Inventory,"$3,418.80 ",8/10/2023
A&A Auto Parts Stores Inc,Fuel/Parts Inventory,"$3,651.60 ",8/17/2023
A&A Auto Parts Stores Inc,Fuel/Parts Inventory,"$2,562.16 ",9/21/2023
A&A Auto Parts Stores Inc,Fuel/Parts Inventory,"$75,124.32 ",10/31/2023
A&A Auto Parts Stores Inc,Fuel/Parts Inventory,$334.44 ,11/24/2023
A&A Auto Parts Stores Inc,Fuel/Parts Inventory,"$5,082.24 ",12/14/2023
AA1 Taxi Inc,Purchased Transportation,$196.75 ,1/19/2023
AA1 Taxi Inc,Purchased Transportation,$270.25 ,1/26/2023
AA1 Taxi Inc,Purchased Transportation,$101.25 ,1/31/2023
AA1 Taxi Inc,Purchased Transportation,$64.00 ,2/16/2023
AA1 Taxi Inc,Purchased Transportation,$286.75 ,2/28/2023
AA1 Taxi Inc,Purchased Transportation,$183.00 ,3/16/2023
AA1 Taxi Inc,Purchased Transportation,$253.75 ,3/30/2023
AA1 Taxi Inc,Purchased Transportation,$175.75 ,4/27/2023
AA1 Taxi Inc,Purchased Transportation,$258.50 ,5/18/2023
AA1 Taxi Inc,Purchased Transportation,$279.25 ,6/15/2023
AA1 Taxi Inc,Purchased Transportation,$354.50 ,7/6/2023
AA1 Taxi Inc,Purchased Transportation,$74.75 ,7/27/2023
AA1 Taxi Inc,Purchased Transportation,$224.25 ,8/17/2023
AA1 Taxi Inc,Purchased Transportation,$98.25 ,10/12/2023
AA1 Taxi Inc,Purchased Transportation,$903.25 ,10/31/2023
AA1 Taxi Inc,Purchased Transportation,"$1,030.50 ",11/30/2023
AA1 Taxi Inc,Purchased Transportation,$527.75 ,12/7/2023
AA1 Taxi Inc,Purchased Transportation,$747.25 ,12/29/2023
AKA Comp Solutions Inc,Services,"$4,483.85 ",1/31/2023
ALGO LLC,Leases and Rentals,$920.00 ,1/12/2023
ALGO LLC,Leases and Rentals,$920.00 ,2/16/2023
APEX Material Handling Company,Materials and Supplies,$645.23 ,8/2/2023
APEX Material Handling Company,Services,$426.62 ,8/22/2023
ARCO Mechanical Equipment Sales,Services,$340.00 ,1/12/2023
ARCO Mechanical Equipment Sales,Services,$441.00 ,1/19/2023
ARCO Mechanical Equipment Sales,Services,$810.00 ,3/2/2023
ARCO Mechanical Equipment Sales,Services,"$2,432.39 ",3/16/2023
ARCO Mechanical Equipment Sales,Services,$525.00 ,3/30/2023
ARCO Mechanical Equipment Sales,Services,"$2,083.97 ",4/6/2023
ARCO Mechanical Equipment Sales,Services,$350.00 ,4/20/2023
ARCO Mechanical Equipment Sales,Services,"$3,172.50 ",5/25/2023
ARCO Mechanical Equipment Sales,Services,"$11,200.00 ",9/8/2023
ARCO Mechanical Equipment Sales,Services,"$1,913.00 ",9/14/2023
ARCO Mechanical Equipment Sales,Services,"$2,550.00 ",9/28/2023
ARCO Mechanical Equipment Sales,Services,"$4,141.00 ",10/5/2023
ARCO Mechanical Equipment Sales,Services,$913.00 ,10/12/2023
ARCO Mechanical Equipment Sales,Services,"$2,475.00 ",10/31/2023
ARCO Mechanical Equipment Sales,Services,$821.50 ,12/7/2023
ARCO Mechanical Equipment Sales,Services,"$5,745.00 ",12/14/2023
AT&T,Services,$477.58 ,1/5/2023
AT&T,Utilities,"$20,250.32 ",1/5/2023
AT&T,Utilities,$698.58 ,1/12/2023
AT&T,Services,"$5,948.43 ",1/19/2023
AT&T,Utilities,"$9,380.66 ",1/19/2023
AT&T,Services,"$31,245.97 ",1/26/2023
AT&T,Utilities,"$252,863.11 ",1/26/2023
AT&T,Services,"$3,850.99 ",1/31/2023
AT&T,Utilities,$715.53 ,1/31/2023
AT&T,Services,$102.58 ,2/9/2023
AT&T,Utilities,$86.72 ,2/9/2023
AT&T,Services,"$1,500.00 ",2/16/2023
AT&T,Utilities,"$61,634.67 ",2/16/2023
AT&T,Services,"$31,263.36 ",2/23/2023
AT&T,Utilities,"$167,963.74 ",2/23/2023
AT&T,Utilities,"$10,897.35 ",2/28/2023
AT&T,Services,"$4,785.75 ",3/9/2023
AT&T,Utilities,"$236,753.58 ",3/9/2023
AT&T,Services,$567.56 ,3/16/2023
AT&T,Services,"$1,500.00 ",3/23/2023
AT&T,Utilities,"$10,598.29 ",3/23/2023
AT&T,Services,"$32,318.97 ",3/30/2023
AT&T,Utilities,"$21,678.04 ",3/30/2023
AT&T,Services,"$6,099.85 ",4/13/2023
AT&T,Utilities,"$20,366.67 ",4/13/2023
AT&T,Services,"$1,500.00 ",4/20/2023
AT&T,Utilities,"$15,373.85 ",4/20/2023
AT&T,Services,$552.53 ,4/27/2023
AT&T,Services,"$31,954.31 ",5/11/2023
AT&T,Utilities,"$433,773.50 ",5/18/2023
AT&T,Utilities,"$6,489.99 ",5/25/2023
AT&T,Utilities,"$65,641.10 ",5/31/2023
AT&T,Utilities,"$11,846.49 ",6/15/2023
AT&T,Utilities,"$18,366.85 ",6/22/2023
AT&T,Utilities,"$30,332.63 ",6/29/2023
AT&T,Utilities,"$357,530.85 ",7/6/2023
AT&T,Utilities,"$181,343.41 ",7/13/2023
AT&T,Utilities,"$9,885.71 ",7/20/2023
AT&T,Utilities,"$37,435.92 ",7/27/2023
AT&T,Utilities,"$3,959.46 ",8/4/2023
AT&T,Utilities,"$155,164.42 ",8/10/2023
AT&T,Utilities,"$31,034.57 ",8/24/2023
AT&T,Utilities,"$3,464.49 ",8/31/2023
AT&T,Utilities,"$58,441.61 ",9/8/2023
AT&T,Utilities,"$44,513.43 ",9/14/2023
AT&T,Utilities,"$250,944.41 ",9/28/2023
AT&T,Utilities,"$215,973.91 ",10/5/2023
AT&T,Utilities,"$3,194.95 ",10/12/2023
AT&T,Utilities,"$171,092.00 ",10/19/2023
AT&T,Utilities,$94.23 ,10/26/2023
AT&T,Utilities,"$107,942.49 ",10/31/2023
AT&T,Utilities,"$40,367.88 ",11/9/2023
AT&T,Utilities,"$142,391.17 ",11/16/2023
AT&T,Utilities,"$70,144.43 ",11/24/2023
AT&T,Utilities,"$3,813.62 ",11/30/2023
AT&T,Utilities,"$31,931.08 ",12/14/2023
AT&T,Utilities,"$3,094.23 ",12/21/2023
AT&T,Utilities,"$190,082.79 ",12/29/2023
Abaza Trans Inc,Purchased Transportation,$10.50 ,9/8/2023
Abaza Trans Inc,Purchased Transportation,$86.25 ,10/5/2023
Action Fire Equipment Inc,Services,$452.00 ,9/14/2023
Adams & Westlake LTD,Services,"$2,496.57 ",12/21/2023
Advantage Marketing Group Ltd,Services,$555.36 ,1/5/2023
Advantage Marketing Group Ltd,Miscellaneous,$554.71 ,2/9/2023
Advantage Marketing Group Ltd,Miscellaneous,$570.83 ,3/9/2023
Advantage Marketing Group Ltd,Services,$580.92 ,5/18/2023
Advantage Marketing Group Ltd,Services,$574.19 ,6/15/2023
Advantage Marketing Group Ltd,Services,$581.60 ,7/20/2023
Advantage Marketing Group Ltd,Services,$580.10 ,8/10/2023
Advantage Marketing Group Ltd,Services,$575.18 ,9/8/2023
Advantage Marketing Group Ltd,Services,$574.47 ,9/28/2023
Advantage Marketing Group Ltd,Services,$585.02 ,11/9/2023
Advantage Marketing Group Ltd,Services,$589.94 ,11/30/2023
Advantage Technologies Inc,Services,"$2,548.90 ",3/9/2023
Advocate,Services,$570.00 ,4/27/2023
Advocate,Services,"$1,545.00 ",5/4/2023
Advocate,Services,"$51,478.00 ",9/28/2023
Advocate,Services,"$1,145.00 ",10/12/2023
Advocate,Services,$373.00 ,12/7/2023
Advocate,Services,"$25,287.00 ",12/14/2023
Advocate,Services,$234.00 ,12/21/2023
Advocate Health Care Sherman Occ Health,Services,$576.00 ,6/29/2023
Advocate Health Care Sherman Occ Health,Services,"$7,036.00 ",10/5/2023
Advocate Health Care Sherman Occ Health,Services,"$5,116.00 ",10/19/2023
Advocate Health Care Sherman Occ Health,Services,"$3,486.00 ",10/26/2023
Advocate Health Care Sherman Occ Health,Services,"$6,292.00 ",11/2/2023
Advocate Health Care Sherman Occ Health,Services,$598.00 ,11/9/2023
Advocate Health Care Sherman Occ Health,Services,"$19,540.00 ",11/21/2023
African Lion Corp,Purchased Transportation,$809.00 ,11/16/2023
African Lion Corp,Purchased Transportation,"$2,564.00 ",12/21/2023
Ahead Of Our Time Publishing,Miscellaneous,$500.00 ,8/17/2023
Alarm Detection Systems Of Illinois,Services,"$1,589.64 ",1/12/2023
Alarm Detection Systems Of Illinois,Materials and Supplies,$216.63 ,1/19/2023
Alarm Detection Systems Of Illinois,Services,$216.63 ,4/27/2023
Alarm Detection Systems Of Illinois,Services,$698.82 ,7/13/2023
Alarm Detection Systems Of Illinois,Services,"$1,116.63 ",8/4/2023
Alarm Detection Systems Of Illinois,Services,$75.00 ,9/28/2023
Alarm Detection Systems Of Illinois,Services,$900.00 ,10/5/2023
Alarm Detection Systems Of Illinois,Services,$698.82 ,11/9/2023
Alarm Detection Systems Of Illinois,Services,$216.63 ,12/7/2023
All City Environmental Services Inc,Services,"$1,570.00 ",1/31/2023
All City Environmental Services Inc,Services,"$1,655.00 ",2/9/2023
All City Environmental Services Inc,Services,"$4,595.00 ",2/16/2023
All City Environmental Services Inc,Services,"$2,392.50 ",2/23/2023
All City Environmental Services Inc,Services,"$1,202.50 ",3/23/2023
All City Environmental Services Inc,Services,"$1,518.00 ",4/27/2023
All City Environmental Services Inc,Services,"$4,220.50 ",5/25/2023
All City Environmental Services Inc,Services,"$4,746.25 ",6/8/2023
All City Environmental Services Inc,Services,"$5,796.00 ",6/29/2023
All City Environmental Services Inc,Services,"$4,402.00 ",8/4/2023
All City Environmental Services Inc,Services,$382.50 ,8/10/2023
All City Environmental Services Inc,Services,"$1,171.00 ",8/17/2023
All City Environmental Services Inc,Services,"$5,079.50 ",10/5/2023
All City Environmental Services Inc,Services,"$2,772.50 ",10/19/2023
All Four Seasons Inc,Purchased Transportation,$761.25 ,3/23/2023
All Four Seasons Inc,Purchased Transportation,$220.50 ,3/30/2023
All Four Seasons Inc,Purchased Transportation,$80.25 ,6/15/2023
All Four Seasons Inc,Purchased Transportation,$98.50 ,6/22/2023
All Four Seasons Inc,Purchased Transportation,$113.00 ,6/29/2023
All Four Seasons Inc,Purchased Transportation,$72.75 ,8/10/2023
All Four Seasons Inc,Purchased Transportation,$23.50 ,9/7/2023
All Four Seasons Inc,Purchased Transportation,"$2,631.75 ",9/21/2023
All Four Seasons Inc,Purchased Transportation,$415.00 ,10/5/2023
All Four Seasons Inc,Purchased Transportation,$231.50 ,11/2/2023
All Four Seasons Inc,Purchased Transportation,$153.25 ,11/22/2023
All Four Seasons Inc,Purchased Transportation,$198.75 ,12/7/2023
All Four Seasons Inc,Purchased Transportation,$539.50 ,12/21/2023
Alliance Taxi,Purchased Transportation,"$84,552.83 ",1/5/2023
Alliance Taxi,Purchased Transportation,"$73,483.16 ",1/31/2023
Alliance Taxi,Purchased Transportation,"$79,380.26 ",3/17/2023
Alliance Taxi,Purchased Transportation,"$93,762.55 ",6/8/2023
Alliance Taxi,Purchased Transportation,"$93,726.17 ",7/6/2023
Alliance Taxi,Purchased Transportation,"$86,096.82 ",8/10/2023
Alliance Taxi,Purchased Transportation,"$2,199.79 ",8/15/2023
Alliance Taxi,Purchased Transportation,"$9,942.29 ",9/12/2023
Alliance Taxi,Purchased Transportation,"$73,492.82 ",9/22/2023
Alliance Taxi,Purchased Transportation,"$104,606.76 ",10/5/2023
Alliance Taxi,Purchased Transportation,"$6,628.34 ",10/26/2023
Alliance Taxi,Purchased Transportation,"$86,560.60 ",10/31/2023
Alliance Taxi,Purchased Transportation,"$4,798.05 ",11/24/2023
Alliance Taxi,Purchased Transportation,"$28,322.07 ",12/29/2023
Alliant Insurance Services Inc,Casualty and Liability,"$82,500.00 ",7/27/2023
Amari Taxi Inc,Purchased Transportation,$93.50 ,10/19/2023
Amari Taxi Inc,Purchased Transportation,$765.00 ,10/26/2023
Amari Taxi Inc,Purchased Transportation,$843.25 ,11/9/2023
Amari Taxi Inc,Purchased Transportation,$236.00 ,12/7/2023
Amari Taxi Inc,Purchased Transportation,$902.00 ,12/29/2023
American Defensive Driving School Inc,Services,$945.00 ,1/5/2023
American Defensive Driving School Inc,Services,"$1,227.50 ",2/9/2023
American Defensive Driving School Inc,Services,$868.80 ,3/23/2023
American Defensive Driving School Inc,Services,"$1,924.50 ",5/4/2023
American Defensive Driving School Inc,Services,"$2,483.30 ",6/22/2023
American Defensive Driving School Inc,Services,"$1,090.00 ",8/4/2023
American Defensive Driving School Inc,Services,$910.00 ,9/8/2023
American Defensive Driving School Inc,Services,"$1,160.20 ",10/12/2023
American Defensive Driving School Inc,Services,"$1,268.80 ",11/16/2023
American Defensive Driving School Inc,Services,$910.00 ,12/7/2023
American Gases Corp,Services,$26.00 ,1/19/2023
American Gases Corp,Services,$26.00 ,2/23/2023
American Gases Corp,Services,$26.00 ,2/28/2023
American Gases Corp,Services,$26.00 ,5/11/2023
American Gases Corp,Services,$26.00 ,6/15/2023
American Gases Corp,Services,$26.00 ,7/27/2023
American Gases Corp,Services,$26.00 ,9/14/2023
American Gases Corp,Services,$26.00 ,9/21/2023
American Gases Corp,Services,$26.00 ,9/28/2023
American Gases Corp,Materials and Supplies,$341.00 ,11/9/2023
American Gases Corp,Materials and Supplies,$49.50 ,12/7/2023
American Gases Corp,Materials and Supplies,$49.50 ,12/29/2023
American Gases Corp,Services,$78.00 ,12/29/2023
American Refrigerants,Fuel/Parts Inventory,"$9,625.00 ",5/11/2023
American Refrigerants,Fuel/Parts Inventory,"$12,050.00 ",6/1/2023
American Refrigerants,Fuel/Parts Inventory,"$1,375.00 ",6/8/2023
American Refrigerants,Fuel/Parts Inventory,$175.00 ,6/15/2023
American Refrigerants,Fuel/Parts Inventory,"$1,426.00 ",7/27/2023
American Refrigerants,Fuel/Parts Inventory,"$4,097.00 ",11/30/2023
American Sign Products,Services,"$7,551.00 ",8/10/2023
American Welding & Gas,Materials and Supplies,$135.70 ,1/26/2023
American Welding & Gas,Materials and Supplies,$183.97 ,3/30/2023
American Welding & Gas,Materials and Supplies,$102.30 ,4/13/2023
American Welding & Gas,Materials and Supplies,$99.00 ,5/25/2023
American Welding & Gas,Materials and Supplies,$102.30 ,6/15/2023
American Welding & Gas,Materials and Supplies,$99.00 ,7/27/2023
American Welding & Gas,Materials and Supplies,$102.30 ,8/24/2023
American Welding & Gas,Materials and Supplies,$291.30 ,11/30/2023
Anagnos Door Company LLC,Services,$603.83 ,1/5/2023
Anagnos Door Company LLC,Services,$872.20 ,1/26/2023
Anagnos Door Company LLC,Services,$715.00 ,2/2/2023
Anagnos Door Company LLC,Services,$973.32 ,2/16/2023
Anagnos Door Company LLC,Services,"$24,253.16 ",2/23/2023
Anagnos Door Company LLC,Services,$524.46 ,3/16/2023
Anagnos Door Company LLC,Services,$705.99 ,3/30/2023
Anagnos Door Company LLC,Services,"$1,377.44 ",4/13/2023
Anagnos Door Company LLC,Services,"$5,991.59 ",4/20/2023
Anagnos Door Company LLC,Services,"$5,491.11 ",4/27/2023
Anagnos Door Company LLC,Services,$390.00 ,5/4/2023
Anagnos Door Company LLC,Services,"$4,021.36 ",5/25/2023
Anagnos Door Company LLC,Services,"$6,914.43 ",6/8/2023
Anagnos Door Company LLC,Services,"$11,041.96 ",6/29/2023
Anagnos Door Company LLC,Services,"$1,960.00 ",7/13/2023
Anagnos Door Company LLC,Services,$130.00 ,7/20/2023
Anagnos Door Company LLC,Services,$568.95 ,7/27/2023
Anagnos Door Company LLC,Services,"$6,718.90 ",8/4/2023
Anagnos Door Company LLC,Services,"$2,693.76 ",8/24/2023
Anagnos Door Company LLC,Services,"$1,885.00 ",9/14/2023
Anagnos Door Company LLC,Services,$325.00 ,10/5/2023
Anagnos Door Company LLC,Services,$836.64 ,10/12/2023
Anagnos Door Company LLC,Services,"$1,895.00 ",10/31/2023
Anagnos Door Company LLC,Services,"$1,789.80 ",11/24/2023
Anagnos Door Company LLC,Services,"$3,390.00 ",11/30/2023
Anagnos Door Company LLC,Services,"$14,648.09 ",12/7/2023
Anagnos Door Company LLC,Services,"$8,141.24 ",12/29/2023
Anderson Lock,Services,$598.04 ,1/12/2023
Anderson Lock,Services,$210.06 ,3/23/2023
Anderson Lock,Services,$115.01 ,8/4/2023
Anderson Lock,Materials and Supplies,$380.00 ,8/17/2023
Anderson Lock,Services,$711.76 ,9/14/2023
Anderson Lock,Services,"$4,007.27 ",10/5/2023
Anderson Lock,Services,$385.00 ,11/30/2023
Anthony Stephens,Purchased Transportation,$16.95 ,6/15/2023
Arcadis ( fka IBI Group ) Architects Engineers and Landscape Architects a New York General Partnership,Equipment,"$3,040.00 ",11/2/2023
Arctic Snow and Ice Control Inc,Services,"$1,315.00 ",1/5/2023
Arctic Snow and Ice Control Inc,Services,"$4,265.00 ",1/12/2023
Arctic Snow and Ice Control Inc,Services,"$12,858.00 ",1/19/2023
Arctic Snow and Ice Control Inc,Services,"$5,185.00 ",1/26/2023
Arctic Snow and Ice Control Inc,Services,"$2,063.00 ",2/2/2023
Arctic Snow and Ice Control Inc,Services,"$4,832.00 ",2/9/2023
Arctic Snow and Ice Control Inc,Services,"$16,241.00 ",2/16/2023
Arctic Snow and Ice Control Inc,Services,"$6,163.00 ",2/23/2023
Arctic Snow and Ice Control Inc,Services,"$1,668.00 ",3/2/2023
Arctic Snow and Ice Control Inc,Services,"$5,618.00 ",3/9/2023
Arctic Snow and Ice Control Inc,Services,"$3,841.00 ",3/16/2023
Arctic Snow and Ice Control Inc,Services,"$1,300.00 ",3/23/2023
Arctic Snow and Ice Control Inc,Services,"$8,781.00 ",3/30/2023
Arctic Snow and Ice Control Inc,Services,"$3,290.00 ",4/6/2023
Arctic Snow and Ice Control Inc,Services,"$5,155.00 ",4/13/2023
Arctic Snow and Ice Control Inc,Services,$721.00 ,4/20/2023
Arctic Snow and Ice Control Inc,Services,"$3,209.00 ",12/21/2023
Arctic Snow and Ice Control Inc,Services,$721.00 ,12/28/2023
Argon Electric Company Inc,Services,"$3,905.99 ",4/13/2023
Argon Electric Company Inc,Services,"$4,239.00 ",7/27/2023
Argon Electric Company Inc,Services,$424.00 ,9/14/2023
Argon Electric Company Inc,Services,"$2,263.00 ",10/26/2023
Argon Electric Company Inc,Services,$557.00 ,11/30/2023
Argon Electric Company Inc,Services,"$5,887.14 ",12/14/2023
Argon Electric Company Inc,Services,$716.00 ,12/28/2023
Argos Government LLC,Services,$665.39 ,10/26/2023
Argos Government LLC,Services,"$4,311.00 ",11/30/2023
Argos Government LLC,Services,"$3,243.50 ",12/21/2023
Arrow Messenger Service,Miscellaneous,$97.53 ,1/5/2023
Arrow Messenger Service,Miscellaneous,$97.11 ,1/12/2023
Arrow Messenger Service,Miscellaneous,$326.57 ,1/26/2023
Arrow Messenger Service,Miscellaneous,$97.98 ,1/31/2023
Arrow Messenger Service,Miscellaneous,$65.32 ,2/9/2023
Arrow Messenger Service,Miscellaneous,$65.02 ,2/16/2023
Arrow Messenger Service,Miscellaneous,$98.19 ,2/23/2023
Arrow Messenger Service,Miscellaneous,$98.19 ,2/28/2023
Arrow Messenger Service,Miscellaneous,$98.19 ,3/9/2023
Arrow Messenger Service,Miscellaneous,$65.32 ,3/16/2023
Arrow Messenger Service,Miscellaneous,$97.98 ,3/23/2023
Arrow Messenger Service,Miscellaneous,$65.32 ,4/13/2023
Arrow Messenger Service,Miscellaneous,$229.11 ,4/27/2023
Arrow Messenger Service,Miscellaneous,$98.40 ,5/11/2023
Arrow Messenger Service,Miscellaneous,$196.80 ,5/25/2023
Arrow Messenger Service,Miscellaneous,$98.40 ,5/31/2023
Arrow Messenger Service,Miscellaneous,$98.40 ,6/15/2023
Arrow Messenger Service,Miscellaneous,$393.18 ,6/29/2023
Arrow Messenger Service,Miscellaneous,$65.60 ,7/13/2023
Arrow Messenger Service,Miscellaneous,$197.88 ,8/4/2023
Arrow Messenger Service,Miscellaneous,$98.40 ,8/10/2023
Arrow Messenger Service,Miscellaneous,$198.96 ,8/24/2023
Arrow Messenger Service,Miscellaneous,$199.44 ,9/14/2023
Arrow Messenger Service,Miscellaneous,$100.14 ,9/21/2023
Arrow Messenger Service,Miscellaneous,$99.93 ,9/28/2023
Arrow Messenger Service,Miscellaneous,$99.72 ,10/5/2023
Arrow Messenger Service,Miscellaneous,$99.48 ,10/12/2023
Arrow Messenger Service,Miscellaneous,$66.48 ,10/19/2023
Arrow Messenger Service,Miscellaneous,$99.48 ,10/26/2023
Arrow Messenger Service,Miscellaneous,$99.48 ,10/31/2023
Arrow Messenger Service,Miscellaneous,$394.68 ,12/7/2023
Arrow Messenger Service,Miscellaneous,$98.40 ,12/21/2023
Arrow Messenger Service,Miscellaneous,$362.53 ,12/29/2023
Arthur King-Spengler,Purchased Transportation,$22.90 ,2/9/2023
Arthur King-Spengler,Purchased Transportation,$19.53 ,2/16/2023
Assyria Cab Corp,Purchased Transportation,$497.50 ,6/15/2023
Assyria Cab Corp,Purchased Transportation,$100.75 ,6/22/2023
Assyria Cab Corp,Purchased Transportation,$37.50 ,7/27/2023
Assyria Cab Corp,Purchased Transportation,$43.50 ,8/10/2023
At Hanibboc Inc,Purchased Transportation,"$7,284.25 ",4/13/2023
At Hanibboc Inc,Purchased Transportation,$187.50 ,4/20/2023
At Hanibboc Inc,Purchased Transportation,$103.25 ,5/18/2023
At Hanibboc Inc,Purchased Transportation,$172.75 ,6/29/2023
At Hanibboc Inc,Purchased Transportation,$18.25 ,7/27/2023
At Hanibboc Inc,Purchased Transportation,$72.75 ,8/17/2023
At Hanibboc Inc,Purchased Transportation,$59.00 ,9/14/2023
At Hanibboc Inc,Purchased Transportation,$233.00 ,10/12/2023
At Hanibboc Inc,Purchased Transportation,$332.25 ,11/16/2023
At Hanibboc Inc,Purchased Transportation,$111.50 ,11/30/2023
At Hanibboc Inc,Purchased Transportation,$160.00 ,12/7/2023
At Hanibboc Inc,Purchased Transportation,$211.50 ,12/29/2023
Atlas Bobcat LLC,Services,"$1,818.08 ",12/7/2023
Atlas Copco Compressors LLC,Services,$389.00 ,1/5/2023
Atlas Copco Compressors LLC,Services,$95.25 ,1/31/2023
Atlas Copco Compressors LLC,Services,$798.00 ,3/9/2023
Atlas Copco Compressors LLC,Services,$420.00 ,3/16/2023
Atlas Copco Compressors LLC,Services,"$2,938.57 ",4/13/2023
Atlas Copco Compressors LLC,Services,"$2,222.00 ",5/25/2023
Atlas Copco Compressors LLC,Services,$812.00 ,6/8/2023
Atlas Copco Compressors LLC,Services,"$4,765.17 ",6/22/2023
Atlas Copco Compressors LLC,Services,"$1,276.00 ",8/10/2023
Atlas Copco Compressors LLC,Services,"$1,373.00 ",8/17/2023
Atlas Copco Compressors LLC,Services,$705.70 ,9/8/2023
Atlas Copco Compressors LLC,Services,"$3,543.18 ",10/5/2023
Atlas Copco Compressors LLC,Materials and Supplies,"$2,463.54 ",12/7/2023
Atlas Copco Compressors LLC,Services,"$5,284.84 ",12/7/2023
Atlas Copco Compressors LLC,Services,$905.90 ,12/29/2023
Atlas First Access,Services,"$3,357.79 ",12/21/2023
Atlas Translation Services Inc,Services,$220.00 ,10/26/2023
Atlas World Class Body Shop Inc,Services,"$3,900.00 ",2/16/2023
Atlas World Class Body Shop Inc,Casualty and Liability,"$11,682.00 ",2/28/2023
Atlas World Class Body Shop Inc,Casualty and Liability,"$10,278.00 ",3/30/2023
Atlas World Class Body Shop Inc,Services,"$4,398.00 ",8/24/2023
Atlas World Class Body Shop Inc,Services,"$13,596.00 ",10/12/2023
Atlas World Class Body Shop Inc,Casualty and Liability,"$2,510.00 ",10/19/2023
Atlas World Class Body Shop Inc,Casualty and Liability,"$2,400.00 ",12/29/2023
Attorney Registration & Disciplinary,Miscellaneous,$770.00 ,10/26/2023
Attorney Registration & Disciplinary,Miscellaneous,$770.00 ,11/9/2023
Aurora Health Care,Services,$234.00 ,1/5/2023
Aurora Health Care,Services,$468.00 ,2/9/2023
Aurora Health Care,Services,$117.00 ,5/4/2023
Aurora Health Care,Services,$351.00 ,6/15/2023
Aurora Health Care,Services,$234.00 ,7/27/2023
Aurora Health Care,Services,$117.00 ,9/28/2023
Aurora Health Care,Services,$493.00 ,12/7/2023
Aurora Township,Purchased Transportation,"$23,598.90 ",1/12/2023
Aurora Township,Purchased Transportation,"$21,900.40 ",1/31/2023
Aurora Township,Purchased Transportation,"$22,192.48 ",3/9/2023
Aurora Township,Purchased Transportation,"$20,953.42 ",4/13/2023
Aurora Township,Purchased Transportation,"$27,683.35 ",4/27/2023
Aurora Township,Purchased Transportation,"$21,120.51 ",5/31/2023
Aurora Township,Purchased Transportation,"$23,947.89 ",7/6/2023
Aurora Township,Purchased Transportation,"$21,592.49 ",8/4/2023
Aurora Township,Purchased Transportation,"$19,951.67 ",9/12/2023
Aurora Township,Purchased Transportation,"$25,066.49 ",10/5/2023
Aurora Township,Purchased Transportation,"$19,057.87 ",10/26/2023
Aurora Township,Purchased Transportation,"$22,097.62 ",11/30/2023
Austin Electric,Services,$368.50 ,1/5/2023
Austin Electric,Services,"$4,738.01 ",1/19/2023
Austin Electric,Services,"$4,490.98 ",2/16/2023
Austin Electric,Services,"$4,721.24 ",2/23/2023
Award Concepts Inc,Services,"$2,427.25 ",1/31/2023
Award Concepts Inc,Services,"$1,188.07 ",3/23/2023
Award Concepts Inc,Services,"$3,347.33 ",4/27/2023
Award Concepts Inc,Services,"$1,721.95 ",6/29/2023
Award Concepts Inc,Services,"$1,924.22 ",7/20/2023
Award Concepts Inc,Services,"$1,344.42 ",8/31/2023
Award Concepts Inc,Services,$240.01 ,9/21/2023
Award Concepts Inc,Services,"$1,222.66 ",10/12/2023
Award Concepts Inc,Services,"$1,158.76 ",10/19/2023
Award Concepts Inc,Services,$261.47 ,11/9/2023
Award Concepts Inc,Services,"$1,049.98 ",12/14/2023
Award Concepts Inc,Services,"$8,757.10 ",12/21/2023
Ayolek And Ayodele Inc,Purchased Transportation,$280.75 ,1/12/2023
Ayolek And Ayodele Inc,Purchased Transportation,$289.25 ,1/26/2023
Ayolek And Ayodele Inc,Purchased Transportation,$429.75 ,2/2/2023
Ayolek And Ayodele Inc,Purchased Transportation,$23.25 ,4/6/2023
Ayolek And Ayodele Inc,Purchased Transportation,$183.25 ,4/20/2023
Ayolek And Ayodele Inc,Purchased Transportation,$184.75 ,5/18/2023
Ayolek And Ayodele Inc,Purchased Transportation,$536.50 ,6/22/2023
Ayolek And Ayodele Inc,Purchased Transportation,$636.00 ,6/29/2023
Ayolek And Ayodele Inc,Purchased Transportation,($109.00),7/14/2022
Ayolek And Ayodele Inc,Purchased Transportation,$40.50 ,9/28/2023
Ayolek And Ayodele Inc,Purchased Transportation,$182.00 ,10/12/2023
Ayolek And Ayodele Inc,Purchased Transportation,$183.25 ,10/19/2023
Ayolek And Ayodele Inc,Purchased Transportation,$314.25 ,10/26/2023
Ayolek And Ayodele Inc,Purchased Transportation,$84.25 ,11/16/2023
Ayolek And Ayodele Inc,Purchased Transportation,"$2,641.00 ",11/22/2023
Ayolek And Ayodele Inc,Purchased Transportation,$780.75 ,12/28/2023
B Victor Espinoza,Health Insurance,$177.31 ,1/19/2023
B2Gnow AskReply Inc,Equipment,"$24,115.00 ",5/11/2023
B2Gnow AskReply Inc,Equipment,"$31,939.00 ",12/14/2023
BBJ Group LLC,Building/Bldg Improvement,"$2,450.00 ",1/5/2023
BBJ Group LLC,Building/Bldg Improvement,"$2,450.00 ",1/26/2023
BBJ Group LLC,Building/Bldg Improvement,"$15,037.41 ",4/13/2023
BBJ Group LLC,Building/Bldg Improvement,"$6,847.55 ",5/25/2023
BBJ Group LLC,Building/Bldg Improvement,"$10,404.72 ",6/8/2023
BBJ Group LLC,Building/Bldg Improvement,$611.53 ,7/20/2023
BBJ Group LLC,Building/Bldg Improvement,"$7,400.00 ",8/4/2023
BBJ Group LLC,Building/Bldg Improvement,$656.50 ,12/7/2023
BPS Technologies,Services,"$33,600.00 ",8/3/2023
Back To Health Chiropractic Medical Ctr,Services,"$2,540.00 ",1/5/2023
Back To Health Chiropractic Medical Ctr,Services,"$1,865.00 ",1/12/2023
Back To Health Chiropractic Medical Ctr,Services,"$1,533.00 ",1/19/2023
Back To Health Chiropractic Medical Ctr,Services,"$1,124.00 ",2/16/2023
Back To Health Chiropractic Medical Ctr,Services,"$4,552.00 ",3/9/2023
Back To Health Chiropractic Medical Ctr,Services,"$2,066.00 ",3/16/2023
Back To Health Chiropractic Medical Ctr,Services,"$1,826.00 ",4/20/2023
Back To Health Chiropractic Medical Ctr,Services,"$7,706.00 ",4/27/2023
Back To Health Chiropractic Medical Ctr,Services,"$2,654.00 ",5/11/2023
Back To Health Chiropractic Medical Ctr,Services,"$2,156.00 ",5/25/2023
Back To Health Chiropractic Medical Ctr,Services,"$1,352.00 ",6/29/2023
Back To Health Chiropractic Medical Ctr,Services,"$3,257.00 ",7/13/2023
Back To Health Chiropractic Medical Ctr,Services,"$3,660.00 ",7/27/2023
Back To Health Chiropractic Medical Ctr,Services,"$3,448.00 ",8/17/2023
Back To Health Chiropractic Medical Ctr,Services,"$3,878.00 ",8/24/2023
Back To Health Chiropractic Medical Ctr,Services,"$1,926.00 ",9/21/2023
Back To Health Chiropractic Medical Ctr,Services,"$2,286.00 ",10/12/2023
Back To Health Chiropractic Medical Ctr,Services,"$5,207.00 ",10/26/2023
Back To Health Chiropractic Medical Ctr,Services,"$2,193.00 ",11/9/2023
Back To Health Chiropractic Medical Ctr,Services,"$5,303.00 ",11/16/2023
Back To Health Chiropractic Medical Ctr,Services,"$1,156.00 ",12/7/2023
Back To Health Chiropractic Medical Ctr,Services,"$2,126.00 ",12/14/2023
Back To Health Chiropractic Medical Ctr,Services,"$3,541.00 ",12/29/2023
Baker Tilly US LLP,Services,"$10,000.00 ",2/23/2023
Baker Tilly US LLP,Services,"$15,000.00 ",3/23/2023
Baker Tilly US LLP,Services,"$28,281.00 ",4/27/2023
Baker Tilly US LLP,Services,"$21,600.00 ",5/31/2023
Baker Tilly US LLP,Services,"$5,271.50 ",7/27/2023
Baker Tilly US LLP,Services,"$20,000.00 ",9/28/2023
Bapa Cab Inc,Purchased Transportation,$203.25 ,1/26/2023
Bapa Cab Inc,Purchased Transportation,$20.25 ,3/16/2023
Bapa Cab Inc,Purchased Transportation,$41.50 ,3/30/2023
Bapa Cab Inc,Purchased Transportation,$19.25 ,6/15/2023
Bapa Cab Inc,Purchased Transportation,$29.25 ,8/4/2023
Bapa Cab Inc,Purchased Transportation,$37.50 ,8/10/2023
Bapa Cab Inc,Purchased Transportation,$69.50 ,9/14/2023
Bapa Cab Inc,Purchased Transportation,$9.50 ,10/12/2023
Bapa Cab Inc,Purchased Transportation,$18.75 ,11/16/2023
Battery Service Corporation,Fuel/Parts Inventory,"$76,679.34 ",1/5/2023
Battery Service Corporation,Fuel/Parts Inventory,"$105,264.27 ",1/12/2023
Battery Service Corporation,Fuel/Parts Inventory,"$39,264.64 ",1/19/2023
Battery Service Corporation,Fuel/Parts Inventory,"$8,375.28 ",3/23/2023
Battery Service Corporation,Fuel/Parts Inventory,"$20,938.20 ",3/30/2023
Battery Service Corporation,Fuel/Parts Inventory,"$24,477.84 ",6/8/2023
Battery Service Corporation,Materials and Supplies,$893.70 ,6/8/2023
Battery Service Corporation,Fuel/Parts Inventory,"$14,936.40 ",6/29/2023
Battery Service Corporation,Fuel/Parts Inventory,"$40,406.44 ",11/30/2023
Battery Service Corporation,Fuel/Parts Inventory,"$32,160.00 ",12/7/2023
Battery Service Corporation,Equipment,"$2,708.97 ",12/14/2023
Bayardotobar Inc,Purchased Transportation,$90.50 ,3/16/2023
Bayardotobar Inc,Purchased Transportation,$32.50 ,7/27/2023
Beary Landscape Management Inc,Services,$285.00 ,4/20/2023
Beary Landscape Management Inc,Services,"$8,900.00 ",5/11/2023
Beary Landscape Management Inc,Services,"$10,630.02 ",5/31/2023
Beary Landscape Management Inc,Services,"$3,900.00 ",6/8/2023
Beary Landscape Management Inc,Services,"$9,325.00 ",6/15/2023
Beary Landscape Management Inc,Services,"$2,785.00 ",6/22/2023
Beary Landscape Management Inc,Services,"$4,350.00 ",6/29/2023
Beary Landscape Management Inc,Services,"$1,800.00 ",7/6/2023
Beary Landscape Management Inc,Services,$950.00 ,7/13/2023
Beary Landscape Management Inc,Services,"$18,214.98 ",8/4/2023
Beary Landscape Management Inc,Services,"$14,650.00 ",8/10/2023
Beary Landscape Management Inc,Services,"$1,110.00 ",8/17/2023
Beary Landscape Management Inc,Services,"$2,500.00 ",8/24/2023
Beary Landscape Management Inc,Services,"$3,625.00 ",8/31/2023
Beary Landscape Management Inc,Services,"$3,375.00 ",9/8/2023
Beary Landscape Management Inc,Services,"$2,800.00 ",9/14/2023
Beary Landscape Management Inc,Services,"$6,050.00 ",9/21/2023
Beary Landscape Management Inc,Services,"$2,200.00 ",9/28/2023
Beary Landscape Management Inc,Services,"$7,685.00 ",10/5/2023
Beary Landscape Management Inc,Services,"$2,125.00 ",10/26/2023
Beary Landscape Management Inc,Services,"$3,525.00 ",10/31/2023
Beary Landscape Management Inc,Services,"$10,675.00 ",11/9/2023
Beary Landscape Management Inc,Services,"$40,570.00 ",12/14/2023
Benatha Trans Inc,Purchased Transportation,$43.00 ,1/19/2023
Benatha Trans Inc,Purchased Transportation,$105.50 ,1/26/2023
Benatha Trans Inc,Purchased Transportation,$86.25 ,2/9/2023
Benatha Trans Inc,Purchased Transportation,$109.25 ,2/28/2023
Benatha Trans Inc,Purchased Transportation,$162.00 ,3/9/2023
Benatha Trans Inc,Purchased Transportation,$148.00 ,3/30/2023
Benatha Trans Inc,Purchased Transportation,$148.75 ,5/18/2023
Benatha Trans Inc,Purchased Transportation,$138.50 ,7/6/2023
Benatha Trans Inc,Purchased Transportation,$157.25 ,8/24/2023
Bernard Brzuchowski,Health Insurance,$468.00 ,2/16/2023
Best Quality Cleaning,Services,"$4,207.50 ",1/5/2023
Best Quality Cleaning,Services,"$11,450.83 ",1/12/2023
Best Quality Cleaning,Services,"$4,305.00 ",1/19/2023
Best Quality Cleaning,Services,"$5,974.25 ",1/26/2023
Best Quality Cleaning,Services,"$18,539.78 ",2/9/2023
Best Quality Cleaning,Services,$701.00 ,2/23/2023
Best Quality Cleaning,Services,"$4,468.75 ",2/28/2023
Best Quality Cleaning,Services,"$6,575.00 ",3/9/2023
Best Quality Cleaning,Services,"$14,000.00 ",3/16/2023
Best Quality Cleaning,Services,"$15,593.50 ",4/13/2023
Best Quality Cleaning,Services,"$1,760.00 ",4/27/2023
Best Quality Cleaning,Services,"$16,575.00 ",5/4/2023
Best Quality Cleaning,Services,$871.25 ,5/18/2023
Best Quality Cleaning,Services,"$5,533.25 ",5/25/2023
Best Quality Cleaning,Services,"$1,178.75 ",5/31/2023
Best Quality Cleaning,Services,"$25,398.10 ",6/8/2023
Best Quality Cleaning,Services,"$2,495.00 ",6/15/2023
Best Quality Cleaning,Services,$500.00 ,6/29/2023
Best Quality Cleaning,Services,"$2,408.50 ",7/6/2023
Best Quality Cleaning,Services,"$21,580.50 ",7/13/2023
Best Quality Cleaning,Services,"$1,750.00 ",8/4/2023
Best Quality Cleaning,Services,"$25,693.53 ",8/10/2023
Best Quality Cleaning,Services,"$15,498.50 ",9/8/2023
Best Quality Cleaning,Services,"$8,238.25 ",9/14/2023
Best Quality Cleaning,Services,"$1,545.00 ",9/21/2023
Best Quality Cleaning,Services,"$1,243.00 ",10/5/2023
Best Quality Cleaning,Services,"$22,301.50 ",10/12/2023
Best Quality Cleaning,Services,"$2,467.00 ",10/19/2023
Best Quality Cleaning,Services,"$1,371.00 ",11/9/2023
Best Quality Cleaning,Services,"$1,978.50 ",11/30/2023
Best Quality Cleaning,Services,"$8,407.00 ",12/7/2023
Best Quality Cleaning,Services,"$5,870.00 ",12/14/2023
Best Quality Cleaning,Services,"$16,555.25 ",12/21/2023
Big Dog Tool Sales,Services,$961.34 ,8/10/2023
Bill's Grove Florist Ltd,Materials and Supplies,$539.00 ,1/5/2023
Bill's Grove Florist Ltd,Materials and Supplies,$60.00 ,4/13/2023
Bill's Grove Florist Ltd,Materials and Supplies,$987.00 ,5/18/2023
Bill's Grove Florist Ltd,Materials and Supplies,$154.00 ,6/29/2023
Bill's Grove Florist Ltd,Materials and Supplies,$77.00 ,9/21/2023
Bill's Grove Florist Ltd,Materials and Supplies,$513.00 ,11/9/2023
Bill's Grove Florist Ltd,Materials and Supplies,$154.00 ,12/29/2023
Blake Peacock,Purchased Transportation,$292.50 ,5/18/2023
Bloom Companies LLC,Building/Bldg Improvement,"$70,717.85 ",1/31/2023
Bloom Companies LLC,Building/Bldg Improvement,"$19,377.51 ",2/16/2023
Bloom Companies LLC,Building/Bldg Improvement,"$18,862.70 ",5/4/2023
Bloom Companies LLC,Building/Bldg Improvement,"$59,328.09 ",8/25/2023
Bloom Companies LLC,Building/Bldg Improvement,"$106,395.28 ",11/16/2023
Bloom Companies LLC,Building/Bldg Improvement,"$69,685.30 ",12/29/2023
Bloom Township Center,Purchased Transportation,"$3,564.00 ",1/12/2023
Bloom Township Center,Purchased Transportation,"$2,588.00 ",2/9/2023
Bloom Township Center,Purchased Transportation,"$2,129.00 ",3/9/2023
Bloom Township Center,Purchased Transportation,"$3,200.25 ",4/20/2023
Bloom Township Center,Purchased Transportation,"$3,200.25 ",5/11/2023
Bloom Township Center,Purchased Transportation,"$3,200.25 ",6/8/2023
Bloom Township Center,Purchased Transportation,"$3,200.25 ",7/20/2023
Bloom Township Center,Purchased Transportation,"$3,200.25 ",8/10/2023
Bloom Township Center,Purchased Transportation,"$3,200.25 ",9/7/2023
Bloom Township Center,Purchased Transportation,"$3,200.25 ",10/12/2023
Bloom Township Center,Purchased Transportation,"$3,200.25 ",11/16/2023
Bloom Township Center,Equipment,"$2,300.00 ",11/30/2023
Bloom Township Center,Purchased Transportation,"$3,200.25 ",12/7/2023
Bloomberg Industry Group Inc fka Bloomberg BNA,Services,"$7,160.00 ",1/19/2023
Blue Apple Health LLC,Health Insurance,"$13,270.06 ",1/19/2023
Blue Apple Health LLC,Health Insurance,"$9,500.00 ",3/6/2023
Blue Cross Blue Shield of Illinois,Health Insurance,"$5,852,195.26 ",4/3/2023
Blue Cross Blue Shield of Illinois,Health Insurance,"$2,061,444.81 ",4/26/2023
Blue Cross Blue Shield of Illinois,Health Insurance,"$2,012,041.26 ",5/23/2023
Blue Cross Blue Shield of Illinois,Health Insurance,"$1,975,885.94 ",6/26/2023
Blue Cross Blue Shield of Illinois,Health Insurance,"$1,395,415.01 ",7/25/2023
Blue Cross Blue Shield of Illinois,Health Insurance,"$1,892,318.29 ",8/17/2023
Blue Cross Blue Shield of Illinois,Health Insurance,"$1,951,620.95 ",9/27/2023
Blue Cross Blue Shield of Illinois,Health Insurance,"$1,830,119.39 ",10/27/2023
Blue Cross Blue Shield of Illinois,Health Insurance,"$1,864,556.07 ",11/30/2023
Blue Cross Blue Shield of Illinois,Health Insurance,"$1,746,551.51 ",12/27/2023
Blue Ribbon Taxi Association,Purchased Transportation,"$20,681.32 ",1/19/2023
Blue Ribbon Taxi Association,Purchased Transportation,"$572,474.51 ",1/26/2023
Blue Ribbon Taxi Association,Purchased Transportation,"$110,943.62 ",1/31/2023
Blue Ribbon Taxi Association,Purchased Transportation,"$1,489.97 ",2/16/2023
Blue Ribbon Taxi Association,Purchased Transportation,"$32,169.75 ",2/28/2023
Blue Ribbon Taxi Association,Purchased Transportation,"$600,619.37 ",3/9/2023
Blue Ribbon Taxi Association,Purchased Transportation,"$4,240.19 ",3/23/2023
Blue Ribbon Taxi Association,Purchased Transportation,"$634,069.25 ",3/30/2023
Blue Ribbon Taxi Association,Purchased Transportation,"$54,048.75 ",4/13/2023
Blue Ribbon Taxi Association,Purchased Transportation,"$85,354.21 ",4/20/2023
Blue Ribbon Taxi Association,Purchased Transportation,"$8,023.37 ",4/27/2023
Blue Ribbon Taxi Association,Purchased Transportation,"$17,020.25 ",5/4/2023
Blue Ribbon Taxi Association,Purchased Transportation,"$733,136.78 ",5/5/2023
Blue Ribbon Taxi Association,Purchased Transportation,"$33,308.50 ",5/11/2023
Blue Ribbon Taxi Association,Purchased Transportation,"$762,592.50 ",5/25/2023
Blue Ribbon Taxi Association,Purchased Transportation,"$34,311.25 ",6/8/2023
Blue Ribbon Taxi Association,Purchased Transportation,"$26,334.25 ",6/15/2023
Blue Ribbon Taxi Association,Purchased Transportation,"$20,484.00 ",6/22/2023
Blue Ribbon Taxi Association,Purchased Transportation,"$3,011.01 ",6/29/2023
Blue Ribbon Taxi Association,Purchased Transportation,"$717,289.17 ",6/30/2023
Blue Ribbon Taxi Association,Purchased Transportation,"$101,143.49 ",7/6/2023
Blue Ribbon Taxi Association,Purchased Transportation,"$25,854.25 ",7/13/2023
Blue Ribbon Taxi Association,Purchased Transportation,"$84,841.97 ",8/4/2023
Blue Ribbon Taxi Association,Purchased Transportation,"$611,918.11 ",8/7/2023
Blue Ribbon Taxi Association,Purchased Transportation,"$30,329.94 ",8/10/2023
Blue Ribbon Taxi Association,Purchased Transportation,"$43,835.66 ",8/31/2023
Blue Ribbon Taxi Association,Purchased Transportation,"$72,236.80 ",9/7/2023
Blue Ribbon Taxi Association,Purchased Transportation,"$606,688.76 ",9/8/2023
Blue Ribbon Taxi Association,Purchased Transportation,"$6,913.50 ",9/14/2023
Blue Ribbon Taxi Association,Purchased Transportation,"$83,393.79 ",9/28/2023
Blue Ribbon Taxi Association,Purchased Transportation,"$19,652.20 ",10/5/2023
Blue Ribbon Taxi Association,Purchased Transportation,"$699,479.47 ",10/12/2023
Blue Ribbon Taxi Association,Purchased Transportation,"$20,770.00 ",10/19/2023
Blue Ribbon Taxi Association,Purchased Transportation,"$85,506.34 ",10/26/2023
Blue Ribbon Taxi Association,Purchased Transportation,"$736,053.07 ",10/31/2023
Blue Ribbon Taxi Association,Purchased Transportation,"$12,742.66 ",11/9/2023
Blue Ribbon Taxi Association,Purchased Transportation,"$123,460.66 ",11/16/2023
Blue Ribbon Taxi Association,Purchased Transportation,"$668,803.71 ",11/24/2023
Blue Ribbon Taxi Association,Purchased Transportation,"$5,826.09 ",12/7/2023
Blue Ribbon Taxi Association,Purchased Transportation,"$44,332.50 ",12/14/2023
Blue Ribbon Taxi Association,Purchased Transportation,"$718,081.32 ",12/21/2023
Blue Ribbon Taxi Association,Purchased Transportation,"$27,800.50 ",12/29/2023
Brasco International,Equipment,"$191,629.00 ",8/24/2023
Brasco International,Equipment,"$132,701.00 ",12/21/2023
Brenda Flex,Purchased Transportation,$30.00 ,1/5/2023
Brent Hassert Consulting LLC,Services,"$4,000.00 ",1/26/2023
Brent Hassert Consulting LLC,Services,"$4,000.00 ",5/18/2023
Brent Hassert Consulting LLC,Services,"$4,000.00 ",7/20/2023
Brent Hassert Consulting LLC,Services,"$4,000.00 ",9/28/2023
Bridgestone Americas Tire Operations LLC,Materials and Supplies,"$100,875.94 ",1/19/2023
Bridgestone Americas Tire Operations LLC,Materials and Supplies,"$97,712.94 ",1/31/2023
Bridgestone Americas Tire Operations LLC,Materials and Supplies,"$97,369.94 ",3/9/2023
Bridgestone Americas Tire Operations LLC,Materials and Supplies,"$104,117.30 ",4/13/2023
Bridgestone Americas Tire Operations LLC,Materials and Supplies,"$104,158.66 ",5/11/2023
Bridgestone Americas Tire Operations LLC,Materials and Supplies,"$96,380.36 ",6/8/2023
Bridgestone Americas Tire Operations LLC,Materials and Supplies,"$97,286.88 ",7/13/2023
Bridgestone Americas Tire Operations LLC,Materials and Supplies,"$96,304.00 ",8/10/2023
Bridgestone Americas Tire Operations LLC,Materials and Supplies,"$73,387.96 ",9/14/2023
Bridgestone Americas Tire Operations LLC,Materials and Supplies,"$20,255.98 ",9/21/2023
Bridgestone Americas Tire Operations LLC,Materials and Supplies,"$100,804.32 ",10/26/2023
Bridgestone Americas Tire Operations LLC,Materials and Supplies,"$91,792.64 ",11/9/2023
Bridgestone Americas Tire Operations LLC,Materials and Supplies,"$98,438.24 ",12/14/2023
Bristol Hose & Fitting,Materials and Supplies,$319.24 ,3/23/2023
Bristol Hose & Fitting,Materials and Supplies,$106.60 ,8/24/2023
Bristol Hose & Fitting,Materials and Supplies,$99.75 ,10/5/2023
Bristol Hose & Fitting,Materials and Supplies,$28.38 ,12/29/2023
Bus & Truck of Chicago Inc,Services,"$6,100.00 ",1/31/2023
Bus & Truck of Chicago Inc,Casualty and Liability,"$67,538.98 ",2/28/2023
Bus & Truck of Chicago Inc,Services,"$6,509.48 ",2/28/2023
Bus & Truck of Chicago Inc,Casualty and Liability,"$23,823.05 ",3/23/2023
Bus & Truck of Chicago Inc,Services,$992.00 ,4/27/2023
Bus & Truck of Chicago Inc,Casualty and Liability,"$11,177.60 ",5/25/2023
Bus & Truck of Chicago Inc,Casualty and Liability,"$1,875.00 ",11/9/2023
Bus & Truck of Chicago Inc,Services,"$25,125.72 ",11/9/2023
Bus & Truck of Chicago Inc,Casualty and Liability,"$10,770.00 ",12/7/2023
Bus & Truck of Chicago Inc,Services,"$3,900.00 ",12/14/2023
Buzy Bee Board-Up,Services,$450.00 ,10/5/2023
CBM US Inc,Fuel/Parts Inventory,$960.90 ,1/19/2023
CBM US Inc,Fuel/Parts Inventory,$296.85 ,2/9/2023
CBM US Inc,Fuel/Parts Inventory,$268.75 ,3/23/2023
CBM US Inc,Fuel/Parts Inventory,$45.10 ,5/25/2023
CBM US Inc,Fuel/Parts Inventory,"$10,990.85 ",7/6/2023
CBM US Inc,Fuel/Parts Inventory,$842.40 ,8/17/2023
CBM US Inc,Fuel/Parts Inventory,"$3,586.50 ",11/16/2023
CBM US Inc,Fuel/Parts Inventory,"$1,195.50 ",11/24/2023
CDW Government LLC,Equipment,"$146,402.52 ",1/5/2023
CDW Government LLC,Services,"$7,068.30 ",12/14/2023
CHK America,Utilities,"$35,301.00 ",6/29/2023
CTI USA Inc dba Globe Ticket Company,Materials and Supplies,"$11,144.10 ",4/4/2023
CTI USA Inc dba Globe Ticket Company,Materials and Supplies,"$11,144.10 ",6/13/2023
CTI USA Inc dba Globe Ticket Company,Materials and Supplies,"$11,139.06 ",10/3/2023
Cabconnect Inc,Miscellaneous,"$46,932.45 ",1/12/2023
Cabconnect Inc,Miscellaneous,"$66,210.55 ",2/16/2023
Cabconnect Inc,Miscellaneous,"$62,196.85 ",3/16/2023
Cabconnect Inc,Miscellaneous,"$65,571.64 ",4/13/2023
Cabconnect Inc,Miscellaneous,"$56,410.42 ",5/11/2023
Cabconnect Inc,Miscellaneous,"$49,001.92 ",6/15/2023
Cabconnect Inc,Miscellaneous,"$46,418.52 ",7/20/2023
Cabconnect Inc,Miscellaneous,"$47,299.87 ",8/10/2023
Cabconnect Inc,Miscellaneous,"$49,413.90 ",9/14/2023
Cabconnect Inc,Miscellaneous,"$47,721.65 ",10/12/2023
Cabconnect Inc,Miscellaneous,"$49,508.10 ",11/9/2023
Cabconnect Inc,Miscellaneous,"$51,171.99 ",12/14/2023
Calumet City Plumbing Co Inc,Services,"$3,061.48 ",2/16/2023
Calumet City Plumbing Co Inc,Services,"$15,207.23 ",2/23/2023
Calumet City Plumbing Co Inc,Services,"$9,080.00 ",9/21/2023
Canon Solutions America Inc,Leases and Rentals,"$12,544.83 ",1/25/2023
Canon Solutions America Inc,Leases and Rentals,"$12,564.91 ",2/8/2023
Canon Solutions America Inc,Leases and Rentals,"$12,545.07 ",3/28/2023
Canon Solutions America Inc,Leases and Rentals,"$13,334.87 ",4/4/2023
Canon Solutions America Inc,Leases and Rentals,"$15,864.35 ",7/25/2023
Canon Solutions America Inc,Leases and Rentals,"$41,138.79 ",8/2/2023
Canon Solutions America Inc,Leases and Rentals,"$51,215.24 ",12/13/2023
Canon Solutions America Inc,Leases and Rentals,"$13,755.20 ",12/26/2023
Canteen Refreshment Services,Miscellaneous,$267.86 ,2/23/2023
Canteen Refreshment Services,Materials and Supplies,$148.40 ,2/28/2023
Canteen Refreshment Services,Miscellaneous,$65.78 ,3/23/2023
Canteen Refreshment Services,Materials and Supplies,$488.82 ,7/20/2023
Canteen Refreshment Services,Miscellaneous,$258.16 ,9/8/2023
Canteen Refreshment Services,Materials and Supplies,$225.64 ,10/31/2023
Canteen Refreshment Services,Miscellaneous,$138.20 ,11/30/2023
CapitolHall Partners LLC,Services,"$3,000.00 ",1/19/2023
CapitolHall Partners LLC,Services,"$3,000.00 ",2/9/2023
CapitolHall Partners LLC,Services,"$3,000.00 ",3/16/2023
CapitolHall Partners LLC,Services,"$3,000.00 ",4/20/2023
CapitolHall Partners LLC,Services,"$3,000.00 ",5/25/2023
CapitolHall Partners LLC,Services,"$3,000.00 ",6/15/2023
CapitolHall Partners LLC,Services,"$3,000.00 ",7/20/2023
CapitolHall Partners LLC,Services,"$3,000.00 ",8/10/2023
CapitolHall Partners LLC,Services,"$3,000.00 ",9/14/2023
CapitolHall Partners LLC,Services,"$3,000.00 ",10/19/2023
CapitolHall Partners LLC,Services,"$3,000.00 ",11/16/2023
CapitolHall Partners LLC,Services,"$3,000.00 ",12/21/2023
Carahsoft Technology Corp,Services,"$31,073.58 ",9/21/2023
Carahsoft Technology Corp,Services,"$11,460.00 ",12/7/2023
Chandler Services Inc,Services,$400.00 ,4/13/2023
Chandler Services Inc,Services,"$10,158.16 ",4/20/2023
Chandler Services Inc,Services,"$3,278.51 ",5/25/2023
Chandler Services Inc,Services,$37.70 ,6/8/2023
Chandler Services Inc,Services,"$17,445.21 ",7/27/2023
Chandler Services Inc,Services,"$12,165.19 ",8/31/2023
Chandler Services Inc,Services,"$43,640.47 ",9/21/2023
Chandler Services Inc,Services,"$1,919.65 ",10/5/2023
Chandler Services Inc,Services,$0.30 ,10/12/2023
Chandler Services Inc,Services,"$28,149.58 ",10/26/2023
Chandler Services Inc,Services,"$7,612.00 ",10/31/2023
Charles Equipment Energy Systems,Services,"$1,533.01 ",1/26/2023
Charles Equipment Energy Systems,Services,"$5,754.74 ",2/9/2023
Charles Equipment Energy Systems,Services,$651.40 ,3/9/2023
Charles Equipment Energy Systems,Services,$853.44 ,3/23/2023
Charles Equipment Energy Systems,Services,"$12,102.44 ",7/27/2023
Charles Equipment Energy Systems,Services,"$13,235.35 ",8/4/2023
Charles Equipment Energy Systems,Services,"$4,452.43 ",9/28/2023
Charles Equipment Energy Systems,Services,"$24,385.78 ",12/29/2023
Chicago Communication Systems,Services,$240.00 ,7/6/2023
Chicago Communication Systems,Services,$252.00 ,12/29/2023
Chicago Communications LLC,Materials and Supplies,$614.00 ,10/19/2023
Chicago Transit Authority,Services,$200.00 ,10/5/2023
Chicago Tribune,Miscellaneous,$11.97 ,4/13/2023
Chicago United Industries Ltd,Fuel/Parts Inventory,"$7,100.00 ",1/19/2023
Chicago United Industries Ltd,Fuel/Parts Inventory,"$5,600.00 ",3/9/2023
Chicago United Industries Ltd,Fuel/Parts Inventory,"$5,648.00 ",3/30/2023
Chicago United Industries Ltd,Fuel/Parts Inventory,"$3,229.60 ",4/27/2023
Chicago United Industries Ltd,Fuel/Parts Inventory,"$6,240.00 ",5/11/2023
Chicago United Industries Ltd,Fuel/Parts Inventory,"$6,080.00 ",5/25/2023
Chicago United Industries Ltd,Fuel/Parts Inventory,"$6,080.00 ",6/29/2023
Chicago United Industries Ltd,Services,"$1,572.82 ",6/29/2023
Chicago United Industries Ltd,Fuel/Parts Inventory,"$7,600.00 ",8/10/2023
Chicago United Industries Ltd,Fuel/Parts Inventory,"$25,310.89 ",9/8/2023
Chicago United Industries Ltd,Fuel/Parts Inventory,"$7,480.00 ",9/28/2023
Chicago United Industries Ltd,Fuel/Parts Inventory,"$5,984.00 ",10/5/2023
Chicago United Industries Ltd,Services,"$2,980.08 ",10/19/2023
Chicago United Industries Ltd,Fuel/Parts Inventory,"$13,572.00 ",10/26/2023
Chicago United Industries Ltd,Fuel/Parts Inventory,"$4,848.00 ",11/30/2023
Chicago United Industries Ltd,Fuel/Parts Inventory,"$9,000.00 ",12/14/2023
Chicago Voice & Data Authority,Services,"$2,321.57 ",5/4/2023
Chicago Voice & Data Authority,Services,"$3,153.00 ",8/3/2023
Choice Taxi Association Inc,Purchased Transportation,"$21,951.00 ",1/19/2023
Choice Taxi Association Inc,Purchased Transportation,"$13,532.25 ",2/2/2023
Choice Taxi Association Inc,Purchased Transportation,"$17,356.25 ",3/2/2023
Choice Taxi Association Inc,Purchased Transportation,"$11,234.25 ",3/9/2023
Choice Taxi Association Inc,Purchased Transportation,"$3,489.00 ",3/16/2023
Choice Taxi Association Inc,Purchased Transportation,"$15,559.50 ",3/30/2023
Choice Taxi Association Inc,Purchased Transportation,"$32,236.25 ",5/4/2023
Choice Taxi Association Inc,Purchased Transportation,"$22,595.50 ",6/1/2023
Choice Taxi Association Inc,Purchased Transportation,"$40,632.25 ",6/29/2023
Choice Taxi Association Inc,Purchased Transportation,"$6,792.25 ",8/31/2023
Choice Taxi Association Inc,Purchased Transportation,"$14,326.50 ",9/28/2023
Choice Taxi Association Inc,Purchased Transportation,"$22,003.75 ",10/5/2023
Choice Taxi Association Inc,Purchased Transportation,"$34,299.25 ",10/12/2023
Choice Taxi Association Inc,Purchased Transportation,"($4,631.75)",10/13/2022
Choice Taxi Association Inc,Purchased Transportation,"$7,776.75 ",10/26/2023
Choice Taxi Association Inc,Purchased Transportation,"$9,237.00 ",11/9/2023
Choice Taxi Association Inc,Purchased Transportation,"$9,753.50 ",11/16/2023
Choice Taxi Association Inc,Purchased Transportation,"$13,647.25 ",11/22/2023
Choose DuPage,Miscellaneous,"$6,250.00 ",5/18/2023
Chris Northrop,Purchased Transportation,$20.95 ,2/9/2023
Chris Northrop,Purchased Transportation,$38.88 ,2/16/2023
Chris Northrop,Purchased Transportation,$18.93 ,5/4/2023
Christina Viney,Purchased Transportation,$11.92 ,6/15/2023
Circle Graphics Inc,Materials and Supplies,$316.80 ,3/9/2023
City Service Taxi Association,Purchased Transportation,"$95,031.00 ",1/19/2023
City Service Taxi Association,Purchased Transportation,"$96,853.00 ",1/31/2023
City Service Taxi Association,Purchased Transportation,"$20,346.00 ",2/16/2023
City Service Taxi Association,Purchased Transportation,"$61,437.50 ",2/23/2023
City Service Taxi Association,Purchased Transportation,"$74,254.50 ",3/16/2023
City Service Taxi Association,Purchased Transportation,"$20,492.75 ",4/13/2023
City Service Taxi Association,Purchased Transportation,"$67,575.00 ",4/20/2023
City Service Taxi Association,Purchased Transportation,"$36,181.00 ",4/27/2023
City Service Taxi Association,Purchased Transportation,"$35,180.00 ",5/4/2023
City Service Taxi Association,Purchased Transportation,"$59,407.50 ",5/11/2023
City Service Taxi Association,Purchased Transportation,"$40,073.50 ",5/18/2023
City Service Taxi Association,Purchased Transportation,"$86,908.00 ",5/25/2023
City Service Taxi Association,Purchased Transportation,"$68,744.25 ",5/31/2023
City Service Taxi Association,Purchased Transportation,"$20,925.25 ",6/15/2023
City Service Taxi Association,Purchased Transportation,"$68,410.00 ",6/22/2023
City Service Taxi Association,Purchased Transportation,"$54,783.75 ",7/6/2023
City Service Taxi Association,Purchased Transportation,"$31,028.00 ",7/20/2023
City Service Taxi Association,Purchased Transportation,"$65,160.50 ",7/27/2023
City Service Taxi Association,Purchased Transportation,"$69,281.25 ",8/4/2023
City Service Taxi Association,Purchased Transportation,"$73,558.25 ",8/17/2023
City Service Taxi Association,Purchased Transportation,"$13,472.75 ",8/29/2023
City Service Taxi Association,Purchased Transportation,"$25,987.75 ",9/8/2023
City Service Taxi Association,Purchased Transportation,"$100,239.75 ",9/21/2023
City Service Taxi Association,Purchased Transportation,$32.50 ,10/5/2023
City Service Taxi Association,Purchased Transportation,"$108,264.00 ",10/9/2023
City Service Taxi Association,Purchased Transportation,"$91,250.25 ",10/19/2023
City Service Taxi Association,Purchased Transportation,"$31,993.50 ",10/26/2023
City Service Taxi Association,Purchased Transportation,"$37,840.00 ",11/9/2023
City Service Taxi Association,Purchased Transportation,"$66,841.00 ",11/16/2023
City Service Taxi Association,Purchased Transportation,"$47,129.75 ",11/24/2023
City Service Taxi Association,Purchased Transportation,"$23,537.25 ",11/30/2023
City Service Taxi Association,Purchased Transportation,"$30,852.50 ",12/14/2023
City Welding Sales & Service Inc,Materials and Supplies,$845.90 ,1/26/2023
City Welding Sales & Service Inc,Services,$582.00 ,1/26/2023
City Welding Sales & Service Inc,Materials and Supplies,$175.00 ,1/31/2023
City Welding Sales & Service Inc,Services,$144.00 ,1/31/2023
City Welding Sales & Service Inc,Services,$156.00 ,2/28/2023
City Welding Sales & Service Inc,Materials and Supplies,$245.00 ,3/9/2023
City Welding Sales & Service Inc,Services,$246.00 ,3/9/2023
City Welding Sales & Service Inc,Materials and Supplies,$385.00 ,3/23/2023
City Welding Sales & Service Inc,Services,$282.00 ,3/23/2023
City Welding Sales & Service Inc,Services,$300.00 ,4/13/2023
City Welding Sales & Service Inc,Services,$42.00 ,4/20/2023
City Welding Sales & Service Inc,Materials and Supplies,$140.00 ,5/11/2023
City Welding Sales & Service Inc,Services,$174.00 ,5/11/2023
City Welding Sales & Service Inc,Materials and Supplies,$282.00 ,5/18/2023
City Welding Sales & Service Inc,Services,$96.00 ,5/18/2023
City Welding Sales & Service Inc,Materials and Supplies,$560.00 ,5/25/2023
City Welding Sales & Service Inc,Materials and Supplies,$315.00 ,6/8/2023
City Welding Sales & Service Inc,Materials and Supplies,$280.00 ,6/15/2023
City Welding Sales & Service Inc,Services,$342.00 ,6/15/2023
City Welding Sales & Service Inc,Materials and Supplies,$245.00 ,6/29/2023
City Welding Sales & Service Inc,Materials and Supplies,$210.00 ,7/6/2023
City Welding Sales & Service Inc,Materials and Supplies,$72.00 ,7/13/2023
City Welding Sales & Service Inc,Services,$270.00 ,7/13/2023
City Welding Sales & Service Inc,Materials and Supplies,$385.00 ,7/20/2023
City Welding Sales & Service Inc,Materials and Supplies,$315.00 ,7/27/2023
City Welding Sales & Service Inc,Services,$186.00 ,8/17/2023
City Welding Sales & Service Inc,Materials and Supplies,$455.00 ,8/24/2023
City Welding Sales & Service Inc,Services,$156.00 ,8/24/2023
City Welding Sales & Service Inc,Materials and Supplies,$140.00 ,9/14/2023
City Welding Sales & Service Inc,Services,$342.00 ,9/14/2023
City Welding Sales & Service Inc,Materials and Supplies,$525.00 ,9/28/2023
City Welding Sales & Service Inc,Services,$76.98 ,9/28/2023
City Welding Sales & Service Inc,Services,$516.00 ,10/26/2023
City Welding Sales & Service Inc,Materials and Supplies,$245.00 ,10/31/2023
City Welding Sales & Service Inc,Materials and Supplies,$315.00 ,11/9/2023
City Welding Sales & Service Inc,Services,$42.00 ,11/9/2023
City Welding Sales & Service Inc,Materials and Supplies,$525.00 ,11/16/2023
City Welding Sales & Service Inc,Services,$276.00 ,11/16/2023
City Welding Sales & Service Inc,Materials and Supplies,$245.00 ,11/24/2023
City Welding Sales & Service Inc,Materials and Supplies,$280.00 ,11/30/2023
City Welding Sales & Service Inc,Materials and Supplies,$140.00 ,12/7/2023
City Welding Sales & Service Inc,Materials and Supplies,$42.00 ,12/14/2023
City Welding Sales & Service Inc,Services,$522.00 ,12/14/2023
City of Braidwood,Purchased Transportation,$100.00 ,2/23/2023
City of Chicago,Miscellaneous,"$8,000.00 ",2/2/2023
City of Chicago Heights,Services,$200.44 ,1/12/2023
City of Chicago Heights,Services,$186.73 ,2/16/2023
City of Chicago Heights,Services,$146.17 ,3/23/2023
City of Chicago Heights,Services,$113.60 ,5/4/2023
City of Chicago Heights,Services,$124.46 ,5/11/2023
City of Chicago Heights,Services,$138.54 ,6/22/2023
City of Chicago Heights,Services,$123.76 ,7/6/2023
City of Chicago Heights,Services,$157.02 ,8/3/2023
City of Chicago Heights,Services,$150.77 ,9/7/2023
City of Chicago Heights,Services,$181.53 ,10/12/2023
City of Chicago Heights,Services,$190.97 ,11/9/2023
City of Chicago Heights,Services,$201.91 ,12/7/2023
City of Des Plaines,Utilities,"$3,117.83 ",1/26/2023
City of Des Plaines,Utilities,"$3,679.81 ",2/23/2023
City of Des Plaines,Utilities,"$3,258.41 ",3/23/2023
City of Des Plaines,Utilities,$8.14 ,3/30/2023
City of Des Plaines,Utilities,"$3,775.92 ",4/27/2023
City of Des Plaines,Utilities,"$3,531.95 ",5/25/2023
City of Des Plaines,Utilities,$8.14 ,6/1/2023
City of Des Plaines,Utilities,"$3,679.81 ",6/29/2023
City of Des Plaines,Utilities,"$3,816.70 ",7/27/2023
City of Des Plaines,Utilities,"$3,093.05 ",8/31/2023
City of Des Plaines,Utilities,"$3,176.16 ",9/21/2023
City of Des Plaines,Utilities,"$3,848.55 ",10/26/2023
City of Des Plaines,Utilities,"$4,046.96 ",11/22/2023
City of Elgin,Services,$87.03 ,1/19/2023
City of Elgin,Utilities,"$1,962.22 ",1/19/2023
City of Elgin,Utilities,$119.83 ,1/26/2023
City of Elgin,Utilities,$264.44 ,2/16/2023
City of Elgin,Utilities,"$2,044.36 ",2/23/2023
City of Elgin,Utilities,$121.49 ,3/9/2023
City of Elgin,Services,$105.72 ,3/16/2023
City of Elgin,Utilities,"$2,022.50 ",3/23/2023
City of Elgin,Utilities,$122.00 ,4/13/2023
City of Elgin,Services,$96.25 ,4/20/2023
City of Elgin,Utilities,"$2,431.90 ",4/20/2023
City of Elgin,Utilities,$154.27 ,5/11/2023
City of Elgin,Services,$113.72 ,5/18/2023
City of Elgin,Utilities,"$1,990.43 ",5/18/2023
City of Elgin,Utilities,$127.33 ,6/8/2023
City of Elgin,Services,$98.92 ,6/15/2023
City of Elgin,Utilities,"$2,360.91 ",6/22/2023
City of Elgin,Services,$96.25 ,7/13/2023
City of Elgin,Utilities,"$2,705.26 ",7/20/2023
City of Elgin,Utilities,$152.62 ,8/10/2023
City of Elgin,Services,$111.51 ,8/17/2023
City of Elgin,Utilities,"$2,723.10 ",8/17/2023
City of Elgin,Services,$102.17 ,9/14/2023
City of Elgin,Utilities,$141.21 ,9/14/2023
City of Elgin,Utilities,"$2,427.96 ",9/21/2023
City of Elgin,Services,$104.83 ,10/12/2023
City of Elgin,Utilities,$163.39 ,10/12/2023
City of Elgin,Utilities,"$1,940.37 ",10/19/2023
City of Elgin,Services,$99.50 ,11/9/2023
City of Elgin,Utilities,$128.75 ,11/9/2023
City of Elgin,Utilities,"$1,934.40 ",11/22/2023
City of Elgin,Services,$109.26 ,12/14/2023
City of Elgin,Utilities,$145.63 ,12/14/2023
City of Elgin,Utilities,"$2,520.77 ",12/21/2023
City of Evanston,Utilities,"$3,366.43 ",1/26/2023
City of Evanston,Utilities,"$4,798.07 ",3/16/2023
City of Evanston,Utilities,"$5,376.91 ",5/18/2023
City of Evanston,Utilities,"$5,193.91 ",7/20/2023
City of Evanston,Utilities,"$4,908.11 ",9/21/2023
City of Evanston,Utilities,"$4,952.47 ",11/22/2023
City of Highland Park,Purchased Transportation,"$91,517.74 ",1/12/2023
City of Highland Park,Purchased Transportation,"$237,241.86 ",5/11/2023
City of Highland Park,Fuel/Parts Inventory,"$5,218.79 ",5/18/2023
City of Highland Park,Purchased Transportation,"$100,038.43 ",5/18/2023
City of Highland Park,Purchased Transportation,"$63,992.54 ",6/8/2023
City of Highland Park,Purchased Transportation,"$139,223.95 ",7/20/2023
City of Highland Park,Purchased Transportation,"$176,512.86 ",8/10/2023
City of Highland Park,Purchased Transportation,"$271,470.87 ",9/8/2023
City of Highland Park,Purchased Transportation,"$84,567.56 ",10/5/2023
City of Highland Park,Purchased Transportation,"$49,599.28 ",12/7/2023
City of Hometown,Purchased Transportation,$200.00 ,3/23/2023
City of Joliet,Utilities,$30.82 ,1/12/2023
City of Joliet,Utilities,$31.68 ,2/16/2023
City of Joliet,Utilities,$31.18 ,3/16/2023
City of Joliet,Utilities,$29.23 ,4/20/2023
City of Joliet,Utilities,$173.53 ,5/25/2023
City of Joliet,Utilities,$598.71 ,6/15/2023
City of Joliet,Utilities,$642.30 ,6/29/2023
City of Markham,Utilities,$441.02 ,1/26/2023
City of Markham,Utilities,$187.29 ,3/2/2023
City of Markham,Utilities,$142.97 ,3/23/2023
City of Markham,Utilities,$154.05 ,4/27/2023
City of Markham,Utilities,"$6,447.49 ",5/25/2023
City of Markham,Utilities,$907.49 ,6/29/2023
City of Markham,Utilities,"$1,429.36 ",7/27/2023
City of Markham,Utilities,"$1,317.45 ",8/31/2023
City of Markham,Utilities,"$1,348.00 ",9/28/2023
City of Markham,Utilities,"$1,474.70 ",10/26/2023
City of Markham,Utilities,"$1,462.03 ",11/30/2023
City of Markham,Utilities,"$1,449.36 ",12/21/2023
City of McHenry,Services,$270.00 ,1/5/2023
City of McHenry,Services,$540.00 ,8/31/2023
City of McHenry,Services,$270.00 ,10/19/2023
City of Palos Hills,Purchased Transportation,$687.00 ,1/12/2023
City of Palos Hills,Purchased Transportation,$300.33 ,2/9/2023
City of Palos Hills,Purchased Transportation,$501.33 ,3/9/2023
City of Palos Hills,Purchased Transportation,$620.08 ,4/6/2023
City of Palos Hills,Purchased Transportation,$620.08 ,5/11/2023
City of Palos Hills,Purchased Transportation,$620.08 ,6/8/2023
City of Palos Hills,Purchased Transportation,$620.08 ,7/20/2023
City of Palos Hills,Purchased Transportation,$620.08 ,8/10/2023
City of Palos Hills,Purchased Transportation,$620.08 ,9/7/2023
City of Palos Hills,Purchased Transportation,$620.08 ,10/12/2023
City of Palos Hills,Purchased Transportation,$620.08 ,11/16/2023
City of Palos Hills,Purchased Transportation,$620.08 ,12/7/2023
City of Waukegan,Utilities,"$1,149.32 ",1/19/2023
City of Waukegan,Utilities,"$1,457.16 ",2/9/2023
City of Waukegan,Utilities,"$1,445.32 ",3/2/2023
City of Waukegan,Utilities,"$1,427.56 ",3/30/2023
City of Waukegan,Utilities,"$1,392.04 ",5/11/2023
City of Waukegan,Utilities,"$1,508.06 ",6/1/2023
City of Waukegan,Utilities,"$1,750.36 ",7/6/2023
City of Waukegan,Utilities,"$1,450.96 ",8/10/2023
City of Waukegan,Utilities,"$1,402.84 ",9/7/2023
City of Waukegan,Utilities,"$1,157.92 ",10/12/2023
City of Waukegan,Utilities,"$1,170.48 ",11/9/2023
City of Waukegan,Utilities,"$1,227.00 ",12/7/2023
Claassen White & Associates P C,Equipment,"$2,400.00 ",11/16/2023
Claims,Claims,"$4,199.78 ",1/4/2023
Claims,Claims,"$27,351.50 ",1/5/2023
Claims,Claims,"$2,334.42 ",1/11/2023
Claims,Claims,"$17,480.36 ",1/12/2023
Claims,Claims,"$21,906.40 ",1/18/2023
Claims,Claims,"$33,181.87 ",1/19/2023
Claims,Claims,"$19,408.56 ",1/25/2023
Claims,Claims,"$141,749.15 ",1/26/2023
Claims,Claims,"$25,031.41 ",2/1/2023
Claims,Claims,"$5,503.65 ",2/2/2023
Claims,Claims,"$36,275.70 ",2/8/2023
Claims,Claims,"$35,858.22 ",2/9/2023
Claims,Claims,"$26,035.28 ",2/15/2023
Claims,Claims,"$36,073.67 ",2/16/2023
Claims,Claims,"$85,836.30 ",2/22/2023
Claims,Claims,"$1,170,553.83 ",2/23/2023
Claims,Claims,"$11,325.10 ",3/1/2023
Claims,Claims,"$6,541.01 ",3/2/2023
Claims,Claims,"$9,060.71 ",3/9/2023
Claims,Claims,"$11,053.89 ",3/10/2023
Claims,Claims,"$7,799.44 ",3/15/2023
Claims,Claims,"$59,066.69 ",3/16/2023
Claims,Claims,"$6,044.39 ",3/22/2023
Claims,Claims,"$2,122.34 ",3/23/2023
Claims,Claims,"$9,132.19 ",3/29/2023
Claims,Claims,$728.10 ,3/30/2023
Claims,Claims,"$7,420.91 ",4/5/2023
Claims,Claims,"$11,366.94 ",4/12/2023
Claims,Claims,"$6,651.50 ",4/13/2023
Claims,Claims,"$7,698.57 ",4/19/2023
Claims,Claims,"$1,502,388.05 ",4/20/2023
Claims,Claims,"$22,387.17 ",4/26/2023
Claims,Claims,"$85,465.43 ",4/27/2023
Claims,Claims,"$58,134.73 ",5/3/2023
Claims,Claims,"$642,933.66 ",5/4/2023
Claims,Claims,"$10,551.85 ",5/10/2023
Claims,Claims,"$7,653.39 ",5/11/2023
Claims,Claims,"$14,960.03 ",5/17/2023
Claims,Claims,"$3,420.43 ",5/18/2023
Claims,Claims,"$7,000,000.00 ",5/19/2023
Claims,Claims,"$28,721.47 ",5/24/2023
Claims,Claims,"$68,045.06 ",5/25/2023
Claims,Claims,"$2,768.23 ",5/31/2023
Claims,Claims,"$1,571.00 ",6/1/2023
Claims,Claims,"$128,478.68 ",6/7/2023
Claims,Claims,"$8,850.12 ",6/8/2023
Claims,Claims,"$5,252.96 ",6/14/2023
Claims,Claims,"$4,675.84 ",6/15/2023
Claims,Claims,"$10,300.22 ",6/21/2023
Claims,Claims,"$1,564.20 ",6/22/2023
Claims,Claims,"$27,101.33 ",6/28/2023
Claims,Claims,"$98,767.55 ",6/29/2023
Claims,Claims,"$17,048.62 ",7/6/2023
Claims,Claims,"$50,362.35 ",7/12/2023
Claims,Claims,"$6,252.95 ",7/13/2023
Claims,Claims,"$103,824.55 ",7/19/2023
Claims,Claims,"$8,096.92 ",7/20/2023
Claims,Claims,"$9,981.99 ",7/26/2023
Claims,Claims,"$13,718.10 ",7/27/2023
Claims,Claims,"$9,115.88 ",8/2/2023
Claims,Claims,$680.00 ,8/3/2023
Claims,Claims,"$99,421.42 ",8/4/2023
Claims,Claims,"$16,855.22 ",8/9/2023
Claims,Claims,"$31,842.20 ",8/10/2023
Claims,Claims,"$12,397.12 ",8/16/2023
Claims,Claims,"$15,799.89 ",8/17/2023
Claims,Claims,"$8,113.01 ",8/23/2023
Claims,Claims,"$97,569.15 ",8/24/2023
Claims,Claims,"$37,446.44 ",8/30/2023
Claims,Claims,"$13,798.46 ",8/31/2023
Claims,Claims,"$15,816.61 ",9/6/2023
Claims,Claims,"$142,154.97 ",9/7/2023
Claims,Claims,"$1,279.34 ",9/8/2023
Claims,Claims,"$18,229.93 ",9/13/2023
Claims,Claims,"$19,229.40 ",9/14/2023
Claims,Claims,"$11,533.82 ",9/20/2023
Claims,Claims,"$3,165.14 ",9/21/2023
Claims,Claims,"$23,934.04 ",9/27/2023
Claims,Claims,"$43,316.31 ",9/28/2023
Claims,Claims,"$3,403.91 ",10/4/2023
Claims,Claims,"$109,950.11 ",10/5/2023
Claims,Claims,"$80,638.06 ",10/11/2023
Claims,Claims,"$45,365.15 ",10/12/2023
Claims,Claims,"$10,973.30 ",10/18/2023
Claims,Claims,"$26,881.10 ",10/19/2023
Claims,Claims,"$5,641.97 ",10/25/2023
Claims,Claims,"$118,486.55 ",10/26/2023
Claims,Claims,"$9,733.87 ",10/31/2023
Claims,Claims,"$4,234.99 ",11/1/2023
Claims,Claims,"$20,750.16 ",11/2/2023
Claims,Claims,"$6,536.37 ",11/8/2023
Claims,Claims,"$22,585.39 ",11/9/2023
Claims,Claims,"$11,833.59 ",11/15/2023
Claims,Claims,"$21,203.71 ",11/16/2023
Claims,Claims,$50.00 ,11/21/2023
Claims,Claims,"$16,975.10 ",11/22/2023
Claims,Claims,"$83,034.46 ",11/24/2023
Claims,Claims,"$4,277.52 ",11/29/2023
Claims,Claims,"$5,421.11 ",11/30/2023
Claims,Claims,"$15,255.42 ",12/6/2023
Claims,Claims,"$137,309.02 ",12/7/2023
Claims,Claims,"$4,517.50 ",12/13/2023
Claims,Claims,"$75,487.96 ",12/14/2023
Claims,Claims,"$207,167.93 ",12/21/2023
Claims,Claims,"$23,339.94 ",12/22/2023
Claims,Claims,"$5,826.50 ",12/28/2023
Claims,Claims,"$9,589.74 ",12/29/2023
Clarity Partners LLC,Services,"$2,686.35 ",1/12/2023
Clarity Partners LLC,Equipment,"$26,000.00 ",2/16/2023
Clarity Partners LLC,Services,"$3,361.44 ",2/16/2023
Clarity Partners LLC,Services,"$4,061.06 ",4/13/2023
Clarity Partners LLC,Services,"$4,444.85 ",6/29/2023
Clarity Partners LLC,Services,"$1,580.74 ",8/4/2023
Clarity Partners LLC,Services,"$1,601.19 ",8/31/2023
Clarity Partners LLC,Services,"$2,598.11 ",10/5/2023
Clarity Partners LLC,Services,"$4,466.32 ",11/9/2023
Clarity Partners LLC,Services,"$4,950.67 ",12/7/2023
Clean Energy,Services,"$2,040.00 ",8/10/2023
Clean Energy,Services,"$4,080.00 ",9/28/2023
Clean Energy,Services,"$2,040.00 ",11/9/2023
Clean Energy,Services,"$3,034.50 ",12/14/2023
Clear Height Properties Lively LLC,Leases and Rentals,"$7,427.16 ",1/5/2023
Clear Height Properties Lively LLC,Leases and Rentals,"$7,427.16 ",1/31/2023
Clear Height Properties Lively LLC,Leases and Rentals,"$8,145.83 ",2/28/2023
Clear Height Properties Lively LLC,Leases and Rentals,"$8,145.83 ",3/30/2023
Clear Height Properties Lively LLC,Leases and Rentals,"$8,145.83 ",5/31/2023
Clear Height Properties Lively LLC,Leases and Rentals,"$8,145.83 ",6/8/2023
Clear Height Properties Lively LLC,Leases and Rentals,"$8,145.83 ",7/6/2023
Clear Height Properties Lively LLC,Leases and Rentals,"$8,145.83 ",7/27/2023
Clear Height Properties Lively LLC,Leases and Rentals,"$8,145.83 ",8/31/2023
Clear Height Properties Lively LLC,Leases and Rentals,"$8,145.83 ",10/5/2023
Clear Height Properties Lively LLC,Leases and Rentals,"$8,145.83 ",11/9/2023
Clear Height Properties Lively LLC,Leases and Rentals,"$8,145.83 ",12/7/2023
Clever Devices Ltd,Services,"$44,964.00 ",3/16/2023
Coach & Equipment Bus Sales Inc,Vehicle,"$743,600.40 ",6/22/2023
Coach & Equipment Bus Sales Inc,Vehicle,"$743,600.40 ",7/20/2023
Coach & Equipment Bus Sales Inc,Vehicle,"$278,850.15 ",8/4/2023
Coach & Equipment Bus Sales Inc,Vehicle,"$557,700.30 ",9/8/2023
Coach & Equipment Bus Sales Inc,Vehicle,"$185,900.10 ",9/21/2023
Coach & Equipment Bus Sales Inc,Vehicle,"$92,950.05 ",10/5/2023
Coach & Equipment Bus Sales Inc,Vehicle,"$836,550.45 ",10/26/2023
Coach & Equipment Bus Sales Inc,Vehicle,"$743,600.40 ",10/31/2023
Coffman Truck Sales Inc,Fuel/Parts Inventory,"$28,085.66 ",1/5/2023
Coffman Truck Sales Inc,Materials and Supplies,$560.00 ,1/5/2023
Coffman Truck Sales Inc,Miscellaneous,"($2,640.00)",1/5/2023
Coffman Truck Sales Inc,Fuel/Parts Inventory,"$3,113.28 ",1/19/2023
Coffman Truck Sales Inc,Services,$160.00 ,1/19/2023
Coffman Truck Sales Inc,Fuel/Parts Inventory,"$17,153.80 ",1/26/2023
Coffman Truck Sales Inc,Services,$120.00 ,1/26/2023
Coffman Truck Sales Inc,Fuel/Parts Inventory,"$3,624.70 ",1/31/2023
Coffman Truck Sales Inc,Services,$40.00 ,1/31/2023
Coffman Truck Sales Inc,Fuel/Parts Inventory,"$47,729.90 ",2/9/2023
Coffman Truck Sales Inc,Fuel/Parts Inventory,"$46,621.47 ",2/16/2023
Coffman Truck Sales Inc,Services,$160.00 ,2/16/2023
Coffman Truck Sales Inc,Fuel/Parts Inventory,"$10,731.65 ",2/23/2023
Coffman Truck Sales Inc,Fuel/Parts Inventory,"$30,778.13 ",2/28/2023
Coffman Truck Sales Inc,Materials and Supplies,"$4,214.28 ",2/28/2023
Coffman Truck Sales Inc,Miscellaneous,($0.03),2/28/2023
Coffman Truck Sales Inc,Services,$80.00 ,2/28/2023
Coffman Truck Sales Inc,Fuel/Parts Inventory,"$15,270.94 ",3/9/2023
Coffman Truck Sales Inc,Fuel/Parts Inventory,"$26,981.79 ",3/16/2023
Coffman Truck Sales Inc,Services,$120.00 ,3/16/2023
Coffman Truck Sales Inc,Fuel/Parts Inventory,"$5,410.25 ",3/23/2023
Coffman Truck Sales Inc,Materials and Supplies,"$2,107.14 ",3/23/2023
Coffman Truck Sales Inc,Services,$80.00 ,3/23/2023
Coffman Truck Sales Inc,Fuel/Parts Inventory,"$26,940.39 ",3/30/2023
Coffman Truck Sales Inc,Services,$40.00 ,3/30/2023
Coffman Truck Sales Inc,Fuel/Parts Inventory,"$17,300.36 ",4/13/2023
Coffman Truck Sales Inc,Materials and Supplies,$95.00 ,4/13/2023
Coffman Truck Sales Inc,Fuel/Parts Inventory,"$56,170.19 ",4/20/2023
Coffman Truck Sales Inc,Services,$40.00 ,4/20/2023
Coffman Truck Sales Inc,Fuel/Parts Inventory,"$71,168.85 ",4/27/2023
Coffman Truck Sales Inc,Services,$80.00 ,4/27/2023
Coffman Truck Sales Inc,Fuel/Parts Inventory,"$20,841.47 ",5/4/2023
Coffman Truck Sales Inc,Materials and Supplies,$30.00 ,5/4/2023
Coffman Truck Sales Inc,Services,$160.00 ,5/4/2023
Coffman Truck Sales Inc,Fuel/Parts Inventory,"$48,324.72 ",5/11/2023
Coffman Truck Sales Inc,Materials and Supplies,($68.64),5/11/2023
Coffman Truck Sales Inc,Fuel/Parts Inventory,"$8,634.74 ",5/18/2023
Coffman Truck Sales Inc,Services,$40.00 ,5/18/2023
Coffman Truck Sales Inc,Fuel/Parts Inventory,"$51,126.32 ",5/25/2023
Coffman Truck Sales Inc,Materials and Supplies,$13.00 ,5/25/2023
Coffman Truck Sales Inc,Services,$40.00 ,5/25/2023
Coffman Truck Sales Inc,Fuel/Parts Inventory,"$32,862.79 ",5/31/2023
Coffman Truck Sales Inc,Services,$80.00 ,5/31/2023
Coffman Truck Sales Inc,Fuel/Parts Inventory,"$13,490.30 ",6/8/2023
Coffman Truck Sales Inc,Materials and Supplies,$30.00 ,6/8/2023
Coffman Truck Sales Inc,Fuel/Parts Inventory,"$32,595.91 ",6/15/2023
Coffman Truck Sales Inc,Materials and Supplies,$56.00 ,6/15/2023
Coffman Truck Sales Inc,Services,$80.00 ,6/15/2023
Coffman Truck Sales Inc,Fuel/Parts Inventory,"$31,310.78 ",6/22/2023
Coffman Truck Sales Inc,Services,$80.00 ,6/22/2023
Coffman Truck Sales Inc,Fuel/Parts Inventory,"$33,410.68 ",6/29/2023
Coffman Truck Sales Inc,Materials and Supplies,$17.90 ,6/29/2023
Coffman Truck Sales Inc,Fuel/Parts Inventory,"$17,901.45 ",7/6/2023
Coffman Truck Sales Inc,Services,$160.00 ,7/6/2023
Coffman Truck Sales Inc,Fuel/Parts Inventory,"$40,588.33 ",7/13/2023
Coffman Truck Sales Inc,Fuel/Parts Inventory,"$13,725.80 ",7/20/2023
Coffman Truck Sales Inc,Services,$80.00 ,7/27/2023
Coffman Truck Sales Inc,Fuel/Parts Inventory,"$42,645.78 ",8/4/2023
Coffman Truck Sales Inc,Services,$240.00 ,8/4/2023
Coffman Truck Sales Inc,Fuel/Parts Inventory,"$32,571.71 ",8/10/2023
Coffman Truck Sales Inc,Materials and Supplies,$35.00 ,8/10/2023
Coffman Truck Sales Inc,Services,$40.00 ,8/10/2023
Coffman Truck Sales Inc,Fuel/Parts Inventory,"$46,139.41 ",8/17/2023
Coffman Truck Sales Inc,Materials and Supplies,$25.00 ,8/17/2023
Coffman Truck Sales Inc,Services,$40.00 ,8/17/2023
Coffman Truck Sales Inc,Fuel/Parts Inventory,"$25,668.60 ",8/24/2023
Coffman Truck Sales Inc,Fuel/Parts Inventory,"$35,619.97 ",8/31/2023
Coffman Truck Sales Inc,Materials and Supplies,"($1,050.00)",8/31/2023
Coffman Truck Sales Inc,Services,$80.00 ,8/31/2023
Coffman Truck Sales Inc,Fuel/Parts Inventory,"$1,550.84 ",9/8/2023
Coffman Truck Sales Inc,Services,$40.00 ,9/8/2023
Coffman Truck Sales Inc,Fuel/Parts Inventory,"$18,645.60 ",9/14/2023
Coffman Truck Sales Inc,Fuel/Parts Inventory,"$72,755.75 ",9/21/2023
Coffman Truck Sales Inc,Services,$120.00 ,9/21/2023
Coffman Truck Sales Inc,Fuel/Parts Inventory,"$7,522.47 ",9/28/2023
Coffman Truck Sales Inc,Services,$120.00 ,9/28/2023
Coffman Truck Sales Inc,Fuel/Parts Inventory,"$3,084.60 ",10/5/2023
Coffman Truck Sales Inc,Fuel/Parts Inventory,"$6,559.47 ",10/26/2023
Coffman Truck Sales Inc,Fuel/Parts Inventory,"$90,954.62 ",10/31/2023
Coffman Truck Sales Inc,Services,$200.00 ,10/31/2023
Coffman Truck Sales Inc,Fuel/Parts Inventory,"$23,628.69 ",11/9/2023
Coffman Truck Sales Inc,Materials and Supplies,($250.00),11/9/2023
Coffman Truck Sales Inc,Services,$80.00 ,11/9/2023
Coffman Truck Sales Inc,Fuel/Parts Inventory,"$53,885.39 ",11/16/2023
Coffman Truck Sales Inc,Services,$40.00 ,11/16/2023
Coffman Truck Sales Inc,Fuel/Parts Inventory,"$55,690.76 ",11/24/2023
Coffman Truck Sales Inc,Services,$40.00 ,11/24/2023
Coffman Truck Sales Inc,Fuel/Parts Inventory,"$14,273.69 ",11/30/2023
Coffman Truck Sales Inc,Services,$80.00 ,11/30/2023
Coffman Truck Sales Inc,Services,$40.00 ,12/7/2023
Coffman Truck Sales Inc,Services,$80.00 ,12/14/2023
Coffman Truck Sales Inc,Fuel/Parts Inventory,$723.02 ,12/21/2023
Coffman Truck Sales Inc,Services,$80.00 ,12/21/2023
Coffman Truck Sales Inc,Fuel/Parts Inventory,"$19,637.75 ",12/29/2023
Coffman Truck Sales Inc,Services,$120.00 ,12/29/2023
College of Lake County,Services,"$2,920.00 ",11/9/2023
Colley Elevator Co,Services,$483.00 ,1/19/2023
Colley Elevator Co,Services,$862.00 ,1/26/2023
Colley Elevator Co,Services,$287.00 ,1/31/2023
Colley Elevator Co,Services,$293.00 ,2/16/2023
Colley Elevator Co,Services,$243.00 ,2/28/2023
Colley Elevator Co,Services,$155.00 ,3/9/2023
Colley Elevator Co,Services,$278.00 ,3/16/2023
Colley Elevator Co,Services,$175.00 ,3/30/2023
Colley Elevator Co,Services,$325.00 ,4/13/2023
Colley Elevator Co,Services,"$1,062.00 ",5/11/2023
Colley Elevator Co,Services,$164.00 ,5/25/2023
Colley Elevator Co,Services,$339.00 ,6/8/2023
Colley Elevator Co,Services,$164.00 ,6/15/2023
Colley Elevator Co,Services,$307.00 ,6/22/2023
Colley Elevator Co,Services,$250.00 ,6/29/2023
Colley Elevator Co,Services,$164.00 ,7/20/2023
Colley Elevator Co,Services,$161.00 ,7/27/2023
Colley Elevator Co,Services,$164.00 ,8/17/2023
Colley Elevator Co,Services,$470.00 ,8/24/2023
Colley Elevator Co,Services,$164.00 ,9/14/2023
Colley Elevator Co,Services,$175.00 ,9/21/2023
Colley Elevator Co,Services,"$1,416.00 ",9/28/2023
Colley Elevator Co,Services,$908.00 ,11/16/2023
Colley Elevator Co,Services,$175.00 ,12/7/2023
Colley Elevator Co,Services,$335.00 ,12/14/2023
Combined Sales Company,Materials and Supplies,$727.50 ,1/19/2023
Combined Sales Company,Materials and Supplies,"$2,793.52 ",5/11/2023
Combined Sales Company,Materials and Supplies,"$1,031.85 ",9/14/2023
Combined Sales Company,Materials and Supplies,$422.00 ,9/28/2023
Comcast,Services,"$1,006.37 ",1/5/2023
Comcast,Utilities,$142.17 ,1/5/2023
Comcast,Services,"$1,196.39 ",1/12/2023
Comcast,Services,$515.71 ,1/19/2023
Comcast,Services,$210.27 ,1/26/2023
Comcast,Services,$401.12 ,2/2/2023
Comcast,Utilities,$173.05 ,2/2/2023
Comcast,Services,"$1,652.30 ",2/9/2023
Comcast,Services,$447.43 ,2/23/2023
Comcast,Services,$517.73 ,3/2/2023
Comcast,Services,$846.84 ,3/9/2023
Comcast,Utilities,$173.05 ,3/9/2023
Comcast,Services,"$1,007.22 ",3/16/2023
Comcast,Services,$575.70 ,3/23/2023
Comcast,Services,$174.35 ,3/30/2023
Comcast,Services,"$1,008.17 ",4/6/2023
Comcast,Utilities,$173.05 ,4/6/2023
Comcast,Services,"$1,085.97 ",4/13/2023
Comcast,Services,$880.17 ,4/20/2023
Comcast,Services,$595.00 ,4/27/2023
Comcast,Services,$413.01 ,5/4/2023
Comcast,Utilities,$172.93 ,5/4/2023
Comcast,Utilities,"$1,379.05 ",5/18/2023
Comcast,Utilities,$282.62 ,5/25/2023
Comcast,Utilities,"$1,671.91 ",6/15/2023
Comcast,Utilities,"$1,170.70 ",6/22/2023
Comcast,Utilities,$605.94 ,7/6/2023
Comcast,Utilities,"$1,680.98 ",7/13/2023
Comcast,Utilities,$282.62 ,7/27/2023
Comcast,Utilities,"$1,254.88 ",8/3/2023
Comcast,Utilities,$993.53 ,8/10/2023
Comcast,Utilities,$381.86 ,8/24/2023
Comcast,Utilities,$282.62 ,8/31/2023
Comcast,Utilities,$942.87 ,9/7/2023
Comcast,Utilities,"$1,290.09 ",9/21/2023
Comcast,Utilities,$709.27 ,10/5/2023
Comcast,Utilities,"$1,379.12 ",10/12/2023
Comcast,Utilities,$595.00 ,10/26/2023
Comcast,Utilities,$631.86 ,11/2/2023
Comcast,Utilities,"$1,671.04 ",11/9/2023
Comcast,Utilities,"$1,179.63 ",11/30/2023
Comcast,Utilities,"$1,425.26 ",12/14/2023
Comcast,Utilities,$575.70 ,12/21/2023
Commercial Tire Services Inc,Materials and Supplies,"$1,876.76 ",2/9/2023
Commercial Tire Services Inc,Materials and Supplies,"$2,067.92 ",4/13/2023
Commercial Tire Services Inc,Materials and Supplies,"$1,046.96 ",7/13/2023
Commercial Tire Services Inc,Materials and Supplies,"$1,645.50 ",12/14/2023
Commonwealth Edison,Utilities,"$21,672.10 ",1/5/2023
Commonwealth Edison,Utilities,"$19,664.62 ",1/12/2023
Commonwealth Edison,Utilities,"$86,836.53 ",1/19/2023
Commonwealth Edison,Utilities,"$36,659.91 ",1/26/2023
Commonwealth Edison,Utilities,"$43,709.91 ",2/2/2023
Commonwealth Edison,Utilities,"$12,467.14 ",2/9/2023
Commonwealth Edison,Utilities,"$30,419.95 ",2/16/2023
Commonwealth Edison,Utilities,"$15,685.11 ",2/23/2023
Commonwealth Edison,Utilities,"$15,476.04 ",3/2/2023
Commonwealth Edison,Utilities,"$16,554.33 ",3/9/2023
Commonwealth Edison,Utilities,"$36,070.32 ",3/16/2023
Commonwealth Edison,Utilities,"$24,228.40 ",3/23/2023
Commonwealth Edison,Utilities,"$49,544.38 ",3/30/2023
Commonwealth Edison,Utilities,"$13,298.48 ",4/6/2023
Commonwealth Edison,Utilities,"$4,193.88 ",4/13/2023
Commonwealth Edison,Utilities,"$59,881.72 ",4/20/2023
Commonwealth Edison,Utilities,"$48,826.49 ",4/27/2023
Commonwealth Edison,Utilities,"$21,026.32 ",5/4/2023
Commonwealth Edison,Utilities,"$5,133.67 ",5/11/2023
Commonwealth Edison,Utilities,"$3,592.36 ",5/18/2023
Commonwealth Edison,Utilities,"$57,151.83 ",5/25/2023
Commonwealth Edison,Utilities,"$19,487.77 ",6/1/2023
Commonwealth Edison,Utilities,"$10,893.50 ",6/8/2023
Commonwealth Edison,Utilities,"$15,799.14 ",6/15/2023
Commonwealth Edison,Utilities,"$26,609.95 ",6/22/2023
Commonwealth Edison,Utilities,"$51,936.32 ",6/29/2023
Commonwealth Edison,Utilities,"$18,745.55 ",7/6/2023
Commonwealth Edison,Utilities,"$18,345.59 ",7/13/2023
Commonwealth Edison,Utilities,"$25,944.55 ",7/20/2023
Commonwealth Edison,Utilities,"$21,637.85 ",7/27/2023
Commonwealth Edison,Utilities,"$17,005.46 ",8/3/2023
Commonwealth Edison,Utilities,"$4,697.11 ",8/10/2023
Commonwealth Edison,Utilities,"$60,775.05 ",8/17/2023
Commonwealth Edison,Utilities,$111.91 ,8/24/2023
Commonwealth Edison,Utilities,"$70,825.65 ",8/31/2023
Commonwealth Edison,Utilities,"$22,043.88 ",9/7/2023
Commonwealth Edison,Utilities,"$1,869.88 ",9/14/2023
Commonwealth Edison,Utilities,"$42,761.85 ",9/21/2023
Commonwealth Edison,Utilities,"$70,302.65 ",9/28/2023
Commonwealth Edison,Utilities,"$5,941.87 ",10/5/2023
Commonwealth Edison,Miscellaneous,"$60,000.00 ",10/10/2023
Commonwealth Edison,Utilities,"$8,984.86 ",10/12/2023
Commonwealth Edison,Utilities,"$74,223.26 ",10/19/2023
Commonwealth Edison,Utilities,"$2,234.08 ",10/26/2023
Commonwealth Edison,Utilities,"$14,560.59 ",11/2/2023
Commonwealth Edison,Utilities,"$6,763.98 ",11/9/2023
Commonwealth Edison,Utilities,"$1,458.81 ",11/16/2023
Commonwealth Edison,Utilities,"$92,606.15 ",11/22/2023
Commonwealth Edison,Utilities,"$19,368.77 ",11/30/2023
Commonwealth Edison,Utilities,$387.81 ,12/7/2023
Commonwealth Edison,Utilities,"$13,756.15 ",12/14/2023
Commonwealth Edison,Utilities,"$94,910.78 ",12/21/2023
Commonwealth Edison,Utilities,"$8,707.72 ",12/28/2023
Complete Landscaping LLC,Services,"$3,580.00 ",6/1/2023
Complete Landscaping LLC,Services,"$1,790.00 ",7/6/2023
Complete Landscaping LLC,Services,"$1,790.00 ",8/10/2023
Complete Landscaping LLC,Services,"$1,790.00 ",9/14/2023
Complete Landscaping LLC,Services,"$16,600.00 ",9/28/2023
Complete Landscaping LLC,Services,"$1,790.00 ",10/5/2023
Complete Landscaping LLC,Services,"$1,790.00 ",11/9/2023
Complete Landscaping LLC,Services,"$1,790.00 ",11/30/2023
Compulink Technologies Inc,Services,"$22,001.14 ",5/11/2023
Compulink Technologies Inc,Services,"$4,950.00 ",6/15/2023
Computer Aid Inc,Services,"$4,857.50 ",1/19/2023
Computer Aid Inc,Services,"$359,389.59 ",3/9/2023
Computer Aid Inc,Services,"$4,205.00 ",3/30/2023
Computer Aid Inc,Services,"$1,885.00 ",6/15/2023
Computer Aid Inc,Services,"$1,595.00 ",6/29/2023
Computer Aid Inc,Services,"$423,117.63 ",8/4/2023
Computer Aid Inc,Services,"$133,170.45 ",8/24/2023
Computer Aid Inc,Services,"$11,998.75 ",8/31/2023
Computer Aid Inc,Services,"$161,145.60 ",10/26/2023
Computer Aid Inc,Services,"$206,686.00 ",11/16/2023
Computer Aid Inc,Services,"$405,821.66 ",11/30/2023
Computer Aid Inc,Services,"$37,830.54 ",12/14/2023
Computer Sciences Corporation,Services,"$27,635.00 ",4/13/2023
Computer Sciences Corporation,Services,"$13,817.50 ",10/5/2023
Concentra Medical Center,Services,$238.00 ,2/14/2023
Concentra Medical Center,Services,$238.00 ,3/21/2023
Concentra Medical Center,Services,$119.00 ,5/2/2023
Concentra Medical Center,Services,$119.00 ,6/21/2023
Concentra Medical Center,Services,$238.00 ,6/27/2023
Concentra Medical Center,Services,$119.00 ,7/5/2023
Concentra Medical Center,Services,$119.00 ,8/9/2023
Concentra Medical Center,Services,$119.00 ,8/22/2023
Concentra Medical Center,Services,$542.50 ,10/24/2023
Concentra Medical Center,Services,$238.00 ,12/6/2023
Concentra Medical Centers  Occupational,Services,$899.61 ,1/5/2023
Concentra Medical Centers  Occupational,Services,$90.10 ,1/19/2023
Concentra Medical Centers  Occupational,Services,$546.63 ,1/26/2023
Concentra Medical Centers  Occupational,Services,"$9,466.64 ",2/9/2023
Concentra Medical Centers  Occupational,Services,"$1,027.98 ",2/16/2023
Concentra Medical Centers  Occupational,Services,"$1,414.21 ",3/9/2023
Concentra Medical Centers  Occupational,Services,$984.98 ,3/23/2023
Concentra Medical Centers  Occupational,Services,"$3,773.07 ",3/27/2023
Concentra Medical Centers  Occupational,Services,$169.77 ,4/13/2023
Concentra Medical Centers  Occupational,Services,$70.87 ,4/27/2023
Concentra Medical Centers  Occupational,Services,"$5,230.57 ",5/11/2023
Concentra Medical Centers  Occupational,Services,$416.48 ,5/25/2023
Concentra Medical Centers  Occupational,Services,$158.60 ,6/29/2023
Concentra Medical Centers  Occupational,Services,"$1,480.25 ",7/6/2023
Concentra Medical Centers  Occupational,Services,$119.00 ,8/4/2023
Concentra Medical Centers  Occupational,Services,"$1,848.45 ",8/10/2023
Concentra Medical Centers  Occupational,Services,"$9,948.24 ",8/17/2023
Concentra Medical Centers  Occupational,Services,"$2,400.69 ",8/24/2023
Concentra Medical Centers  Occupational,Services,$119.00 ,8/31/2023
Concentra Medical Centers  Occupational,Services,$970.30 ,9/8/2023
Concentra Medical Centers  Occupational,Services,$79.14 ,9/21/2023
Concentra Medical Centers  Occupational,Services,"$2,008.08 ",10/5/2023
Concentra Medical Centers  Occupational,Services,$83.20 ,10/12/2023
Concentra Medical Centers  Occupational,Services,$357.00 ,10/26/2023
Concentra Medical Centers  Occupational,Services,"$3,520.85 ",11/9/2023
Concentra Medical Centers  Occupational,Services,$476.00 ,11/16/2023
Concentra Medical Centers  Occupational,Services,"$3,525.98 ",11/24/2023
Concentra Medical Centers  Occupational,Services,"$5,920.27 ",12/7/2023
Concentra Medical Centers  Occupational,Services,"$7,650.04 ",12/14/2023
Concentra Medical Centers  Occupational,Services,$99.78 ,12/21/2023
Concentra Medical Centers  Occupational,Services,$214.48 ,12/29/2023
Connected Automotive Systems of NE Inc,Services,"$15,540.00 ",12/14/2023
Connelly Electric Co,Building/Bldg Improvement,$234.00 ,6/22/2023
Connelly Electric Co,Building/Bldg Improvement,"$11,110.00 ",7/13/2023
Connelly Electric Co,Equipment,"$8,888.00 ",7/13/2023
Connelly Electric Co,Building/Bldg Improvement,"$3,299.65 ",8/4/2023
Connelly Electric Co,Equipment,"$2,639.76 ",8/4/2023
Connelly Electric Co,Building/Bldg Improvement,"$22,946.00 ",10/31/2023
Continental Resources Inc,Services,"$45,652.00 ",4/13/2023
Continental Resources Inc,Services,"$14,285.00 ",4/27/2023
Continental Resources Inc,Equipment,"$62,112.73 ",5/25/2023
Continental Resources Inc,Services,"$15,885.00 ",5/31/2023
Continental Resources Inc,Services,"$5,452.40 ",7/20/2023
Continental Resources Inc,Services,"$5,452.40 ",8/10/2023
Continental Resources Inc,Services,"$5,452.40 ",9/14/2023
Continental Resources Inc,Services,"$35,465.00 ",11/9/2023
Continental Resources Inc,Services,"$5,295.00 ",12/14/2023
Contractor Advisors Business Development Corp,Miscellaneous,$860.00 ,11/9/2023
Cook County Assessors Office,Equipment,$440.00 ,10/26/2023
Cook County Clerk,Equipment,$196.00 ,5/18/2023
Cook County Clerk,Services,$50.00 ,12/28/2023
Cook DuPage Transportation Co,Miscellaneous,"($2,463.00)",1/12/2023
Cook DuPage Transportation Co,Purchased Transportation,"$466,652.51 ",1/12/2023
Cook DuPage Transportation Co,Miscellaneous,"($7,883.79)",2/2/2023
Cook DuPage Transportation Co,Purchased Transportation,"$3,224,342.93 ",2/2/2023
Cook DuPage Transportation Co,Miscellaneous,"($2,487.00)",2/23/2023
Cook DuPage Transportation Co,Purchased Transportation,"$548,975.03 ",2/23/2023
Cook DuPage Transportation Co,Miscellaneous,"($7,883.79)",2/28/2023
Cook DuPage Transportation Co,Purchased Transportation,"$3,212,278.29 ",2/28/2023
Cook DuPage Transportation Co,Miscellaneous,"($2,487.00)",3/8/2023
Cook DuPage Transportation Co,Purchased Transportation,"$606,942.26 ",3/8/2023
Cook DuPage Transportation Co,Miscellaneous,"($7,883.79)",3/30/2023
Cook DuPage Transportation Co,Purchased Transportation,"$3,073,443.02 ",3/30/2023
Cook DuPage Transportation Co,Miscellaneous,"($2,487.00)",4/17/2023
Cook DuPage Transportation Co,Purchased Transportation,"$579,857.95 ",4/17/2023
Cook DuPage Transportation Co,Miscellaneous,"($7,798.20)",4/27/2023
Cook DuPage Transportation Co,Purchased Transportation,"$3,372,987.99 ",4/27/2023
Cook DuPage Transportation Co,Miscellaneous,"($2,460.00)",5/9/2023
Cook DuPage Transportation Co,Purchased Transportation,"$646,961.06 ",5/9/2023
Cook DuPage Transportation Co,Miscellaneous,"($7,798.20)",5/25/2023
Cook DuPage Transportation Co,Purchased Transportation,"$3,336,192.12 ",5/25/2023
Cook DuPage Transportation Co,Miscellaneous,"($7,798.20)",6/30/2023
Cook DuPage Transportation Co,Purchased Transportation,"$3,461,149.49 ",6/30/2023
Cook DuPage Transportation Co,Miscellaneous,"($2,460.00)",7/20/2023
Cook DuPage Transportation Co,Purchased Transportation,"$585,411.06 ",7/20/2023
Cook DuPage Transportation Co,Miscellaneous,"($7,814.05)",8/4/2023
Cook DuPage Transportation Co,Purchased Transportation,"$3,353,455.36 ",8/4/2023
Cook DuPage Transportation Co,Miscellaneous,"($2,465.00)",8/17/2023
Cook DuPage Transportation Co,Purchased Transportation,"$575,663.73 ",8/17/2023
Cook DuPage Transportation Co,Miscellaneous,"($7,814.05)",9/7/2023
Cook DuPage Transportation Co,Purchased Transportation,"$3,273,165.10 ",9/7/2023
Cook DuPage Transportation Co,Miscellaneous,"($2,465.00)",9/21/2023
Cook DuPage Transportation Co,Purchased Transportation,"$556,418.56 ",9/21/2023
Cook DuPage Transportation Co,Miscellaneous,"($7,814.05)",10/5/2023
Cook DuPage Transportation Co,Purchased Transportation,"$3,422,454.36 ",10/5/2023
Cook DuPage Transportation Co,Fuel/Parts Inventory,($26.45),10/26/2023
Cook DuPage Transportation Co,Miscellaneous,"($10,390.00)",10/26/2023
Cook DuPage Transportation Co,Purchased Transportation,"$3,861,699.89 ",10/26/2023
Cook DuPage Transportation Co,Miscellaneous,"($2,500.00)",11/9/2023
Cook DuPage Transportation Co,Purchased Transportation,"$497,778.44 ",11/9/2023
Cook DuPage Transportation Co,Miscellaneous,"($7,925.00)",11/30/2023
Cook DuPage Transportation Co,Purchased Transportation,"$3,269,811.91 ",11/30/2023
Cook DuPage Transportation Co,Miscellaneous,"($2,500.00)",12/14/2023
Cook DuPage Transportation Co,Purchased Transportation,"$604,263.73 ",12/14/2023
CopySet Printing,Services,$258.00 ,10/19/2023
CopySet Printing,Services,"$5,293.70 ",10/26/2023
Cosmopolitan Building Services Inc,Services,"$6,755.00 ",1/26/2023
Cosmopolitan Building Services Inc,Services,"$13,510.00 ",3/30/2023
Cosmopolitan Building Services Inc,Services,"$13,510.00 ",5/31/2023
Cosmopolitan Building Services Inc,Services,"$2,310.00 ",6/22/2023
Cosmopolitan Building Services Inc,Services,"$4,445.00 ",6/29/2023
Cosmopolitan Building Services Inc,Services,"$6,755.00 ",7/27/2023
Cosmopolitan Building Services Inc,Services,"$6,755.00 ",8/17/2023
Cosmopolitan Building Services Inc,Services,"$6,755.00 ",9/28/2023
Cosmopolitan Building Services Inc,Services,"$6,755.00 ",10/26/2023
Cosmopolitan Building Services Inc,Services,"$6,755.00 ",11/16/2023
Cosmopolitan Building Services Inc,Services,"$6,755.00 ",12/14/2023
CrateXpress,Miscellaneous,"$13,141.05 ",3/16/2023
Crawford Murphy & Tilly Inc,Building/Bldg Improvement,"$15,404.94 ",11/9/2023
Critical Uptime Services,Services,"$7,071.00 ",12/26/2023
Cross Points Sales Inc,Services,"$2,185.96 ",1/12/2023
Cross Points Sales Inc,Services,$150.00 ,3/23/2023
Cross Points Sales Inc,Services,$150.00 ,6/15/2023
Cross Points Sales Inc,Services,$150.00 ,9/7/2023
Crossline Supply LLC,Fuel/Parts Inventory,"$4,464.00 ",1/5/2023
Crossline Supply LLC,Fuel/Parts Inventory,"$2,868.00 ",1/12/2023
Crossline Supply LLC,Fuel/Parts Inventory,"$6,188.00 ",1/26/2023
Crossline Supply LLC,Fuel/Parts Inventory,"$13,392.00 ",1/31/2023
Crossline Supply LLC,Fuel/Parts Inventory,"$6,028.20 ",2/16/2023
Crossline Supply LLC,Fuel/Parts Inventory,"$5,021.40 ",2/28/2023
Crossline Supply LLC,Fuel/Parts Inventory,"$5,800.00 ",3/9/2023
Crossline Supply LLC,Fuel/Parts Inventory,"$1,957.50 ",3/16/2023
Crossline Supply LLC,Fuel/Parts Inventory,$562.00 ,3/23/2023
Crossline Supply LLC,Fuel/Parts Inventory,"$5,228.60 ",3/30/2023
Crossline Supply LLC,Fuel/Parts Inventory,"$15,510.63 ",4/13/2023
Crossline Supply LLC,Fuel/Parts Inventory,"$17,310.00 ",4/27/2023
Crossline Supply LLC,Fuel/Parts Inventory,"$12,353.95 ",5/4/2023
Crossline Supply LLC,Fuel/Parts Inventory,$888.78 ,5/18/2023
Crossline Supply LLC,Fuel/Parts Inventory,"$4,070.00 ",5/25/2023
Crossline Supply LLC,Fuel/Parts Inventory,"$13,701.00 ",5/31/2023
Crossline Supply LLC,Fuel/Parts Inventory,"$25,810.30 ",6/15/2023
Crossline Supply LLC,Fuel/Parts Inventory,"$16,092.00 ",6/29/2023
Crossline Supply LLC,Fuel/Parts Inventory,"$36,217.60 ",7/6/2023
Crossline Supply LLC,Fuel/Parts Inventory,"$43,918.00 ",7/13/2023
Crossline Supply LLC,Fuel/Parts Inventory,"$22,872.00 ",8/4/2023
Crossline Supply LLC,Fuel/Parts Inventory,"$6,189.50 ",8/17/2023
Crossline Supply LLC,Fuel/Parts Inventory,"$6,115.00 ",8/31/2023
Crossline Supply LLC,Fuel/Parts Inventory,"$34,306.80 ",9/14/2023
Crossline Supply LLC,Fuel/Parts Inventory,"$7,912.00 ",9/21/2023
Crossline Supply LLC,Fuel/Parts Inventory,"$25,281.00 ",9/28/2023
Crossline Supply LLC,Fuel/Parts Inventory,"$11,850.00 ",10/5/2023
Crossline Supply LLC,Fuel/Parts Inventory,"$32,723.00 ",10/26/2023
Crossline Supply LLC,Fuel/Parts Inventory,"$16,843.00 ",11/9/2023
Crossline Supply LLC,Fuel/Parts Inventory,"$18,731.70 ",11/16/2023
Crossline Supply LLC,Fuel/Parts Inventory,"$4,945.00 ",11/24/2023
Crossline Supply LLC,Fuel/Parts Inventory,$74.80 ,11/30/2023
Crossline Supply LLC,Fuel/Parts Inventory,"$1,455.80 ",12/7/2023
Crossline Supply LLC,Fuel/Parts Inventory,"$21,974.70 ",12/21/2023
Crossline Supply LLC,Fuel/Parts Inventory,"$4,390.00 ",12/29/2023
Crown Castle International Corp,Services,$913.35 ,1/5/2023
Crown Castle International Corp,Services,"$1,826.70 ",3/16/2023
Crown Castle International Corp,Services,$913.35 ,5/11/2023
Crown Castle International Corp,Services,$940.75 ,6/8/2023
Crown Castle International Corp,Services,"$1,881.50 ",8/10/2023
Crown Castle International Corp,Services,$940.75 ,9/28/2023
Crown Castle International Corp,Services,$940.75 ,10/19/2023
Crown Castle International Corp,Services,$940.75 ,11/24/2023
Crown Castle International Corp,Services,$940.75 ,12/7/2023
Crystal Maintenance Services Corp,Services,"$9,315.00 ",1/19/2023
Crystal Maintenance Services Corp,Services,"$9,315.00 ",2/9/2023
Crystal Maintenance Services Corp,Services,"$9,315.00 ",3/16/2023
Crystal Maintenance Services Corp,Services,"$7,365.00 ",4/13/2023
Crystal Maintenance Services Corp,Services,$621.00 ,5/4/2023
Crystal Maintenance Services Corp,Services,"$8,530.00 ",5/25/2023
Crystal Maintenance Services Corp,Services,"$8,530.00 ",6/29/2023
Crystal Maintenance Services Corp,Services,"$10,030.00 ",7/6/2023
Crystal Maintenance Services Corp,Services,"$8,530.00 ",8/10/2023
Crystal Maintenance Services Corp,Services,"$8,530.00 ",9/21/2023
Crystal Maintenance Services Corp,Services,"$8,530.00 ",10/5/2023
Crystal Maintenance Services Corp,Services,"$8,530.00 ",11/16/2023
Cubic Transportation Systems,Services,"$22,301.11 ",1/3/2023
Cubic Transportation Systems,Services,"$416,348.09 ",1/24/2023
Cubic Transportation Systems,Services,"$29,151.47 ",2/7/2023
Cubic Transportation Systems,Miscellaneous,"$3,620,088.00 ",3/1/2023
Cubic Transportation Systems,Services,"$18,509.37 ",3/13/2023
Cubic Transportation Systems,Services,"$4,077.41 ",4/17/2023
Cubic Transportation Systems,Services,"$33,733.26 ",5/8/2023
Cubic Transportation Systems,Services,"$25,832.17 ",5/15/2023
Cubic Transportation Systems,Services,"$20,549.64 ",5/31/2023
Cubic Transportation Systems,Services,"$425,827.45 ",6/22/2023
Cubic Transportation Systems,Services,"$381,361.11 ",6/29/2023
Cubic Transportation Systems,Equipment,"$270,362.53 ",7/13/2023
Cubic Transportation Systems,Services,"$52,248.27 ",7/27/2023
Cubic Transportation Systems,Services,"$143,941.12 ",8/4/2023
Cubic Transportation Systems,Miscellaneous,"$181,004.00 ",8/17/2023
Cubic Transportation Systems,Services,"$796,146.29 ",8/17/2023
Cubic Transportation Systems,Services,"$182,664.02 ",8/24/2023
Cubic Transportation Systems,Services,"$173,470.73 ",9/14/2023
Cubic Transportation Systems,Services,"$21,808.24 ",9/28/2023
Cubic Transportation Systems,Services,"$184,471.82 ",10/26/2023
Cubic Transportation Systems,Services,"$20,747.43 ",11/16/2023
Cubic Transportation Systems,Services,"$21,164.60 ",12/21/2023
Cubic Transportation Systems,Services,"$175,557.61 ",12/29/2023
Cummins Sales and Service,Services,"$74,628.56 ",1/26/2023
Cummins Sales and Service,Fuel/Parts Inventory,"$66,813.81 ",2/9/2023
Cummins Sales and Service,Fuel/Parts Inventory,"$21,464.89 ",2/16/2023
Cummins Sales and Service,Fuel/Parts Inventory,"$8,467.00 ",2/23/2023
Cummins Sales and Service,Fuel/Parts Inventory,"$4,238.31 ",3/9/2023
Cummins Sales and Service,Fuel/Parts Inventory,"$24,718.66 ",3/16/2023
Cummins Sales and Service,Fuel/Parts Inventory,"$8,761.23 ",3/23/2023
Cummins Sales and Service,Fuel/Parts Inventory,"$1,175.44 ",3/30/2023
Cummins Sales and Service,Fuel/Parts Inventory,"$8,342.37 ",4/13/2023
Cummins Sales and Service,Fuel/Parts Inventory,"$19,539.81 ",4/20/2023
Cummins Sales and Service,Materials and Supplies,$688.50 ,4/20/2023
Cummins Sales and Service,Fuel/Parts Inventory,"$31,004.74 ",4/27/2023
Cummins Sales and Service,Fuel/Parts Inventory,$646.81 ,5/4/2023
Cummins Sales and Service,Fuel/Parts Inventory,"$2,328.30 ",5/11/2023
Cummins Sales and Service,Services,"$52,591.76 ",5/11/2023
Cummins Sales and Service,Equipment,"$222,542.00 ",5/18/2023
Cummins Sales and Service,Fuel/Parts Inventory,"$1,353.79 ",5/18/2023
Cummins Sales and Service,Services,"$43,190.47 ",5/18/2023
Cummins Sales and Service,Fuel/Parts Inventory,"$16,104.23 ",5/25/2023
Cummins Sales and Service,Services,($93.87),5/25/2023
Cummins Sales and Service,Fuel/Parts Inventory,$63.58 ,5/31/2023
Cummins Sales and Service,Materials and Supplies,$0.20 ,5/31/2023
Cummins Sales and Service,Services,"$3,312.00 ",5/31/2023
Cummins Sales and Service,Fuel/Parts Inventory,"$8,200.80 ",6/15/2023
Cummins Sales and Service,Fuel/Parts Inventory,"$41,501.21 ",6/22/2023
Cummins Sales and Service,Fuel/Parts Inventory,$715.26 ,6/29/2023
Cummins Sales and Service,Materials and Supplies,$10.00 ,6/29/2023
Cummins Sales and Service,Fuel/Parts Inventory,"$17,712.93 ",7/6/2023
Cummins Sales and Service,Fuel/Parts Inventory,"$11,722.72 ",7/13/2023
Cummins Sales and Service,Fuel/Parts Inventory,"$10,132.54 ",7/20/2023
Cummins Sales and Service,Services,"$142,334.25 ",7/20/2023
Cummins Sales and Service,Fuel/Parts Inventory,$455.60 ,7/27/2023
Cummins Sales and Service,Fuel/Parts Inventory,"$16,059.18 ",8/4/2023
Cummins Sales and Service,Fuel/Parts Inventory,$454.09 ,8/10/2023
Cummins Sales and Service,Services,"$1,305.66 ",8/10/2023
Cummins Sales and Service,Equipment,"$260,426.00 ",8/17/2023
Cummins Sales and Service,Services,"$32,819.12 ",8/17/2023
Cummins Sales and Service,Fuel/Parts Inventory,"$11,704.00 ",8/24/2023
Cummins Sales and Service,Fuel/Parts Inventory,"$1,644.93 ",8/31/2023
Cummins Sales and Service,Fuel/Parts Inventory,$906.07 ,9/28/2023
Cummins Sales and Service,Services,"$152,598.17 ",10/9/2023
Cummins Sales and Service,Fuel/Parts Inventory,"$6,688.00 ",10/26/2023
Cummins Sales and Service,Services,$629.65 ,10/26/2023
Cummins Sales and Service,Materials and Supplies,($72.68),10/31/2023
Cummins Sales and Service,Services,"$2,933.19 ",10/31/2023
Cummins Sales and Service,Fuel/Parts Inventory,"$18,340.88 ",11/9/2023
Cummins Sales and Service,Materials and Supplies,$0.96 ,11/9/2023
Cummins Sales and Service,Fuel/Parts Inventory,"$15,766.86 ",11/24/2023
Cummins Sales and Service,Materials and Supplies,$865.02 ,11/24/2023
Cummins Sales and Service,Fuel/Parts Inventory,$605.17 ,11/30/2023
Cummins Sales and Service,Materials and Supplies,($0.01),11/30/2023
Cummins Sales and Service,Fuel/Parts Inventory,"$1,952.94 ",12/7/2023
Cummins Sales and Service,Fuel/Parts Inventory,"$3,170.17 ",12/29/2023
Cummins Sales and Service,Services,"$76,013.86 ",12/29/2023
Cynthia Aldridge,Health Insurance,$312.00 ,2/16/2023
Cynthia Aldridge,Health Insurance,$468.00 ,7/27/2023
D & K Truck Safety Lane,Services,$240.00 ,1/26/2023
D & K Truck Safety Lane,Services,$957.00 ,1/31/2023
D & K Truck Safety Lane,Services,$990.00 ,3/16/2023
D & K Truck Safety Lane,Services,"$1,044.00 ",3/23/2023
D & K Truck Safety Lane,Services,"$1,404.00 ",4/20/2023
D & K Truck Safety Lane,Services,$216.00 ,5/18/2023
D & K Truck Safety Lane,Services,$864.00 ,5/25/2023
D & K Truck Safety Lane,Services,"$1,116.00 ",6/22/2023
D & K Truck Safety Lane,Services,"$1,404.00 ",7/20/2023
D & K Truck Safety Lane,Services,"$1,368.00 ",8/17/2023
D & K Truck Safety Lane,Services,$396.00 ,9/14/2023
D & K Truck Safety Lane,Services,$720.00 ,9/21/2023
D & K Truck Safety Lane,Services,"$1,296.00 ",10/19/2023
D & K Truck Safety Lane,Services,$288.00 ,11/16/2023
D & K Truck Safety Lane,Services,$828.00 ,11/24/2023
D & K Truck Safety Lane,Services,"$1,260.00 ",12/14/2023
DT Taxi Express Inc,Purchased Transportation,$137.75 ,1/12/2023
DT Taxi Express Inc,Purchased Transportation,$73.50 ,2/28/2023
DT Taxi Express Inc,Purchased Transportation,$27.50 ,3/16/2023
DT Taxi Express Inc,Purchased Transportation,$103.75 ,5/25/2023
DT Taxi Express Inc,Purchased Transportation,$151.75 ,6/29/2023
DT Taxi Express Inc,Purchased Transportation,$85.50 ,7/6/2023
DT Taxi Express Inc,Purchased Transportation,$48.75 ,7/27/2023
DT Taxi Express Inc,Purchased Transportation,$101.25 ,8/4/2023
DT Taxi Express Inc,Purchased Transportation,$78.25 ,8/10/2023
Daniel Cutler,Health Insurance,$468.00 ,2/16/2023
Daniel Cutler,Health Insurance,$468.00 ,8/17/2023
Dartco Transmission Sales and Service Inc,Services,"$18,360.00 ",10/12/2023
Data-Tec Systems Inc,Services,$589.00 ,3/23/2023
Data-Tec Systems Inc,Services,$673.00 ,6/22/2023
Data-Tec Systems Inc,Services,$336.00 ,9/28/2023
Dataskill Inc,Services,"$40,719.76 ",2/2/2023
Davis Bancorp Incorporated,Services,"$48,854.37 ",4/5/2023
Davis Bancorp Incorporated,Services,"$7,916.25 ",5/4/2023
Davis Bancorp Incorporated,Services,"$35,372.15 ",5/18/2023
Davis Bancorp Incorporated,Services,"$39,097.50 ",6/22/2023
Davis Bancorp Incorporated,Services,"$39,950.30 ",7/20/2023
Davis Bancorp Incorporated,Services,"$35,114.45 ",8/17/2023
Davis Bancorp Incorporated,Services,"$41,472.70 ",9/21/2023
Davis Bancorp Incorporated,Services,"$37,407.70 ",10/26/2023
Davis Bancorp Incorporated,Services,"$43,194.90 ",11/24/2023
Davis Bancorp Incorporated,Services,"$44,309.75 ",12/21/2023
Delfs Garage & Service Inc,Services,$234.00 ,1/5/2023
Delfs Garage & Service Inc,Services,$282.00 ,1/26/2023
Delfs Garage & Service Inc,Services,$188.00 ,2/23/2023
Delfs Garage & Service Inc,Services,$188.00 ,3/30/2023
Delfs Garage & Service Inc,Services,$234.50 ,4/27/2023
Delfs Garage & Service Inc,Services,$211.50 ,5/31/2023
Delfs Garage & Service Inc,Services,$234.50 ,6/22/2023
Delfs Garage & Service Inc,Services,$258.50 ,7/27/2023
Delfs Garage & Service Inc,Services,$188.00 ,9/8/2023
Delfs Garage & Service Inc,Services,$211.00 ,10/5/2023
Delfs Garage & Service Inc,Services,$211.00 ,11/24/2023
Delfs Garage & Service Inc,Services,$258.00 ,12/21/2023
Dell Marketing LP,Services,"$90,624.50 ",1/19/2023
Dell Marketing LP,Services,"$4,327.70 ",7/27/2023
Dell Marketing LP,Services,"$143,089.60 ",12/21/2023
Della Mae Porter,Purchased Transportation,$30.00 ,6/15/2023
Deloitte Consulting LLP,Equipment,"$87,640.00 ",1/12/2023
Deloitte Consulting LLP,Services,"$15,712.49 ",4/13/2023
Deloitte Consulting LLP,Services,"$15,712.49 ",7/27/2023
Deloitte Consulting LLP,Equipment,"$133,287.12 ",11/24/2023
Deloitte Consulting LLP,Services,"$10,474.99 ",11/30/2023
Delta Sonic Car Wash,Materials and Supplies,$65.00 ,1/12/2023
Delta Sonic Car Wash,Services,$118.00 ,1/12/2023
Delta Sonic Car Wash,Materials and Supplies,$97.50 ,2/9/2023
Delta Sonic Car Wash,Services,$300.00 ,2/9/2023
Delta Sonic Car Wash,Materials and Supplies,$142.00 ,3/9/2023
Delta Sonic Car Wash,Services,$233.00 ,3/9/2023
Delta Sonic Car Wash,Materials and Supplies,$455.00 ,4/20/2023
Delta Sonic Car Wash,Services,$456.00 ,4/20/2023
Delta Sonic Car Wash,Materials and Supplies,$405.00 ,5/4/2023
Delta Sonic Car Wash,Services,$313.50 ,5/4/2023
Delta Sonic Car Wash,Services,$725.50 ,5/18/2023
Delta Sonic Car Wash,Materials and Supplies,$600.00 ,5/25/2023
Delta Sonic Car Wash,Materials and Supplies,$32.50 ,6/8/2023
Delta Sonic Car Wash,Services,$171.00 ,6/8/2023
Delta Sonic Car Wash,Services,$167.50 ,6/29/2023
Delta Sonic Car Wash,Materials and Supplies,$130.00 ,7/13/2023
Delta Sonic Car Wash,Miscellaneous,$399.00 ,8/3/2023
Delta Sonic Car Wash,Materials and Supplies,$130.00 ,8/17/2023
Delta Sonic Car Wash,Services,$28.50 ,8/17/2023
Delta Sonic Car Wash,Materials and Supplies,$405.00 ,8/31/2023
Delta Sonic Car Wash,Services,$150.00 ,8/31/2023
Delta Sonic Car Wash,Services,$239.50 ,9/14/2023
Delta Sonic Car Wash,Materials and Supplies,$97.50 ,9/21/2023
Delta Sonic Car Wash,Services,$57.00 ,9/28/2023
Delta Sonic Car Wash,Materials and Supplies,$195.00 ,10/12/2023
Delta Sonic Car Wash,Materials and Supplies,$405.00 ,10/19/2023
Delta Sonic Car Wash,Services,$262.50 ,10/19/2023
Delta Sonic Car Wash,Materials and Supplies,$445.00 ,11/2/2023
Delta Sonic Car Wash,Services,$412.50 ,11/2/2023
Delta Sonic Car Wash Systems Inc,Materials and Supplies,$101.50 ,11/9/2023
Delta Sonic Car Wash Systems Inc,Services,$142.50 ,11/30/2023
Delta Sonic Car Wash Systems Inc,Services,$412.50 ,12/14/2023
Delta Sonic Car Wash Systems Inc,Materials and Supplies,$425.00 ,12/28/2023
DemandTrans Solutions Inc,Services,"$4,000.00 ",1/19/2023
DemandTrans Solutions Inc,Services,"$4,000.00 ",2/28/2023
DemandTrans Solutions Inc,Services,"$4,000.00 ",3/30/2023
DemandTrans Solutions Inc,Services,"$4,000.00 ",4/20/2023
DemandTrans Solutions Inc,Services,"$4,000.00 ",5/25/2023
DemandTrans Solutions Inc,Services,"$4,000.00 ",6/29/2023
DemandTrans Solutions Inc,Services,"$4,000.00 ",7/20/2023
DemandTrans Solutions Inc,Services,"$8,000.00 ",9/28/2023
DemandTrans Solutions Inc,Services,"$4,000.00 ",10/12/2023
DemandTrans Solutions Inc,Services,"$12,750.00 ",11/16/2023
DemandTrans Solutions Inc,Services,"$4,000.00 ",12/21/2023
Dependable Fire Equipment Inc,Miscellaneous,"$1,864.31 ",3/23/2023
Dependable Fire Equipment Inc,Services,"$2,535.37 ",6/1/2023
Dependable Fire Equipment Inc,Services,"$1,689.91 ",7/6/2023
Dependable Fire Equipment Inc,Miscellaneous,"$1,978.88 ",8/10/2023
Dependable Fire Equipment Inc,Miscellaneous,"$2,682.39 ",11/9/2023
Derek Wagner,Purchased Transportation,$15.92 ,2/9/2023
Design Developers & Rehub Inc,Building/Bldg Improvement,"$142,000.00 ",2/2/2023
Diana M  Brzuchowski,Health Insurance,$468.00 ,2/16/2023
Divine Grace Transit LLC,Purchased Transportation,$199.75 ,5/25/2023
Divine Grace Transit LLC,Purchased Transportation,$509.50 ,6/29/2023
Divine Grace Transit LLC,Purchased Transportation,$295.00 ,7/6/2023
Divine Grace Transit LLC,Purchased Transportation,$108.00 ,7/27/2023
Divine Grace Transit LLC,Purchased Transportation,$78.25 ,8/24/2023
Divine Grace Transit LLC,Purchased Transportation,$50.50 ,8/31/2023
Divine Grace Transit LLC,Purchased Transportation,$334.75 ,9/14/2023
Divine Grace Transit LLC,Purchased Transportation,$832.00 ,9/28/2023
Divine Grace Transit LLC,Purchased Transportation,$490.00 ,10/12/2023
Divine Grace Transit LLC,Purchased Transportation,$705.50 ,11/24/2023
Divine Grace Transit LLC,Purchased Transportation,$238.25 ,11/30/2023
Divine Grace Transit LLC,Purchased Transportation,$670.00 ,12/29/2023
Domenic Marzullo,Health Insurance,$468.00 ,1/19/2023
Domenic Marzullo,Health Insurance,$468.00 ,8/3/2023
Dommion Trans Inc,Purchased Transportation,$181.75 ,1/26/2023
Dommion Trans Inc,Purchased Transportation,$349.00 ,2/23/2023
Dommion Trans Inc,Purchased Transportation,$147.75 ,3/9/2023
Dommion Trans Inc,Purchased Transportation,$59.50 ,3/30/2023
Dommion Trans Inc,Purchased Transportation,$80.75 ,5/18/2023
Dommion Trans Inc,Purchased Transportation,$91.75 ,6/15/2023
Dommion Trans Inc,Purchased Transportation,$8.00 ,6/29/2023
Dommion Trans Inc,Purchased Transportation,$62.50 ,7/6/2023
Dommion Trans Inc,Purchased Transportation,$59.50 ,7/27/2023
Dommion Trans Inc,Purchased Transportation,$48.25 ,8/3/2023
Doors Done Right Inc,Services,$744.88 ,1/31/2023
Drive Construction Inc,Building/Bldg Improvement,"$65,191.47 ",1/12/2023
Drive Construction Inc,Building/Bldg Improvement,"$44,727.64 ",2/23/2023
Drive Construction Inc,Services,"$2,355.40 ",3/16/2023
Dynamic Interactive Business System Inc,Services,"$26,652.00 ",5/18/2023
E vergent.com LLC,Services,"$3,820.00 ",1/5/2023
EATD Corp,Purchased Transportation,$46.75 ,5/11/2023
EATD Corp,Purchased Transportation,$31.50 ,6/29/2023
EATD Corp,Purchased Transportation,$45.75 ,7/6/2023
EATD Corp,Purchased Transportation,$29.25 ,9/14/2023
ERC Delivery Service Inc,Miscellaneous,$32.00 ,1/5/2023
ERC Delivery Service Inc,Miscellaneous,$40.00 ,1/26/2023
ERC Delivery Service Inc,Miscellaneous,$40.00 ,2/28/2023
ERC Delivery Service Inc,Miscellaneous,$40.00 ,5/4/2023
ERC Delivery Service Inc,Miscellaneous,$58.00 ,5/25/2023
ERC Delivery Service Inc,Miscellaneous,$58.00 ,6/29/2023
ERC Delivery Service Inc,Miscellaneous,$58.00 ,7/27/2023
ERC Delivery Service Inc,Miscellaneous,$58.00 ,9/21/2023
ERC Delivery Service Inc,Miscellaneous,$57.32 ,10/12/2023
ERC Delivery Service Inc,Miscellaneous,$58.00 ,10/19/2023
ERC Delivery Service Inc,Miscellaneous,$116.00 ,11/16/2023
ERC Delivery Service Inc,Services,$57.62 ,11/16/2023
ERC Delivery Service Inc,Miscellaneous,$58.00 ,12/29/2023
ESRI Inc,Services,"$25,918.00 ",3/16/2023
ESRI Inc,Services,"$28,240.00 ",12/7/2023
Eco Lighting Services and Technology LLC,Services,$403.00 ,1/19/2023
Eco Lighting Services and Technology LLC,Services,"$3,399.05 ",1/26/2023
Eco Lighting Services and Technology LLC,Services,"$3,226.83 ",2/9/2023
Eco Lighting Services and Technology LLC,Services,"$7,620.67 ",3/30/2023
Eco Lighting Services and Technology LLC,Services,"$2,398.44 ",5/31/2023
Eco Lighting Services and Technology LLC,Services,"$5,949.12 ",6/15/2023
Eco Lighting Services and Technology LLC,Services,"$2,148.98 ",6/22/2023
Eco Lighting Services and Technology LLC,Services,$733.17 ,7/6/2023
Eco Lighting Services and Technology LLC,Services,"$4,385.56 ",7/20/2023
Eco Lighting Services and Technology LLC,Services,$578.26 ,7/27/2023
Eco Lighting Services and Technology LLC,Services,$706.89 ,8/4/2023
Eco Lighting Services and Technology LLC,Services,"$3,373.31 ",8/17/2023
Eco Lighting Services and Technology LLC,Services,"$1,384.57 ",9/8/2023
Eco Lighting Services and Technology LLC,Services,$346.95 ,9/28/2023
Eco Lighting Services and Technology LLC,Services,"$3,494.57 ",10/5/2023
Eco Lighting Services and Technology LLC,Services,"$2,141.20 ",10/12/2023
Eco Lighting Services and Technology LLC,Services,"$1,530.10 ",10/19/2023
Eco Lighting Services and Technology LLC,Services,$790.44 ,10/31/2023
Eco Lighting Services and Technology LLC,Services,"$1,682.12 ",11/9/2023
Eco Lighting Services and Technology LLC,Services,$273.83 ,11/16/2023
Eco Lighting Services and Technology LLC,Services,"$3,455.96 ",12/21/2023
Edmund Kim,Fuel/Parts Inventory,$74.00 ,2/23/2023
Edwards Engineering Inc,Services,$562.36 ,1/5/2023
Edwards Engineering Inc,Services,"$33,130.02 ",1/19/2023
Edwards Engineering Inc,Services,"$31,600.00 ",1/26/2023
Edwards Engineering Inc,Services,"$2,321.31 ",1/31/2023
Edwards Engineering Inc,Services,"$3,435.89 ",2/9/2023
Edwards Engineering Inc,Services,"$64,359.98 ",2/16/2023
Edwards Engineering Inc,Services,"$26,373.67 ",2/23/2023
Edwards Engineering Inc,Services,$558.54 ,2/28/2023
Edwards Engineering Inc,Services,"$12,117.50 ",3/9/2023
Edwards Engineering Inc,Services,"$5,651.14 ",3/16/2023
Edwards Engineering Inc,Services,"$4,580.22 ",3/23/2023
Edwards Engineering Inc,Services,"$6,388.86 ",3/30/2023
Edwards Engineering Inc,Services,$496.00 ,4/13/2023
Edwards Engineering Inc,Services,"$25,601.99 ",4/27/2023
Edwards Engineering Inc,Services,"$1,809.64 ",5/4/2023
Edwards Engineering Inc,Services,$23.25 ,5/18/2023
Edwards Engineering Inc,Services,"$1,763.10 ",5/25/2023
Edwards Engineering Inc,Services,"$3,708.50 ",6/8/2023
Edwards Engineering Inc,Services,"$40,447.18 ",6/22/2023
Edwards Engineering Inc,Services,"$5,448.74 ",7/6/2023
Edwards Engineering Inc,Services,"$3,133.54 ",7/20/2023
Edwards Engineering Inc,Services,"$1,203.71 ",7/27/2023
Edwards Engineering Inc,Services,"$2,708.57 ",8/4/2023
Edwards Engineering Inc,Services,"$1,425.35 ",8/10/2023
Edwards Engineering Inc,Services,"$4,797.83 ",8/17/2023
Edwards Engineering Inc,Services,"$15,980.46 ",9/8/2023
Edwards Engineering Inc,Services,$395.00 ,9/14/2023
Edwards Engineering Inc,Services,"$3,213.67 ",9/28/2023
Edwards Engineering Inc,Services,"$3,199.28 ",10/5/2023
Edwards Engineering Inc,Services,"$17,529.97 ",10/26/2023
Edwards Engineering Inc,Services,$381.00 ,11/9/2023
Edwards Engineering Inc,Services,"$15,097.67 ",11/16/2023
Edwards Engineering Inc,Services,"$47,482.06 ",12/7/2023
ElDorado National (California) Inc,Fuel/Parts Inventory,"$35,296.03 ",1/5/2023
ElDorado National (California) Inc,Fuel/Parts Inventory,"$4,565.40 ",1/12/2023
ElDorado National (California) Inc,Fuel/Parts Inventory,"$77,016.66 ",1/19/2023
ElDorado National (California) Inc,Fuel/Parts Inventory,"$39,879.60 ",1/26/2023
ElDorado National (California) Inc,Fuel/Parts Inventory,"$18,035.84 ",1/31/2023
ElDorado National (California) Inc,Fuel/Parts Inventory,"$49,652.04 ",2/9/2023
ElDorado National (California) Inc,Vehicle,"$228,835.24 ",2/9/2023
ElDorado National (California) Inc,Fuel/Parts Inventory,"$25,764.35 ",2/16/2023
ElDorado National (California) Inc,Vehicle,"$1,527,921.58 ",2/23/2023
ElDorado National (California) Inc,Fuel/Parts Inventory,"$47,186.08 ",2/28/2023
ElDorado National (California) Inc,Vehicle,"$5,428.62 ",2/28/2023
ElDorado National (California) Inc,Fuel/Parts Inventory,"$3,149.38 ",3/8/2023
ElDorado National (California) Inc,Materials and Supplies,"($1,062.50)",3/8/2023
ElDorado National (California) Inc,Vehicle,"$25,436.34 ",3/8/2023
ElDorado National (California) Inc,Fuel/Parts Inventory,"$51,770.39 ",3/9/2023
ElDorado National (California) Inc,Materials and Supplies,"$1,062.50 ",3/9/2023
ElDorado National (California) Inc,Vehicle,"$1,311,882.30 ",3/9/2023
ElDorado National (California) Inc,Fuel/Parts Inventory,"$34,961.51 ",3/16/2023
ElDorado National (California) Inc,Fuel/Parts Inventory,"$14,494.07 ",3/23/2023
ElDorado National (California) Inc,Fuel/Parts Inventory,"$83,422.39 ",3/30/2023
ElDorado National (California) Inc,Vehicle,"$13,269.96 ",3/30/2023
ElDorado National (California) Inc,Fuel/Parts Inventory,"$42,365.60 ",4/13/2023
ElDorado National (California) Inc,Fuel/Parts Inventory,"$21,195.99 ",4/20/2023
ElDorado National (California) Inc,Vehicle,"$129,345.00 ",4/20/2023
ElDorado National (California) Inc,Fuel/Parts Inventory,"$28,324.05 ",4/27/2023
ElDorado National (California) Inc,Fuel/Parts Inventory,"$135,735.11 ",5/11/2023
ElDorado National (California) Inc,Vehicle,"$34,503.84 ",5/11/2023
ElDorado National (California) Inc,Fuel/Parts Inventory,"$17,114.52 ",5/18/2023
ElDorado National (California) Inc,Fuel/Parts Inventory,"$112,503.45 ",5/25/2023
ElDorado National (California) Inc,Fuel/Parts Inventory,"$75,085.34 ",5/31/2023
ElDorado National (California) Inc,Fuel/Parts Inventory,"$21,001.97 ",6/8/2023
ElDorado National (California) Inc,Fuel/Parts Inventory,"$43,143.17 ",6/15/2023
ElDorado National (California) Inc,Fuel/Parts Inventory,"$92,398.66 ",6/22/2023
ElDorado National (California) Inc,Fuel/Parts Inventory,"$19,416.50 ",6/29/2023
ElDorado National (California) Inc,Fuel/Parts Inventory,"$14,783.71 ",7/13/2023
ElDorado National (California) Inc,Fuel/Parts Inventory,"$22,964.07 ",7/20/2023
ElDorado National (California) Inc,Fuel/Parts Inventory,"$41,328.58 ",7/27/2023
ElDorado National (California) Inc,Fuel/Parts Inventory,"$25,874.10 ",8/4/2023
ElDorado National (California) Inc,Fuel/Parts Inventory,"$12,028.52 ",8/10/2023
ElDorado National (California) Inc,Fuel/Parts Inventory,"$8,797.37 ",8/17/2023
ElDorado National (California) Inc,Fuel/Parts Inventory,"$37,226.33 ",8/24/2023
ElDorado National (California) Inc,Fuel/Parts Inventory,"$12,979.06 ",8/31/2023
ElDorado National (California) Inc,Materials and Supplies,($306.13),8/31/2023
ElDorado National (California) Inc,Fuel/Parts Inventory,"$11,205.88 ",9/8/2023
ElDorado National (California) Inc,Fuel/Parts Inventory,"$12,277.64 ",9/14/2023
ElDorado National (California) Inc,Fuel/Parts Inventory,"$12,863.74 ",9/21/2023
ElDorado National (California) Inc,Fuel/Parts Inventory,"$24,929.89 ",9/28/2023
ElDorado National (California) Inc,Fuel/Parts Inventory,"$26,517.55 ",10/5/2023
ElDorado National (California) Inc,Fuel/Parts Inventory,"$23,130.36 ",10/12/2023
ElDorado National (California) Inc,Fuel/Parts Inventory,"$53,650.08 ",10/19/2023
ElDorado National (California) Inc,Fuel/Parts Inventory,"$30,187.78 ",10/26/2023
ElDorado National (California) Inc,Fuel/Parts Inventory,"$9,059.90 ",10/31/2023
ElDorado National (California) Inc,Fuel/Parts Inventory,"$7,716.18 ",11/9/2023
ElDorado National (California) Inc,Fuel/Parts Inventory,"$3,517.52 ",11/16/2023
ElDorado National (California) Inc,Fuel/Parts Inventory,"$82,073.15 ",11/24/2023
ElDorado National (California) Inc,Fuel/Parts Inventory,"$29,503.92 ",12/14/2023
ElDorado National (California) Inc,Fuel/Parts Inventory,"$25,349.74 ",12/21/2023
ElDorado National (California) Inc,Fuel/Parts Inventory,"$18,904.41 ",12/29/2023
Elgin Community College,Services,"$2,190.00 ",3/23/2023
Elgin Community College,Services,"$1,460.00 ",5/18/2023
Elgin Community College,Services,"$4,380.00 ",8/10/2023
Elmer and Son Locksmiths Inc,Services,$79.00 ,3/16/2023
Elmer and Son Locksmiths Inc,Services,"$1,509.59 ",6/15/2023
Elmer and Son Locksmiths Inc,Services,$136.50 ,10/12/2023
Elmer and Son Locksmiths Inc,Services,$459.52 ,10/26/2023
Emma Taxi Inc,Purchased Transportation,$94.50 ,2/9/2023
Emma Taxi Inc,Purchased Transportation,$14.00 ,2/16/2023
Emma Taxi Inc,Purchased Transportation,$8.75 ,3/9/2023
Emma Taxi Inc,Purchased Transportation,$113.75 ,3/30/2023
Emma Taxi Inc,Purchased Transportation,$137.75 ,4/27/2023
Emma Taxi Inc,Purchased Transportation,$166.25 ,5/25/2023
Emma Taxi Inc,Purchased Transportation,$128.00 ,6/8/2023
Emma Taxi Inc,Purchased Transportation,$16.25 ,6/22/2023
Emma Taxi Inc,Purchased Transportation,$95.75 ,7/20/2023
Emma Taxi Inc,Purchased Transportation,$154.50 ,7/27/2023
Emma Taxi Inc,Purchased Transportation,$25.75 ,8/24/2023
Emma Taxi Inc,Purchased Transportation,$29.75 ,10/31/2023
Emma Taxi Inc,Purchased Transportation,$534.75 ,11/30/2023
Emma Taxi Inc,Purchased Transportation,$267.75 ,12/29/2023
Employee,Employee - Expense Reimbursement,"$2,901.85 ",1/13/2023
Employee,Employee - Expense Reimbursement,"$2,609.67 ",1/27/2023
Employee,Employee - Expense Reimbursement,$733.58 ,2/3/2023
Employee,Employee - Expense Reimbursement,"$3,612.00 ",2/10/2023
Employee,Employee - Expense Reimbursement,$236.00 ,2/20/2023
Employee,Employee - Expense Reimbursement,$499.38 ,2/24/2023
Employee,Employee - Expense Reimbursement,"$1,185.12 ",3/10/2023
Employee,Employee - Expense Reimbursement,"$1,263.12 ",3/24/2023
Employee,Employee - Expense Reimbursement,"$1,366.88 ",3/31/2023
Employee,Employee - Expense Reimbursement,"$5,299.25 ",4/7/2023
Employee,Employee - Expense Reimbursement,"$2,665.28 ",4/21/2023
Employee,Employee - Expense Reimbursement,$100.00 ,4/27/2023
Employee,Employee - Expense Reimbursement,"$1,407.67 ",5/5/2023
Employee,Employee - Expense Reimbursement,$870.00 ,5/12/2023
Employee,Employee - Expense Reimbursement,"$3,936.14 ",5/19/2023
Employee,Employee - Expense Reimbursement,$97.43 ,5/26/2023
Employee,Employee - Expense Reimbursement,"$2,838.78 ",6/2/2023
Employee,Employee - Expense Reimbursement,"$3,522.69 ",6/16/2023
Employee,Employee - Expense Reimbursement,$435.00 ,6/23/2023
Employee,Employee - Expense Reimbursement,"$2,360.81 ",6/30/2023
Employee,Employee - Expense Reimbursement,"$3,088.53 ",7/14/2023
Employee,Employee - Expense Reimbursement,$870.00 ,7/21/2023
Employee,Employee - Expense Reimbursement,$955.63 ,7/28/2023
Employee,Employee - Expense Reimbursement,$120.00 ,8/4/2023
Employee,Employee - Expense Reimbursement,"$1,628.26 ",8/11/2023
Employee,Employee - Expense Reimbursement,"$1,850.08 ",8/18/2023
Employee,Employee - Expense Reimbursement,"$2,222.38 ",8/25/2023
Employee,Employee - Expense Reimbursement,$150.00 ,9/1/2023
Employee,Employee - Expense Reimbursement,"$1,345.07 ",9/8/2023
Employee,Employee - Expense Reimbursement,"$1,572.57 ",9/22/2023
Employee,Employee - Expense Reimbursement,$600.00 ,9/29/2023
Employee,Employee - Expense Reimbursement,($100.00),10/6/2022
Employee,Employee - Expense Reimbursement,$824.66 ,10/6/2023
Employee,Employee - Expense Reimbursement,$411.53 ,10/13/2023
Employee,Employee - Expense Reimbursement,"$3,078.49 ",10/20/2023
Employee,Employee - Expense Reimbursement,$300.00 ,10/27/2023
Employee,Employee - Expense Reimbursement,"$4,194.07 ",11/3/2023
Employee,Employee - Expense Reimbursement,"$2,000.00 ",11/9/2023
Employee,Employee - Expense Reimbursement,$120.00 ,11/10/2023
Employee,Employee - Expense Reimbursement,"$2,743.07 ",11/17/2023
Employee,Employee - Expense Reimbursement,$569.97 ,11/24/2023
Employee,Employee - Expense Reimbursement,"$3,959.44 ",12/1/2023
Employee,Employee - Expense Reimbursement,"$1,149.59 ",12/8/2023
Employee,Employee - Expense Reimbursement,"$5,748.63 ",12/15/2023
Employee,Employee - Expense Reimbursement,"$2,430.42 ",12/22/2023
Employee,Employee - Expense Reimbursement,"$13,504.82 ",12/29/2023
Empower Annuity Insurance Company of America fka Great West,401k/457b Pension EE/ER Contributionn,"$105,678.15 ",10/23/2023
Empower Annuity Insurance Company of America fka Great West,401k/457b Pension EE/ER Contributionn,"$1,167.30 ",10/24/2023
Empower Annuity Insurance Company of America fka Great West,401k/457b Pension EE/ER Contributionn,"$4,584.62 ",10/30/2023
Empower Annuity Insurance Company of America fka Great West,Services,"$20,573.50 ",10/30/2023
Empower Annuity Insurance Company of America fka Great West,401k/457b Pension EE/ER Contributionn,"$109,248.45 ",11/6/2023
Empower Annuity Insurance Company of America fka Great West,401k/457b Pension EE/ER Contributionn,"$4,584.62 ",11/13/2023
Empower Annuity Insurance Company of America fka Great West,401k/457b Pension EE/ER Contributionn,"$105,343.57 ",11/20/2023
Empower Annuity Insurance Company of America fka Great West,401k/457b Pension EE/ER Contributionn,"$1,167.30 ",11/21/2023
Empower Annuity Insurance Company of America fka Great West,401k/457b Pension EE/ER Contributionn,"$4,584.62 ",11/27/2023
Empower Annuity Insurance Company of America fka Great West,401k/457b Pension EE/ER Contributionn,"$117,381.44 ",12/4/2023
Empower Annuity Insurance Company of America fka Great West,401k/457b Pension EE/ER Contributionn,"$5,000.75 ",12/11/2023
Empower Annuity Insurance Company of America fka Great West,401k/457b Pension EE/ER Contributionn,"$1,167.30 ",12/15/2023
Empower Annuity Insurance Company of America fka Great West,401k/457b Pension EE/ER Contributionn,"$106,189.62 ",12/18/2023
Empower Annuity Insurance Company of America fka Great West,Fringe Benefits,"$18,406.31 ",12/18/2023
Empower Annuity Insurance Company of America fka Great West,401k/457b Pension EE/ER Contributionn,"$4,325.40 ",12/26/2023
Empower Annuity Insurance Company of America fka Great West,401k/457b Pension EE/ER Contributionn,"$124,356.52 ",12/29/2023
Equity Industrial Supply,Materials and Supplies,"$8,260.04 ",3/16/2023
Equity Industrial Supply,Materials and Supplies,"$3,077.25 ",4/13/2023
Equity Industrial Supply,Materials and Supplies,"$2,360.30 ",6/8/2023
Equity Industrial Supply,Materials and Supplies,"$2,444.29 ",8/4/2023
Equity Industrial Supply,Materials and Supplies,"$2,474.25 ",9/28/2023
Erin Freeman,Purchased Transportation,$20.94 ,2/16/2023
Erin Freeman,Purchased Transportation,$21.94 ,3/9/2023
Erin Freeman,Purchased Transportation,$19.55 ,3/30/2023
Eurofins TestOil Inc,Materials and Supplies,$496.00 ,1/19/2023
Eurofins TestOil Inc,Materials and Supplies,$12.20 ,10/26/2023
Eurofins TestOil Inc,Materials and Supplies,$18.30 ,11/2/2023
Everlights,Materials and Supplies,$554.00 ,8/10/2023
Everlights,Materials and Supplies,$195.40 ,8/31/2023
Everlights,Materials and Supplies,"$1,128.40 ",9/14/2023
Everlights,Materials and Supplies,$662.76 ,9/28/2023
Everlights,Materials and Supplies,"$1,674.40 ",10/12/2023
Everlights,Materials and Supplies,"$8,352.16 ",11/9/2023
Everlights,Materials and Supplies,"$3,229.35 ",11/16/2023
Everlights,Materials and Supplies,"$2,261.00 ",12/21/2023
Everywhere Wireless,Services,"$1,700.90 ",1/19/2023
Everywhere Wireless dba Zentro,Services,$699.00 ,3/16/2023
Everywhere Wireless dba Zentro,Services,$699.00 ,3/23/2023
Everywhere Wireless dba Zentro,Services,$699.00 ,4/13/2023
Everywhere Wireless dba Zentro,Services,$699.00 ,5/25/2023
Everywhere Wireless dba Zentro,Services,$699.00 ,6/22/2023
Everywhere Wireless dba Zentro,Services,$699.00 ,7/20/2023
Everywhere Wireless dba Zentro,Services,$699.00 ,8/10/2023
Everywhere Wireless dba Zentro,Services,$699.00 ,9/21/2023
Everywhere Wireless dba Zentro,Services,$699.00 ,10/12/2023
Everywhere Wireless dba Zentro,Services,"$1,398.00 ",12/14/2023
Evoque Data Center Solutions,Leases and Rentals,"$20,850.00 ",6/8/2023
Evoque Data Center Solutions,Leases and Rentals,"$41,720.93 ",10/5/2023
Evoque Data Center Solutions,Leases and Rentals,"$14,478.73 ",10/31/2023
Evoque Data Center Solutions,Leases and Rentals,"$14,368.76 ",12/7/2023
Evoque Data Center Solutions,Leases and Rentals,"$14,368.73 ",12/21/2023
ExamWorks Compliance Solutions LLC,Services,$650.00 ,1/19/2023
ExamWorks Compliance Solutions LLC,Services,$650.00 ,2/23/2023
ExamWorks Compliance Solutions LLC,Services,$650.00 ,3/23/2023
ExamWorks Compliance Solutions LLC,Services,$650.00 ,4/20/2023
ExamWorks Compliance Solutions LLC,Services,$650.00 ,5/25/2023
ExamWorks Compliance Solutions LLC,Services,$650.00 ,6/22/2023
ExamWorks Compliance Solutions LLC,Services,$650.00 ,7/20/2023
ExamWorks Compliance Solutions LLC,Services,$650.00 ,8/24/2023
ExamWorks Compliance Solutions LLC,Services,$650.00 ,9/21/2023
ExamWorks Compliance Solutions LLC,Services,$650.00 ,10/19/2023
ExamWorks Compliance Solutions LLC,Services,$650.00 ,11/16/2023
ExamWorks Compliance Solutions LLC,Services,$650.00 ,12/21/2023
FSS Technologies LLC,Services,$101.34 ,6/15/2023
FSS Technologies LLC,Services,$285.00 ,11/16/2023
Fabulous Inc,Purchased Transportation,"$1,265.75 ",1/5/2023
Fabulous Inc,Purchased Transportation,$221.75 ,1/26/2023
Fabulous Inc,Purchased Transportation,$105.75 ,2/28/2023
Fabulous Inc,Purchased Transportation,$365.25 ,3/16/2023
Fabulous Inc,Purchased Transportation,$191.50 ,3/30/2023
Fabulous Inc,Purchased Transportation,$188.00 ,4/27/2023
Fabulous Inc,Purchased Transportation,$371.25 ,6/29/2023
Fabulous Inc,Purchased Transportation,$104.75 ,7/20/2023
Fabulous Inc,Purchased Transportation,$25.75 ,8/24/2023
Fabulous Inc,Purchased Transportation,$451.00 ,9/21/2023
Fabulous Inc,Purchased Transportation,$273.25 ,10/12/2023
Fabulous Inc,Purchased Transportation,$530.25 ,11/16/2023
Fabulous Inc,Purchased Transportation,$468.75 ,12/7/2023
Factory Cleaning Equipment,Services,$343.40 ,4/27/2023
Factory Cleaning Equipment,Services,"$1,293.10 ",5/4/2023
Fatou Inc,Purchased Transportation,$65.00 ,1/19/2023
Fatou Inc,Purchased Transportation,$42.75 ,4/13/2023
Fatou Inc,Purchased Transportation,$87.50 ,5/25/2023
Fatou Inc,Purchased Transportation,$86.75 ,9/21/2023
Fatou Inc,Purchased Transportation,$495.75 ,10/12/2023
Fatou Inc,Purchased Transportation,$13.25 ,10/19/2023
Fatou Inc,Purchased Transportation,$325.00 ,11/16/2023
Fatou Inc,Purchased Transportation,$318.75 ,12/7/2023
Fatou Inc,Purchased Transportation,$182.00 ,12/14/2023
Fatou Inc,Purchased Transportation,$722.00 ,12/29/2023
FedResults Inc,Miscellaneous,"$5,018.00 ",1/26/2023
FedResults Inc,Miscellaneous,"$5,018.00 ",3/9/2023
FedResults Inc,Miscellaneous,"$5,018.00 ",5/4/2023
FedResults Inc,Miscellaneous,"$5,094.22 ",6/29/2023
FedResults Inc,Miscellaneous,"$2,585.22 ",8/4/2023
FedResults Inc,Miscellaneous,"$2,585.22 ",9/21/2023
FedResults Inc,Miscellaneous,"$5,170.44 ",10/5/2023
FedResults Inc,Miscellaneous,"$2,585.22 ",11/24/2023
FedResults Inc,Miscellaneous,"$2,585.22 ",12/21/2023
Ferrellgas LP,Materials and Supplies,$328.20 ,1/5/2023
Ferrellgas LP,Materials and Supplies,$171.33 ,1/19/2023
Ferrellgas LP,Materials and Supplies,$65.73 ,1/26/2023
Ferrellgas LP,Materials and Supplies,$452.00 ,2/16/2023
Ferrellgas LP,Materials and Supplies,$198.00 ,2/23/2023
Ferrellgas LP,Materials and Supplies,$107.33 ,2/28/2023
Ferrellgas LP,Materials and Supplies,$108.00 ,3/9/2023
Ferrellgas LP,Materials and Supplies,$117.26 ,3/30/2023
Ferrellgas LP,Materials and Supplies,$248.01 ,4/13/2023
Ferrellgas LP,Materials and Supplies,$270.22 ,4/27/2023
Ferrellgas LP,Materials and Supplies,$114.22 ,5/4/2023
Ferrellgas LP,Materials and Supplies,$252.00 ,5/18/2023
Ferrellgas LP,Materials and Supplies,$36.00 ,6/15/2023
Ferrellgas LP,Materials and Supplies,$437.31 ,6/29/2023
Ferrellgas LP,Materials and Supplies,$169.05 ,7/20/2023
Ferrellgas LP,Materials and Supplies,$175.00 ,8/4/2023
Ferrellgas LP,Materials and Supplies,$149.81 ,8/10/2023
Ferrellgas LP,Materials and Supplies,$401.94 ,8/24/2023
Ferrellgas LP,Materials and Supplies,$78.63 ,8/31/2023
Ferrellgas LP,Materials and Supplies,$70.37 ,9/8/2023
Ferrellgas LP,Materials and Supplies,$137.95 ,9/21/2023
Ferrellgas LP,Materials and Supplies,$117.81 ,9/28/2023
Ferrellgas LP,Materials and Supplies,$203.15 ,10/5/2023
Ferrellgas LP,Materials and Supplies,$35.18 ,10/31/2023
Ferrellgas LP,Materials and Supplies,$189.54 ,11/9/2023
Ferrellgas LP,Materials and Supplies,$139.33 ,11/30/2023
Ferrellgas LP,Materials and Supplies,$504.47 ,12/29/2023
Fidelity Security Life Insurance Eye,Health Insurance,"$2,807.34 ",1/31/2023
Fidelity Security Life Insurance Eye,Health Insurance,"$2,830.05 ",3/2/2023
Fidelity Security Life Insurance Eye,Health Insurance,"$2,770.62 ",3/28/2023
Fidelity Security Life Insurance Eye,Health Insurance,"$2,784.63 ",5/3/2023
Fidelity Security Life Insurance Eye,Health Insurance,"$2,866.32 ",5/23/2023
Fidelity Security Life Insurance Eye,Health Insurance,"$2,798.64 ",6/26/2023
Fidelity Security Life Insurance Eye,Health Insurance,"$2,802.03 ",7/25/2023
Fidelity Security Life Insurance Eye,Health Insurance,"$2,854.23 ",8/17/2023
Fidelity Security Life Insurance Eye,Health Insurance,"$3,021.00 ",9/27/2023
Fidelity Security Life Insurance Eye,Health Insurance,"$2,928.69 ",10/27/2023
Fidelity Security Life Insurance Eye,Health Insurance,"$2,920.44 ",11/30/2023
Fidelity Security Life Insurance Eye,Health Insurance,"$2,933.55 ",12/27/2023
Filter Services Illinois,Fuel/Parts Inventory,"$3,708.00 ",1/19/2023
Filter Services Illinois,Fuel/Parts Inventory,"$4,392.00 ",1/31/2023
Filter Services Illinois,Fuel/Parts Inventory,$583.30 ,2/28/2023
Filter Services Illinois,Fuel/Parts Inventory,"$6,988.00 ",3/9/2023
Filter Services Illinois,Fuel/Parts Inventory,"$1,854.00 ",3/23/2023
Filter Services Illinois,Fuel/Parts Inventory,$656.00 ,5/31/2023
Filter Services Illinois,Fuel/Parts Inventory,"$7,740.00 ",6/8/2023
Filter Services Illinois,Fuel/Parts Inventory,"$7,470.00 ",8/10/2023
Filter Services Illinois,Fuel/Parts Inventory,"$3,660.00 ",9/8/2023
Filter Services Illinois,Fuel/Parts Inventory,"$1,005.00 ",10/26/2023
Filter Services Illinois,Fuel/Parts Inventory,$595.00 ,12/14/2023
Filter Services Illinois,Fuel/Parts Inventory,"$2,523.00 ",12/29/2023
First Student Inc,Purchased Transportation,"$85,368.83 ",1/19/2023
First Student Inc,Purchased Transportation,"$27,125.94 ",2/16/2023
First Student Inc,Purchased Transportation,"$25,004.10 ",3/23/2023
First Student Inc,Purchased Transportation,"$26,691.70 ",4/13/2023
First Student Inc,Purchased Transportation,"$28,212.51 ",5/18/2023
First Student Inc,Purchased Transportation,"$30,066.89 ",6/15/2023
First Student Inc,Purchased Transportation,"$55,380.88 ",7/13/2023
First Student Inc,Purchased Transportation,"$58,256.71 ",8/17/2023
First Student Inc,Purchased Transportation,"$57,068.48 ",9/14/2023
First Student Inc,Purchased Transportation,"$31,587.70 ",10/19/2023
First Student Inc,Purchased Transportation,"$26,359.12 ",11/30/2023
First Student Inc,Purchased Transportation,"$43,217.36 ",12/14/2023
First Transit Inc,Miscellaneous,"($4,583.34)",1/13/2023
First Transit Inc,Purchased Transportation,"$1,013,325.22 ",1/13/2023
First Transit Inc,Purchased Transportation,"$118,814.70 ",1/19/2023
First Transit Inc,Purchased Transportation,"$74,553.82 ",1/26/2023
First Transit Inc,Miscellaneous,"($4,103.55)",1/31/2023
First Transit Inc,Purchased Transportation,"$1,678,398.56 ",1/31/2023
First Transit Inc,Miscellaneous,"($2,029.74)",2/6/2023
First Transit Inc,Purchased Transportation,"$397,651.00 ",2/6/2023
First Transit Inc,Miscellaneous,"($1,989.60)",2/9/2023
First Transit Inc,Purchased Transportation,"$398,563.93 ",2/9/2023
First Transit Inc,Purchased Transportation,"$104,190.87 ",2/14/2023
First Transit Inc,Miscellaneous,($596.98),2/23/2023
First Transit Inc,Purchased Transportation,"$131,984.89 ",2/23/2023
First Transit Inc,Purchased Transportation,"$381,801.59 ",2/28/2023
First Transit Inc,Miscellaneous,"($6,142.89)",3/9/2023
First Transit Inc,Purchased Transportation,"$2,123,087.77 ",3/9/2023
First Transit Inc,Purchased Transportation,"$108,322.59 ",3/17/2023
First Transit Inc,Miscellaneous,"($1,044.54)",3/20/2023
First Transit Inc,Purchased Transportation,"$191,019.07 ",3/20/2023
First Transit Inc,Miscellaneous,"($1,541.94)",3/23/2023
First Transit Inc,Purchased Transportation,"$388,869.39 ",3/23/2023
First Transit Inc,Purchased Transportation,"$50,029.99 ",3/30/2023
First Transit Inc,Miscellaneous,"($4,103.55)",4/5/2023
First Transit Inc,Purchased Transportation,"$1,772,638.37 ",4/5/2023
First Transit Inc,Purchased Transportation,"$106,923.76 ",4/6/2023
First Transit Inc,Miscellaneous,($596.88),4/13/2023
First Transit Inc,Purchased Transportation,"$131,701.49 ",4/13/2023
First Transit Inc,Miscellaneous,($945.06),4/20/2023
First Transit Inc,Purchased Transportation,"$258,141.64 ",4/20/2023
First Transit Inc,Miscellaneous,"($6,076.20)",4/27/2023
First Transit Inc,Purchased Transportation,"$2,276,854.65 ",4/27/2023
First Transit Inc,Miscellaneous,"($1,044.54)",4/28/2023
First Transit Inc,Purchased Transportation,"$173,678.13 ",4/28/2023
First Transit Inc,Miscellaneous,($590.40),5/4/2023
First Transit Inc,Purchased Transportation,"$154,495.49 ",5/4/2023
First Transit Inc,Purchased Transportation,"$119,112.29 ",5/9/2023
First Transit Inc,Miscellaneous,($984.00),5/25/2023
First Transit Inc,Purchased Transportation,"$320,636.47 ",5/25/2023
First Transit Inc,Miscellaneous,"($4,059.00)",5/31/2023
First Transit Inc,Purchased Transportation,"$1,769,115.82 ",5/31/2023
First Transit Inc,Miscellaneous,"($1,623.60)",6/8/2023
First Transit Inc,Purchased Transportation,"$475,595.32 ",6/8/2023
First Transit Inc,Miscellaneous,"($1,968.00)",6/22/2023
First Transit Inc,Purchased Transportation,"$491,343.93 ",6/22/2023
First Transit Inc,Purchased Transportation,"$141,095.87 ",6/29/2023
First Transit Inc,Miscellaneous,"($4,059.00)",6/30/2023
First Transit Inc,Purchased Transportation,"$1,786,669.20 ",6/30/2023
First Transit Inc,Miscellaneous,"($2,017.20)",7/6/2023
First Transit Inc,Purchased Transportation,"$520,732.39 ",7/6/2023
First Transit Inc,Miscellaneous,($590.40),7/12/2023
First Transit Inc,Purchased Transportation,"$150,778.16 ",7/12/2023
First Transit Inc,Purchased Transportation,"$119,142.20 ",7/17/2023
First Transit Inc,Miscellaneous,"($1,968.00)",7/20/2023
First Transit Inc,Purchased Transportation,"$534,943.58 ",7/20/2023
First Transit Inc,Purchased Transportation,"$124,929.01 ",7/27/2023
First Transit Inc,Miscellaneous,"($6,680.15)",8/4/2023
First Transit Inc,Purchased Transportation,"$2,510,869.39 ",8/4/2023
First Transit Inc,Miscellaneous,($936.70),8/17/2023
First Transit Inc,Purchased Transportation,"$271,003.30 ",8/17/2023
First Transit Inc,Purchased Transportation,"$58,001.46 ",8/24/2023
First Transit Inc,Purchased Transportation,"$166,791.49 ",8/25/2023
First Transit Inc,Equipment,"$11,450.00 ",8/31/2023
First Transit Inc,Miscellaneous,"($6,916.79)",9/7/2023
First Transit Inc,Purchased Transportation,"$2,583,097.25 ",9/7/2023
First Transit Inc,Miscellaneous,($591.60),9/13/2023
First Transit Inc,Purchased Transportation,"$123,678.86 ",9/13/2023
First Transit Inc,Miscellaneous,($936.70),9/21/2023
First Transit Inc,Purchased Transportation,"$298,014.40 ",9/21/2023
First Transit Inc,Purchased Transportation,"$91,868.19 ",9/28/2023
First Transit Inc,Miscellaneous,"($6,088.55)",10/5/2023
First Transit Inc,Purchased Transportation,"$2,717,424.34 ",10/5/2023
First Transit Inc,Miscellaneous,"($1,528.30)",10/9/2023
First Transit Inc,Purchased Transportation,"$462,540.05 ",10/9/2023
First Transit Inc,Purchased Transportation,"$109,873.25 ",10/18/2023
First Transit Inc,Purchased Transportation,"$108,879.51 ",10/19/2023
First Transit Inc,Miscellaneous,"($1,000.00)",10/26/2023
First Transit Inc,Purchased Transportation,"$249,581.46 ",10/26/2023
First Transit Inc,Miscellaneous,"($6,725.00)",11/9/2023
First Transit Inc,Purchased Transportation,"$2,676,824.30 ",11/9/2023
First Transit Inc,Purchased Transportation,"$21,868.38 ",11/16/2023
First Transit Inc,Miscellaneous,"($1,600.00)",11/29/2023
First Transit Inc,Purchased Transportation,"$425,706.56 ",11/29/2023
First Transit Inc,Miscellaneous,"($4,125.00)",11/30/2023
First Transit Inc,Purchased Transportation,"$2,017,824.32 ",11/30/2023
First Transit Inc,Purchased Transportation,"$95,289.24 ",12/6/2023
First Transit Inc,Miscellaneous,"($6,175.00)",12/29/2023
First Transit Inc,Purchased Transportation,"$2,475,957.23 ",12/29/2023
Five Star Kleen,Services,"$5,176.75 ",1/19/2023
Five Star Kleen,Services,"$9,454.75 ",3/9/2023
Five Star Kleen,Services,"$4,379.00 ",4/27/2023
Five Star Kleen,Services,"$8,758.00 ",6/8/2023
Five Star Kleen,Services,"$10,855.25 ",7/27/2023
Five Star Kleen,Services,"$4,313.00 ",8/17/2023
Five Star Kleen,Services,"$4,313.00 ",9/21/2023
Five Star Kleen,Services,"$4,523.00 ",10/26/2023
Five Star Kleen,Services,"$4,313.00 ",11/24/2023
Five Star Kleen,Services,"$5,141.75 ",12/14/2023
Flash Cab Company,Purchased Transportation,"$235,293.55 ",1/4/2023
Flash Cab Company,Purchased Transportation,"$354,040.85 ",1/9/2023
Flash Cab Company,Purchased Transportation,"$222,735.90 ",1/11/2023
Flash Cab Company,Purchased Transportation,"$97,287.85 ",1/13/2023
Flash Cab Company,Purchased Transportation,"$114,259.60 ",1/17/2023
Flash Cab Company,Purchased Transportation,"$239,383.25 ",1/25/2023
Flash Cab Company,Purchased Transportation,"$115,828.95 ",1/26/2023
Flash Cab Company,Purchased Transportation,"$128,021.75 ",1/27/2023
Flash Cab Company,Purchased Transportation,"$110,577.70 ",2/1/2023
Flash Cab Company,Purchased Transportation,"$122,282.50 ",2/6/2023
Flash Cab Company,Purchased Transportation,"$200,098.45 ",2/14/2023
Flash Cab Company,Purchased Transportation,"$93,859.88 ",2/16/2023
Flash Cab Company,Purchased Transportation,"$117,828.15 ",2/23/2023
Flash Cab Company,Purchased Transportation,"$95,365.95 ",2/28/2023
Flash Cab Company,Purchased Transportation,"$123,092.65 ",3/2/2023
Flash Cab Company,Purchased Transportation,"$254,661.35 ",3/8/2023
Flash Cab Company,Purchased Transportation,"$114,787.15 ",3/14/2023
Flash Cab Company,Purchased Transportation,"$132,055.20 ",3/20/2023
Flash Cab Company,Purchased Transportation,$725.57 ,3/21/2023
Flash Cab Company,Purchased Transportation,"$250,618.10 ",3/22/2023
Flash Cab Company,Purchased Transportation,"$254,344.20 ",3/28/2023
Flash Cab Company,Purchased Transportation,"$120,419.70 ",4/4/2023
Flash Cab Company,Purchased Transportation,"$261,999.95 ",4/7/2023
Flash Cab Company,Purchased Transportation,"$133,423.45 ",4/12/2023
Flash Cab Company,Purchased Transportation,"$260,437.95 ",4/17/2023
Flash Cab Company,Purchased Transportation,"$273,810.00 ",4/24/2023
Flash Cab Company,Purchased Transportation,"$129,485.65 ",4/27/2023
Flash Cab Company,Purchased Transportation,"$145,604.05 ",4/28/2023
Flash Cab Company,Purchased Transportation,"$129,292.55 ",5/4/2023
Flash Cab Company,Purchased Transportation,"$143,530.10 ",5/8/2023
Flash Cab Company,Purchased Transportation,"$125,435.20 ",5/10/2023
Flash Cab Company,Purchased Transportation,"$141,726.90 ",5/15/2023
Flash Cab Company,Purchased Transportation,"$130,697.35 ",5/18/2023
Flash Cab Company,Purchased Transportation,"$140,054.10 ",5/22/2023
Flash Cab Company,Purchased Transportation,"$131,811.15 ",5/25/2023
Flash Cab Company,Purchased Transportation,"$283,842.75 ",5/31/2023
Flash Cab Company,Purchased Transportation,"$236,371.15 ",6/8/2023
Flash Cab Company,Purchased Transportation,"$305,034.70 ",6/16/2023
Flash Cab Company,Purchased Transportation,"$104,089.75 ",6/22/2023
Flash Cab Company,Purchased Transportation,"$116,171.75 ",6/26/2023
Flash Cab Company,Purchased Transportation,"$99,966.05 ",6/28/2023
Flash Cab Company,Purchased Transportation,"$111,492.20 ",7/5/2023
Flash Cab Company,Purchased Transportation,"$209,797.05 ",7/10/2023
Flash Cab Company,Purchased Transportation,"$95,088.80 ",7/12/2023
Flash Cab Company,Purchased Transportation,"$107,307.58 ",7/19/2023
Flash Cab Company,Purchased Transportation,"$85,641.60 ",7/20/2023
Flash Cab Company,Purchased Transportation,"$209,361.34 ",7/21/2023
Flash Cab Company,Purchased Transportation,"$196,675.10 ",8/2/2023
Flash Cab Company,Purchased Transportation,"$95,574.75 ",8/11/2023
Flash Cab Company,Purchased Transportation,"$121,200.35 ",8/17/2023
Flash Cab Company,Purchased Transportation,"$141,724.40 ",8/24/2023
Flash Cab Company,Purchased Transportation,"$103,706.05 ",8/25/2023
Flash Cab Company,Purchased Transportation,"$113,541.25 ",9/1/2023
Flash Cab Company,Purchased Transportation,"$99,646.85 ",9/7/2023
Flash Cab Company,Purchased Transportation,"$105,739.45 ",9/12/2023
Flash Cab Company,Purchased Transportation,"$93,480.40 ",9/15/2023
Flash Cab Company,Purchased Transportation,"$205,214.90 ",9/20/2023
Flash Cab Company,Purchased Transportation,"$109,098.15 ",9/27/2023
Flash Cab Company,Purchased Transportation,"$93,596.75 ",10/3/2023
Flash Cab Company,Purchased Transportation,"$107,759.60 ",10/4/2023
Flash Cab Company,Purchased Transportation,"$94,181.90 ",10/6/2023
Flash Cab Company,Purchased Transportation,"$203,885.97 ",10/12/2023
Flash Cab Company,Purchased Transportation,"$102,288.00 ",10/18/2023
Flash Cab Company,Purchased Transportation,"$108,312.30 ",10/19/2023
Flash Cab Company,Purchased Transportation,"$145,244.95 ",10/30/2023
Flash Cab Company,Purchased Transportation,"$190,323.60 ",10/31/2023
Flash Cab Company,Purchased Transportation,"$101,683.00 ",11/3/2023
Flash Cab Company,Purchased Transportation,"$447,424.80 ",11/10/2023
Flash Cab Company,Purchased Transportation,"$123,814.89 ",11/20/2023
Flash Cab Company,Purchased Transportation,"$109,384.85 ",11/24/2023
Flash Cab Company,Purchased Transportation,"$213,309.65 ",11/29/2023
Flash Cab Company,Purchased Transportation,"$119,912.30 ",12/4/2023
Flash Cab Company,Purchased Transportation,"$225,294.50 ",12/7/2023
Flash Cab Company,Purchased Transportation,"$104,830.55 ",12/13/2023
Flash Cab Company,Purchased Transportation,"$119,455.60 ",12/15/2023
Flash Cab Company,Purchased Transportation,"$76,875.15 ",12/21/2023
Flash Cab Company,Purchased Transportation,"$436,431.35 ",12/22/2023
Fleet Response,Casualty and Liability,"$5,607.85 ",1/26/2023
Fleet Response,Casualty and Liability,"$23,887.45 ",3/9/2023
Fleet Response,Casualty and Liability,"$2,743.35 ",3/30/2023
Fleet Response,Casualty and Liability,"$8,067.78 ",4/13/2023
Fleet Response,Casualty and Liability,"$7,512.36 ",4/20/2023
Fleet Response,Casualty and Liability,"$10,928.11 ",5/18/2023
Fleet Response,Casualty and Liability,"$10,996.38 ",6/29/2023
Fleet Response,Casualty and Liability,"$13,396.70 ",8/10/2023
Fleet Response,Casualty and Liability,$131.55 ,8/17/2023
Fleet Response,Casualty and Liability,"$21,464.48 ",8/24/2023
Fleet Response,Casualty and Liability,"$18,797.25 ",9/28/2023
Fleet Response,Casualty and Liability,$585.98 ,10/5/2023
Fleet Response,Casualty and Liability,"$16,483.45 ",10/26/2023
Fleet Response,Casualty and Liability,"$6,923.34 ",11/30/2023
Fleet Response,Casualty and Liability,"$16,131.56 ",12/21/2023
Flood's Royal Flush,Services,$825.00 ,4/6/2023
Flood's Royal Flush,Services,$825.00 ,9/7/2023
Flood's Royal Flush,Services,$900.00 ,10/12/2023
Fluid Aire Dynamics Inc,Services,$600.00 ,1/5/2023
Fluid Aire Dynamics Inc,Services,"$1,495.18 ",1/26/2023
Fluid Aire Dynamics Inc,Services,"$2,424.38 ",3/2/2023
Fluorecycle Inc,Services,$271.63 ,8/3/2023
Forward Space LLC,Materials and Supplies,$199.79 ,6/8/2023
Forward Space LLC,Materials and Supplies,"$3,333.00 ",8/4/2023
Forward Space LLC,Materials and Supplies,"$2,518.31 ",8/17/2023
Forward Space LLC,Materials and Supplies,"$6,301.59 ",9/21/2023
Fox Metro Water Reclamation District,Utilities,$799.68 ,1/19/2023
Fox Metro Water Reclamation District,Utilities,$731.85 ,4/20/2023
Fox Metro Water Reclamation District,Utilities,$278.46 ,4/27/2023
Fox Metro Water Reclamation District,Utilities,$225.00 ,6/29/2023
Fox Metro Water Reclamation District,Utilities,$525.00 ,8/31/2023
Fox Metro Water Reclamation District,Utilities,$922.50 ,11/2/2023
Fox Valley Fire & Safety Company,Services,$70.00 ,1/19/2023
Fox Valley Fire & Safety Company,Services,$105.00 ,1/26/2023
Fox Valley Fire & Safety Company,Services,$71.00 ,1/31/2023
Fox Valley Fire & Safety Company,Services,$232.00 ,2/9/2023
Fox Valley Fire & Safety Company,Services,"$2,385.60 ",2/16/2023
Fox Valley Fire & Safety Company,Services,"$2,726.47 ",2/28/2023
Fox Valley Fire & Safety Company,Services,$370.02 ,3/2/2023
Fox Valley Fire & Safety Company,Services,"$4,666.89 ",3/9/2023
Fox Valley Fire & Safety Company,Services,"$2,382.00 ",3/16/2023
Fox Valley Fire & Safety Company,Services,$753.85 ,3/23/2023
Fox Valley Fire & Safety Company,Services,"$3,411.37 ",3/30/2023
Fox Valley Fire & Safety Company,Services,"$1,236.30 ",4/13/2023
Fox Valley Fire & Safety Company,Services,$728.75 ,4/20/2023
Fox Valley Fire & Safety Company,Services,"$2,147.70 ",4/27/2023
Fox Valley Fire & Safety Company,Services,$375.00 ,5/4/2023
Fox Valley Fire & Safety Company,Services,$156.25 ,5/11/2023
Fox Valley Fire & Safety Company,Services,$652.00 ,5/18/2023
Fox Valley Fire & Safety Company,Services,$705.46 ,5/25/2023
Fox Valley Fire & Safety Company,Services,"$1,874.00 ",5/31/2023
Fox Valley Fire & Safety Company,Services,"$2,273.50 ",6/15/2023
Fox Valley Fire & Safety Company,Services,$871.47 ,6/22/2023
Fox Valley Fire & Safety Company,Services,$319.85 ,6/29/2023
Fox Valley Fire & Safety Company,Services,$70.00 ,7/13/2023
Fox Valley Fire & Safety Company,Services,$962.10 ,7/27/2023
Fox Valley Fire & Safety Company,Services,"$1,740.40 ",8/4/2023
Fox Valley Fire & Safety Company,Services,$962.01 ,8/10/2023
Fox Valley Fire & Safety Company,Services,$668.80 ,8/17/2023
Fox Valley Fire & Safety Company,Services,$71.00 ,8/24/2023
Fox Valley Fire & Safety Company,Services,"$1,867.40 ",8/31/2023
Fox Valley Fire & Safety Company,Services,$628.60 ,9/28/2023
Fox Valley Fire & Safety Company,Services,$70.00 ,10/12/2023
Fox Valley Fire & Safety Company,Services,"$1,091.60 ",10/26/2023
Fox Valley Fire & Safety Company,Services,"$2,364.25 ",10/31/2023
Fox Valley Fire & Safety Company,Services,$141.00 ,11/9/2023
Fox Valley Fire & Safety Company,Services,"$4,041.00 ",11/16/2023
Fox Valley Fire & Safety Company,Services,$728.00 ,11/30/2023
Fox Valley Fire & Safety Company,Services,$837.69 ,12/7/2023
Fox Valley Fire & Safety Company,Services,$70.00 ,12/14/2023
Fox Valley Fire & Safety Company,Services,$71.00 ,12/21/2023
Fox Valley Fire & Safety Company,Services,"$1,077.08 ",12/29/2023
Frank M Pawlak P C,Services,"$6,490.00 ",1/26/2023
Frank M Pawlak P C,Services,"$6,313.00 ",2/16/2023
Frank M Pawlak P C,Services,"$3,540.00 ",4/6/2023
Frank M Pawlak P C,Services,"$4,897.00 ",4/20/2023
Frank M Pawlak P C,Services,$885.00 ,5/11/2023
Frank M Pawlak P C,Services,"$1,062.00 ",8/3/2023
Frank M Pawlak P C,Services,$295.00 ,9/14/2023
Frank M Pawlak P C,Services,$442.50 ,10/5/2023
Frank M Pawlak P C,Services,"$4,307.00 ",11/16/2023
Frank M Pawlak P C,Services,"$7,935.50 ",12/14/2023
Freedom 1st Transportation LLC,Purchased Transportation,"$30,856.39 ",1/12/2023
Freedom 1st Transportation LLC,Purchased Transportation,"$72,863.36 ",1/19/2023
Freedom 1st Transportation LLC,Purchased Transportation,"$95,638.91 ",2/16/2023
Freedom 1st Transportation LLC,Purchased Transportation,"$42,434.36 ",3/9/2023
Freedom 1st Transportation LLC,Purchased Transportation,"$21,299.76 ",3/17/2023
Freedom 1st Transportation LLC,Purchased Transportation,"$35,085.72 ",3/21/2023
Freedom 1st Transportation LLC,Purchased Transportation,"$50,098.40 ",4/13/2023
Freedom 1st Transportation LLC,Purchased Transportation,"$115,263.56 ",5/11/2023
Freedom 1st Transportation LLC,Purchased Transportation,"$100,858.57 ",6/8/2023
Freedom 1st Transportation LLC,Purchased Transportation,"$26,730.37 ",7/6/2023
Freedom 1st Transportation LLC,Purchased Transportation,"$28,015.39 ",7/13/2023
Freedom 1st Transportation LLC,Purchased Transportation,"$46,656.85 ",7/20/2023
Freedom 1st Transportation LLC,Purchased Transportation,"$100,296.40 ",8/11/2023
Freedom 1st Transportation LLC,Purchased Transportation,"$71,187.95 ",9/12/2023
Freedom 1st Transportation LLC,Purchased Transportation,"$9,806.45 ",9/14/2023
Freedom 1st Transportation LLC,Purchased Transportation,"$5,813.82 ",10/5/2023
Freedom 1st Transportation LLC,Purchased Transportation,"$77,640.76 ",10/9/2023
Freedom 1st Transportation LLC,Purchased Transportation,"$74,982.75 ",10/31/2023
Freedom 1st Transportation LLC,Purchased Transportation,"$41,539.28 ",11/24/2023
Freedom 1st Transportation LLC,Purchased Transportation,"$47,268.64 ",12/7/2023
Fuentes Consulting LLC,Services,"$3,000.00 ",10/26/2023
Fuentes Consulting LLC,Services,"$3,000.00 ",12/7/2023
Fuentes Consulting LLC,Services,"$3,000.00 ",12/14/2023
Funride Inc,Purchased Transportation,"$1,721.00 ",4/27/2023
Funride Inc,Purchased Transportation,$368.50 ,5/25/2023
Funride Inc,Purchased Transportation,$383.00 ,6/22/2023
Funride Inc,Purchased Transportation,$231.00 ,7/27/2023
Funride Inc,Purchased Transportation,$51.00 ,8/24/2023
Funride Inc,Purchased Transportation,$43.00 ,8/31/2023
Funride Inc,Purchased Transportation,$13.00 ,9/21/2023
Funride Inc,Purchased Transportation,$170.75 ,12/14/2023
Funride Inc,Purchased Transportation,$87.00 ,12/29/2023
G&O Thermal Supply Company,Fuel/Parts Inventory,"$15,864.92 ",5/4/2023
G&O Thermal Supply Company,Fuel/Parts Inventory,"$17,975.25 ",9/28/2023
GR Consulting LLC,Services,"$3,000.00 ",1/5/2023
GR Consulting LLC,Services,"$3,000.00 ",2/2/2023
GR Consulting LLC,Services,"$3,000.00 ",3/9/2023
GR Consulting LLC,Services,"$3,000.00 ",4/13/2023
GR Consulting LLC,Services,"$3,000.00 ",5/18/2023
GR Consulting LLC,Services,"$3,000.00 ",6/15/2023
GR Consulting LLC,Services,"$3,000.00 ",7/20/2023
GR Consulting LLC,Services,"$3,000.00 ",8/17/2023
GR Consulting LLC,Services,"$3,000.00 ",9/21/2023
GR Consulting LLC,Services,"$3,000.00 ",10/19/2023
GR Consulting LLC,Services,"$3,000.00 ",11/22/2023
GR Consulting LLC,Services,"$3,000.00 ",12/7/2023
GRM Information Management Services,Miscellaneous,"$1,212.02 ",1/31/2023
GRM Information Management Services,Services,$784.08 ,1/31/2023
GRM Information Management Services,Services,$276.80 ,2/23/2023
GRM Information Management Services,Services,$294.85 ,2/28/2023
GRM Information Management Services,Miscellaneous,"$1,306.77 ",3/9/2023
GRM Information Management Services,Services,$856.10 ,3/9/2023
GRM Information Management Services,Miscellaneous,"$1,250.45 ",4/13/2023
GRM Information Management Services,Services,"$1,090.80 ",4/13/2023
GRM Information Management Services,Miscellaneous,"$1,098.55 ",4/27/2023
GRM Information Management Services,Services,$944.21 ,4/27/2023
GRM Information Management Services,Services,$269.00 ,5/11/2023
GRM Information Management Services,Services,$734.55 ,5/25/2023
GRM Information Management Services,Miscellaneous,$883.39 ,5/31/2023
GRM Information Management Services,Services,"$1,082.83 ",5/31/2023
GRM Information Management Services,Miscellaneous,"$1,203.18 ",6/22/2023
GRM Information Management Services,Services,"$1,275.80 ",6/22/2023
GRM Information Management Services,Services,$364.10 ,7/20/2023
GRM Information Management Services,Miscellaneous,"$1,141.83 ",8/4/2023
GRM Information Management Services,Services,"$1,311.60 ",8/4/2023
GRM Information Management Services,Miscellaneous,"$1,008.98 ",8/24/2023
GRM Information Management Services,Services,$816.20 ,8/24/2023
GRM Information Management Services,Services,$367.50 ,9/21/2023
GRM Information Management Services,Miscellaneous,$980.80 ,9/28/2023
GRM Information Management Services,Services,$943.50 ,9/28/2023
GRM Information Management Services,Services,"$1,156.65 ",10/19/2023
GRM Information Management Services,Miscellaneous,"$1,262.33 ",10/26/2023
GRM Information Management Services,Services,"$1,037.60 ",10/26/2023
GRM Information Management Services,Services,$359.70 ,11/24/2023
GRM Information Management Services,Miscellaneous,"$1,118.77 ",11/30/2023
GRM Information Management Services,Services,$913.43 ,11/30/2023
GRM Information Management Services,Miscellaneous,"$1,438.67 ",12/21/2023
GRM Information Management Services,Services,$827.03 ,12/21/2023
Gabriel Environmental Services,Services,$795.00 ,1/26/2023
Galls LLC,Fringe Benefits,"$4,799.71 ",1/5/2023
Galls LLC,Fringe Benefits,"$6,305.29 ",1/12/2023
Galls LLC,Fringe Benefits,"$6,994.58 ",1/19/2023
Galls LLC,Fringe Benefits,"$3,623.99 ",1/26/2023
Galls LLC,Fringe Benefits,"$9,962.51 ",1/31/2023
Galls LLC,Fringe Benefits,"$5,494.43 ",2/9/2023
Galls LLC,Fringe Benefits,"$15,200.19 ",2/23/2023
Galls LLC,Fringe Benefits,"$5,149.51 ",2/28/2023
Galls LLC,Fringe Benefits,"$6,508.09 ",3/9/2023
Galls LLC,Fringe Benefits,$350.45 ,3/16/2023
Galls LLC,Fringe Benefits,"$4,074.39 ",3/23/2023
Galls LLC,Fringe Benefits,"$18,547.59 ",3/30/2023
Galls LLC,Fringe Benefits,"$6,023.25 ",4/13/2023
Galls LLC,Fringe Benefits,"$5,937.89 ",4/20/2023
Galls LLC,Fringe Benefits,"$15,544.68 ",4/27/2023
Galls LLC,Fringe Benefits,"$1,376.57 ",5/4/2023
Galls LLC,Fringe Benefits,"$6,053.98 ",5/11/2023
Galls LLC,Fringe Benefits,"$3,257.19 ",5/18/2023
Galls LLC,Fringe Benefits,"$14,196.24 ",5/25/2023
Galls LLC,Fringe Benefits,"$3,614.79 ",5/31/2023
Galls LLC,Fringe Benefits,"$1,244.14 ",6/8/2023
Galls LLC,Fringe Benefits,"$13,820.31 ",6/15/2023
Galls LLC,Fringe Benefits,"$9,505.11 ",6/22/2023
Galls LLC,Fringe Benefits,"$4,208.40 ",6/29/2023
Galls LLC,Fringe Benefits,"$9,806.72 ",7/13/2023
Galls LLC,Fringe Benefits,"$6,948.13 ",7/20/2023
Galls LLC,Fringe Benefits,"$3,658.12 ",7/27/2023
Galls LLC,Fringe Benefits,"$5,626.33 ",8/4/2023
Galls LLC,Fringe Benefits,"$1,695.77 ",8/17/2023
Galls LLC,Fringe Benefits,"$5,996.76 ",8/24/2023
Galls LLC,Fringe Benefits,"$1,594.88 ",8/31/2023
Galls LLC,Fringe Benefits,"$29,487.56 ",9/8/2023
Galls LLC,Fringe Benefits,"$2,271.59 ",9/14/2023
Galls LLC,Fringe Benefits,"$6,051.68 ",9/21/2023
Galls LLC,Fringe Benefits,"$10,507.81 ",9/28/2023
Galls LLC,Fringe Benefits,$674.75 ,10/5/2023
Galls LLC,Fringe Benefits,"$15,145.82 ",10/26/2023
Galls LLC,Fringe Benefits,$217.99 ,10/31/2023
Galls LLC,Fringe Benefits,"$4,671.79 ",11/9/2023
Galls LLC,Fringe Benefits,"$11,883.53 ",11/16/2023
Galls LLC,Fringe Benefits,"$10,198.22 ",11/24/2023
Galls LLC,Fringe Benefits,"$12,896.63 ",11/30/2023
Galls LLC,Fringe Benefits,"$1,906.43 ",12/7/2023
Galls LLC,Fringe Benefits,"$8,034.77 ",12/14/2023
Galls LLC,Fringe Benefits,"$9,721.18 ",12/21/2023
Galls LLC,Fringe Benefits,"$13,088.54 ",12/29/2023
Garda CL Great Lakes Inc,Services,"$20,463.77 ",1/12/2023
Garda CL Great Lakes Inc,Services,"$15,034.26 ",1/31/2023
Gatesman Inc,Equipment,"$47,197.24 ",1/12/2023
Gatesman Inc,Operating,$354.76 ,1/12/2023
Gatesman Inc,Services,"$2,444.44 ",1/12/2023
Gatesman Inc,Equipment,"$47,180.00 ",1/26/2023
Gatesman Inc,Services,"$260,681.11 ",1/26/2023
Gatesman Inc,Services,"$249,230.43 ",2/28/2023
Gatesman Inc,Equipment,"$19,826.25 ",3/9/2023
Gatesman Inc,Services,"$1,188.00 ",3/9/2023
Gatesman Inc,Services,"$546,879.90 ",3/30/2023
Gatesman Inc,Equipment,"$19,507.73 ",4/13/2023
Gatesman Inc,Equipment,"$46,020.90 ",4/27/2023
Gatesman Inc,Operating,"$100,000.00 ",6/22/2023
Gatesman Inc,Miscellaneous,"$2,750.00 ",6/29/2023
Gatesman Inc,Services,"$210,108.69 ",6/29/2023
Gatesman Inc,Services,"$176,563.46 ",7/6/2023
Gatesman Inc,Services,"$8,643.81 ",7/20/2023
Gatesman Inc,Services,"$292,904.22 ",7/27/2023
Gatesman Inc,Services,"$14,492.50 ",8/4/2023
Gatesman Inc,Services,"$211,477.22 ",8/24/2023
Gatesman Inc,Equipment,"$16,131.18 ",9/21/2023
Gatesman Inc,Services,"$112,894.85 ",9/21/2023
Gatesman Inc,Services,"$13,471.96 ",9/28/2023
Gatesman Inc,Equipment,"$3,000.00 ",10/26/2023
Gatesman Inc,Equipment,"$9,194.50 ",10/31/2023
Gatesman Inc,Services,"$191,286.71 ",10/31/2023
Gatesman Inc,Services,"$180,804.88 ",11/24/2023
Gatesman Inc,Equipment,"$11,275.00 ",12/7/2023
Gatesman Inc,Equipment,"$32,400.00 ",12/14/2023
Gatesman Inc,Services,"$30,791.27 ",12/29/2023
Genfare LLC,Equipment,"$72,938.69 ",1/5/2023
Genfare LLC,Materials and Supplies,"$5,369.84 ",1/19/2023
Genfare LLC,Equipment,"$514,348.05 ",4/27/2023
Genfare LLC,Equipment,"$1,407,195.12 ",5/31/2023
Genfare LLC,Equipment,"$13,000.00 ",6/29/2023
Genfare LLC,Materials and Supplies,"$1,763.70 ",6/29/2023
Genfare LLC,Equipment,"$205,236.74 ",7/6/2023
Genfare LLC,Materials and Supplies,"$1,996.96 ",7/6/2023
Genfare LLC,Equipment,"$523,317.56 ",8/10/2023
Genfare LLC,Equipment,"$3,122,176.54 ",9/21/2023
Genfare LLC,Materials and Supplies,$727.70 ,9/21/2023
Genfare LLC,Equipment,"$15,841.04 ",10/19/2023
Genfare LLC,Materials and Supplies,$207.71 ,10/26/2023
Genfare LLC,Equipment,"$2,080,746.16 ",10/31/2023
Genfare LLC,Equipment,"$397,400.00 ",12/29/2023
Ghedam Trans Inc,Purchased Transportation,$90.00 ,5/11/2023
Ghedam Trans Inc,Purchased Transportation,$306.75 ,8/17/2023
Ghedam Trans Inc,Purchased Transportation,$23.50 ,8/31/2023
Ghedam Trans Inc,Purchased Transportation,$18.75 ,10/31/2023
Ghedam Trans Inc,Purchased Transportation,$74.50 ,11/24/2023
Ghedam Trans Inc,Purchased Transportation,$59.00 ,12/7/2023
Gillig LLC,Fuel/Parts Inventory,"$12,438.15 ",1/5/2023
Gillig LLC,Fuel/Parts Inventory,"$11,100.08 ",1/19/2023
Gillig LLC,Fuel/Parts Inventory,"$28,091.64 ",1/26/2023
Gillig LLC,Fuel/Parts Inventory,"$28,731.15 ",1/31/2023
Gillig LLC,Fuel/Parts Inventory,"$23,461.44 ",2/16/2023
Gillig LLC,Fuel/Parts Inventory,"$82,861.11 ",2/28/2023
Gillig LLC,Fuel/Parts Inventory,"$39,970.26 ",3/9/2023
Gillig LLC,Fuel/Parts Inventory,"$72,344.29 ",3/16/2023
Gillig LLC,Fuel/Parts Inventory,"$6,735.80 ",3/30/2023
Gillig LLC,Fuel/Parts Inventory,"$15,827.36 ",4/13/2023
Gillig LLC,Fuel/Parts Inventory,"$37,932.78 ",4/27/2023
Gillig LLC,Fuel/Parts Inventory,"$14,677.20 ",5/4/2023
Gillig LLC,Fuel/Parts Inventory,"$3,682.12 ",5/11/2023
Gillig LLC,Fuel/Parts Inventory,"$10,303.52 ",5/18/2023
Gillig LLC,Fuel/Parts Inventory,"$18,487.76 ",5/25/2023
Gillig LLC,Fuel/Parts Inventory,"$20,181.69 ",5/31/2023
Gillig LLC,Services,"$5,000.00 ",5/31/2023
Gillig LLC,Fuel/Parts Inventory,"$47,120.04 ",6/8/2023
Gillig LLC,Fuel/Parts Inventory,"$21,402.34 ",6/15/2023
Gillig LLC,Fuel/Parts Inventory,"$40,015.04 ",6/22/2023
Gillig LLC,Fuel/Parts Inventory,"$5,480.65 ",6/29/2023
Gillig LLC,Fuel/Parts Inventory,"$21,563.25 ",7/6/2023
Gillig LLC,Fuel/Parts Inventory,"$26,401.35 ",8/4/2023
Gillig LLC,Fuel/Parts Inventory,"$29,309.88 ",8/10/2023
Gillig LLC,Fuel/Parts Inventory,"$26,109.09 ",8/17/2023
Gillig LLC,Fuel/Parts Inventory,"$7,905.55 ",8/24/2023
Gillig LLC,Fuel/Parts Inventory,"$37,561.61 ",8/31/2023
Gillig LLC,Materials and Supplies,"($1,873.42)",8/31/2023
Gillig LLC,Fuel/Parts Inventory,"$2,783.54 ",9/8/2023
Gillig LLC,Materials and Supplies,"$11,095.42 ",9/8/2023
Gillig LLC,Fuel/Parts Inventory,"$2,077.95 ",9/14/2023
Gillig LLC,Fuel/Parts Inventory,"$2,929.71 ",10/5/2023
Gillig LLC,Fuel/Parts Inventory,"$8,232.04 ",10/12/2023
Gillig LLC,Fuel/Parts Inventory,"$13,997.69 ",10/19/2023
Gillig LLC,Fuel/Parts Inventory,"$104,326.90 ",11/9/2023
Gillig LLC,Fuel/Parts Inventory,$975.98 ,11/16/2023
Gillig LLC,Fuel/Parts Inventory,"$24,227.74 ",11/24/2023
Gillig LLC,Fuel/Parts Inventory,"$49,656.75 ",12/7/2023
Gillig LLC,Fuel/Parts Inventory,"$12,084.25 ",12/14/2023
Gillig LLC,Fuel/Parts Inventory,"$27,720.40 ",12/21/2023
Gillig LLC,Fuel/Parts Inventory,"$2,711.38 ",12/29/2023
Giro Inc,Services,"$45,699.00 ",8/2/2023
Giro Inc,Services,"$168,293.00 ",8/8/2023
Glenn Shinagawa,Purchased Transportation,$240.00 ,10/26/2023
Global Petroleum Products LLC,Fuel/Parts Inventory,"$6,294.20 ",4/27/2023
Global Petroleum Products LLC,Fuel/Parts Inventory,"$2,233.00 ",5/4/2023
Global Petroleum Products LLC,Fuel/Parts Inventory,"$26,612.75 ",10/31/2023
Global Petroleum Products LLC,Fuel/Parts Inventory,"$8,933.60 ",12/14/2023
Global Water Technology Inc,Services,$400.38 ,6/22/2023
Global Water Technology Inc,Services,$182.00 ,12/7/2023
Globe Taxi Association,Purchased Transportation,"$92,997.75 ",1/26/2023
Globe Taxi Association,Purchased Transportation,"$55,439.75 ",2/9/2023
Globe Taxi Association,Purchased Transportation,"$23,536.00 ",2/28/2023
Globe Taxi Association,Purchased Transportation,"$78,623.25 ",3/16/2023
Globe Taxi Association,Purchased Transportation,"$23,815.00 ",3/30/2023
Globe Taxi Association,Purchased Transportation,"$25,893.75 ",5/4/2023
Globe Taxi Association,Purchased Transportation,"$79,838.50 ",5/18/2023
Globe Taxi Association,Purchased Transportation,"$27,155.25 ",5/31/2023
Globe Taxi Association,Purchased Transportation,"$25,852.75 ",6/8/2023
Globe Taxi Association,Purchased Transportation,"$43,177.50 ",6/22/2023
Globe Taxi Association,Purchased Transportation,"$44,261.25 ",6/29/2023
Globe Taxi Association,Purchased Transportation,"$19,446.00 ",7/6/2023
Globe Taxi Association,Purchased Transportation,"$21,359.50 ",7/13/2023
Globe Taxi Association,Purchased Transportation,"$39,775.25 ",8/4/2023
Globe Taxi Association,Purchased Transportation,"$20,308.05 ",8/10/2023
Globe Taxi Association,Purchased Transportation,"$35,750.00 ",9/7/2023
Globe Taxi Association,Purchased Transportation,"$23,083.00 ",9/8/2023
Globe Taxi Association,Purchased Transportation,"$18,915.50 ",9/21/2023
Globe Taxi Association,Purchased Transportation,"$64,638.75 ",9/28/2023
Globe Taxi Association,Purchased Transportation,"$50,600.50 ",10/19/2023
Globe Taxi Association,Purchased Transportation,"$71,255.00 ",10/31/2023
Globe Taxi Association,Purchased Transportation,"$14,282.50 ",11/9/2023
Globe Taxi Association,Purchased Transportation,"$42,237.25 ",11/16/2023
Globe Taxi Association,Purchased Transportation,"$45,565.25 ",11/24/2023
Globe Taxi Association,Purchased Transportation,"$23,065.25 ",11/30/2023
Globe Taxi Association,Purchased Transportation,"$46,823.00 ",12/14/2023
Globe Taxi Association,Purchased Transportation,"$47,685.00 ",12/29/2023
Good Shepherd Center,Miscellaneous,$130.00 ,2/2/2023
Good Shepherd Center,Miscellaneous,$150.00 ,12/7/2023
GovHR USA LLC,Services,"$30,600.00 ",7/13/2023
GovHR USA LLC,Services,"$11,400.00 ",7/20/2023
GovHR USA LLC,Services,"$11,400.00 ",7/27/2023
GovHR USA LLC,Services,"$2,234.20 ",12/7/2023
GovTempsUSA,Services,"$1,680.00 ",1/19/2023
GovTempsUSA,Services,"$4,547.20 ",3/16/2023
Government Consulting Services of Illinois LLC,Services,"$3,000.00 ",1/19/2023
Government Consulting Services of Illinois LLC,Services,"$3,000.00 ",2/16/2023
Government Consulting Services of Illinois LLC,Services,"$3,000.00 ",3/30/2023
Government Consulting Services of Illinois LLC,Services,"$3,000.00 ",4/13/2023
Government Consulting Services of Illinois LLC,Services,"$3,000.00 ",5/18/2023
Government Consulting Services of Illinois LLC,Services,"$3,000.00 ",6/15/2023
Government Consulting Services of Illinois LLC,Services,"$3,000.00 ",7/20/2023
Government Consulting Services of Illinois LLC,Services,"$3,000.00 ",8/10/2023
Government Consulting Services of Illinois LLC,Services,"$3,000.00 ",9/28/2023
Government Consulting Services of Illinois LLC,Services,"$3,000.00 ",10/19/2023
Government Consulting Services of Illinois LLC,Services,"$3,000.00 ",11/16/2023
Government Consulting Services of Illinois LLC,Services,"$3,000.00 ",12/14/2023
Government Finance Officers Association,Miscellaneous,$725.00 ,2/16/2023
Grainger Inc,Materials and Supplies,"$4,194.46 ",1/5/2023
Grainger Inc,Materials and Supplies,"$6,709.72 ",1/12/2023
Grainger Inc,Materials and Supplies,"$5,118.55 ",1/19/2023
Grainger Inc,Materials and Supplies,"$1,679.25 ",1/26/2023
Grainger Inc,Materials and Supplies,"$9,609.47 ",1/31/2023
Grainger Inc,Services,$478.54 ,1/31/2023
Grainger Inc,Materials and Supplies,$82.35 ,2/16/2023
Grainger Inc,Services,$231.04 ,2/16/2023
Grainger Inc,Materials and Supplies,"$2,437.21 ",2/23/2023
Grainger Inc,Materials and Supplies,"$6,792.90 ",2/28/2023
Grainger Inc,Materials and Supplies,"$8,691.14 ",3/9/2023
Grainger Inc,Services,"$2,121.78 ",3/9/2023
Grainger Inc,Materials and Supplies,"$1,299.85 ",3/16/2023
Grainger Inc,Services,$832.16 ,3/16/2023
Grainger Inc,Services,"$1,849.40 ",3/23/2023
Grainger Inc,Materials and Supplies,"$11,266.29 ",3/30/2023
Grainger Inc,Services,$713.99 ,3/30/2023
Grainger Inc,Materials and Supplies,$934.53 ,4/13/2023
Grainger Inc,Materials and Supplies,"$3,144.55 ",4/20/2023
Grainger Inc,Materials and Supplies,"$2,358.43 ",4/27/2023
Grainger Inc,Services,$271.88 ,4/27/2023
Grainger Inc,Materials and Supplies,"$5,706.31 ",5/4/2023
Grainger Inc,Services,"$3,655.46 ",5/4/2023
Grainger Inc,Materials and Supplies,"$1,046.36 ",5/11/2023
Grainger Inc,Materials and Supplies,"$1,573.74 ",5/18/2023
Grainger Inc,Services,"$2,931.37 ",5/18/2023
Grainger Inc,Materials and Supplies,$538.95 ,5/25/2023
Grainger Inc,Services,"$2,580.75 ",5/25/2023
Grainger Inc,Materials and Supplies,"$1,628.79 ",5/31/2023
Grainger Inc,Materials and Supplies,"$2,566.19 ",6/8/2023
Grainger Inc,Materials and Supplies,"$4,767.61 ",6/15/2023
Grainger Inc,Services,$928.46 ,6/15/2023
Grainger Inc,Materials and Supplies,"$6,486.63 ",6/22/2023
Grainger Inc,Services,"$1,316.52 ",6/22/2023
Grainger Inc,Materials and Supplies,"$4,024.32 ",6/29/2023
Grainger Inc,Services,"$4,427.36 ",6/29/2023
Grainger Inc,Materials and Supplies,"$8,209.35 ",7/6/2023
Grainger Inc,Services,$333.03 ,7/20/2023
Grainger Inc,Materials and Supplies,"$5,316.06 ",7/27/2023
Grainger Inc,Materials and Supplies,"$18,571.00 ",8/4/2023
Grainger Inc,Services,"$1,435.13 ",8/4/2023
Grainger Inc,Materials and Supplies,"$10,388.12 ",8/17/2023
Grainger Inc,Services,$760.07 ,8/17/2023
Grainger Inc,Materials and Supplies,"$3,006.39 ",8/24/2023
Grainger Inc,Services,"$2,802.67 ",8/24/2023
Grainger Inc,Materials and Supplies,"$1,334.42 ",8/31/2023
Grainger Inc,Services,$649.60 ,8/31/2023
Grainger Inc,Materials and Supplies,"$2,231.51 ",9/8/2023
Grainger Inc,Materials and Supplies,"$5,579.82 ",9/14/2023
Grainger Inc,Services,$11.67 ,9/14/2023
Grainger Inc,Materials and Supplies,"$5,021.23 ",9/21/2023
Grainger Inc,Materials and Supplies,"$3,878.62 ",10/5/2023
Grainger Inc,Services,"$1,516.93 ",10/5/2023
Grainger Inc,Materials and Supplies,"$1,345.20 ",10/12/2023
Grainger Inc,Materials and Supplies,"$4,720.15 ",10/19/2023
Grainger Inc,Materials and Supplies,"$4,950.59 ",10/26/2023
Grainger Inc,Materials and Supplies,$268.68 ,10/31/2023
Grainger Inc,Materials and Supplies,"$18,835.65 ",11/9/2023
Grainger Inc,Services,$356.96 ,11/9/2023
Grainger Inc,Materials and Supplies,$163.88 ,11/16/2023
Grainger Inc,Services,$563.37 ,11/16/2023
Grainger Inc,Materials and Supplies,"$10,466.09 ",11/24/2023
Grainger Inc,Services,$448.96 ,11/24/2023
Grainger Inc,Materials and Supplies,"$5,082.76 ",12/7/2023
Grainger Inc,Services,$52.52 ,12/7/2023
Grainger Inc,Materials and Supplies,"$6,307.63 ",12/21/2023
Grainger Inc,Services,$323.80 ,12/21/2023
Grainger Inc,Materials and Supplies,"$1,346.97 ",12/29/2023
Graphic Partners Inc,Services,"$3,020.85 ",3/16/2023
Great Lakes Metals Corp,Services,"$2,378.17 ",1/19/2023
Great West Life & Annuity Ins,401k/457b Pension EE/ER Contributionn,"$97,641.89 ",1/3/2023
Great West Life & Annuity Ins,401k/457b Pension EE/ER Contributionn,"$6,802.35 ",1/9/2023
Great West Life & Annuity Ins,401k/457b Pension EE/ER Contributionn,"$131,054.43 ",1/17/2023
Great West Life & Annuity Ins,401k/457b Pension EE/ER Contributionn,"$6,593.98 ",1/23/2023
Great West Life & Annuity Ins,Services,"$20,320.50 ",1/24/2023
Great West Life & Annuity Ins,401k/457b Pension EE/ER Contributionn,"$103,594.10 ",1/30/2023
Great West Life & Annuity Ins,401k/457b Pension EE/ER Contributionn,"$6,788.57 ",2/6/2023
Great West Life & Annuity Ins,401k/457b Pension EE/ER Contributionn,"$102,758.57 ",2/13/2023
Great West Life & Annuity Ins,401k/457b Pension EE/ER Contributionn,"$6,358.64 ",2/21/2023
Great West Life & Annuity Ins,401k/457b Pension EE/ER Contributionn,"$110,985.54 ",2/27/2023
Great West Life & Annuity Ins,Fringe Benefits,"$368,356.39 ",2/27/2023
Great West Life & Annuity Ins,401k/457b Pension EE/ER Contributionn,"$6,543.04 ",3/6/2023
Great West Life & Annuity Ins,401k/457b Pension EE/ER Contributionn,"$107,508.75 ",3/13/2023
Great West Life & Annuity Ins,401k/457b Pension EE/ER Contributionn,"$5,749.75 ",3/20/2023
Great West Life & Annuity Ins,401k/457b Pension EE/ER Contributionn,"$105,918.08 ",3/27/2023
Great West Life & Annuity Ins,401k/457b Pension EE/ER Contributionn,"$5,749.75 ",4/3/2023
Great West Life & Annuity Ins,401k/457b Pension EE/ER Contributionn,"$107,957.94 ",4/7/2023
Great West Life & Annuity Ins,401k/457b Pension EE/ER Contributionn,"$5,054.92 ",4/17/2023
Great West Life & Annuity Ins,401k/457b Pension EE/ER Contributionn,"$107,903.24 ",4/24/2023
Great West Life & Annuity Ins,401k/457b Pension EE/ER Contributionn,"$7,297.53 ",5/1/2023
Great West Life & Annuity Ins,401k/457b Pension EE/ER Contributionn,"$108,265.64 ",5/8/2023
Great West Life & Annuity Ins,401k/457b Pension EE/ER Contributionn,"$5,059.52 ",5/15/2023
Great West Life & Annuity Ins,401k/457b Pension EE/ER Contributionn,"$109,141.44 ",5/22/2023
Great West Life & Annuity Ins,401k/457b Pension EE/ER Contributionn,"$5,059.52 ",5/30/2023
Great West Life & Annuity Ins,401k/457b Pension EE/ER Contributionn,"$109,121.06 ",6/5/2023
Great West Life & Annuity Ins,401k/457b Pension EE/ER Contributionn,"$5,059.49 ",6/12/2023
Great West Life & Annuity Ins,Services,"$20,412.50 ",6/12/2023
Great West Life & Annuity Ins,401k/457b Pension EE/ER Contributionn,"$107,432.75 ",6/20/2023
Great West Life & Annuity Ins,401k/457b Pension EE/ER Contributionn,"$5,012.07 ",6/26/2023
Great West Life & Annuity Ins,401k/457b Pension EE/ER Contributionn,"$106,753.85 ",7/3/2023
Great West Life & Annuity Ins,401k/457b Pension EE/ER Contributionn,"$5,089.36 ",7/10/2023
Great West Life & Annuity Ins,401k/457b Pension EE/ER Contributionn,"$107,449.92 ",7/17/2023
Great West Life & Annuity Ins,401k/457b Pension EE/ER Contributionn,"$5,089.36 ",7/24/2023
Great West Life & Annuity Ins,401k/457b Pension EE/ER Contributionn,"$104,912.71 ",7/31/2023
Great West Life & Annuity Ins,Services,"$20,475.75 ",8/1/2023
Great West Life & Annuity Ins,401k/457b Pension EE/ER Contributionn,"$5,089.36 ",8/7/2023
Great West Life & Annuity Ins,401k/457b Pension EE/ER Contributionn,"$103,725.26 ",8/14/2023
Great West Life & Annuity Ins,401k/457b Pension EE/ER Contributionn,"$4,951.25 ",8/21/2023
Great West Life & Annuity Ins,401k/457b Pension EE/ER Contributionn,"$117,936.92 ",8/28/2023
Great West Life & Annuity Ins,401k/457b Pension EE/ER Contributionn,"$4,878.03 ",9/5/2023
Great West Life & Annuity Ins,401k/457b Pension EE/ER Contributionn,"$103,019.37 ",9/11/2023
Great West Life & Annuity Ins,401k/457b Pension EE/ER Contributionn,"$5,007.84 ",9/18/2023
Great West Life & Annuity Ins,401k/457b Pension EE/ER Contributionn,"$101,152.15 ",9/25/2023
Great West Life & Annuity Ins,401k/457b Pension EE/ER Contributionn,"$4,908.85 ",9/29/2023
Great West Life & Annuity Ins,401k/457b Pension EE/ER Contributionn,"$103,795.60 ",10/10/2023
Great West Life & Annuity Ins,401k/457b Pension EE/ER Contributionn,"$4,539.20 ",10/18/2023
Greenfield Contractors LLC,Building/Bldg Improvement,"$70,095.00 ",3/30/2023
Groot Recycling & Waste Service Inc,Services,$112.00 ,1/12/2023
Groot Recycling & Waste Service Inc,Services,$563.97 ,1/19/2023
Groot Recycling & Waste Service Inc,Services,$187.99 ,2/16/2023
Groot Recycling & Waste Service Inc,Services,$56.00 ,3/2/2023
Groot Recycling & Waste Service Inc,Services,$375.98 ,4/13/2023
Groot Recycling & Waste Service Inc,Services,$168.00 ,5/11/2023
Groot Recycling & Waste Service Inc,Services,$380.98 ,6/15/2023
Groot Recycling & Waste Service Inc,Services,$187.99 ,7/27/2023
Groot Recycling & Waste Service Inc,Services,$192.99 ,8/17/2023
Groot Recycling & Waste Service Inc,Services,$197.39 ,9/21/2023
Groot Recycling & Waste Service Inc,Services,$207.39 ,11/16/2023
Groot Recycling & Waste Service Inc,Services,$202.39 ,11/22/2023
Ground Penetrating Radar Systems Inc,Services,"$2,050.00 ",5/18/2023
Ground Penetrating Radar Systems Inc,Services,$650.00 ,12/14/2023
Guardian Medical Logistics,Services,"$1,574.00 ",1/5/2023
Guardian Medical Logistics,Services,$912.00 ,1/19/2023
Guardian Medical Logistics,Services,"$2,088.00 ",1/26/2023
Guardian Medical Logistics,Services,"$1,693.00 ",1/31/2023
Guardian Medical Logistics,Services,"$1,565.00 ",2/3/2023
Guardian Medical Logistics,Services,"$1,506.00 ",3/16/2023
Guardian Medical Logistics,Services,$999.00 ,4/20/2023
Guardian Medical Logistics,Services,$822.00 ,5/11/2023
Guardian Medical Logistics,Services,$212.00 ,5/31/2023
Guardian Medical Logistics,Services,$498.00 ,6/29/2023
Guardian Medical Logistics,Services,$186.00 ,7/6/2023
Guardian Medical Logistics,Services,"$1,790.00 ",7/20/2023
Guardian Medical Logistics,Services,$197.00 ,8/4/2023
Guardian Medical Logistics,Services,"$1,108.00 ",8/17/2023
Guardian Medical Logistics,Services,$372.00 ,8/24/2023
Guardian Medical Logistics,Services,$147.00 ,9/8/2023
Guardian Medical Logistics,Services,"$1,060.00 ",9/14/2023
Guardian Medical Logistics,Services,$407.00 ,9/21/2023
Guardian Medical Logistics,Services,$288.00 ,9/28/2023
Guardian Medical Logistics,Services,$347.00 ,10/5/2023
Guardian Medical Logistics,Services,$212.00 ,10/12/2023
Guardian Medical Logistics,Services,$498.00 ,10/19/2023
Guardian Medical Logistics,Services,$584.00 ,10/31/2023
Guardian Medical Logistics,Services,$922.00 ,11/9/2023
Guardian Medical Logistics,Services,$333.00 ,12/7/2023
Guardian Medical Logistics,Services,$268.00 ,12/14/2023
Guardian Medical Logistics,Services,$238.00 ,12/29/2023
HNTB Corporation,Operating,"$32,822.31 ",1/12/2023
HNTB Corporation,Services,"$24,628.73 ",1/12/2023
HNTB Corporation,Operating,"$27,055.79 ",2/9/2023
HNTB Corporation,Services,"$53,661.53 ",2/9/2023
HNTB Corporation,Operating,"$26,748.82 ",3/9/2023
HNTB Corporation,Services,"$17,189.79 ",3/9/2023
HNTB Corporation,Operating,"$17,260.20 ",5/25/2023
HNTB Corporation,Services,"$57,334.61 ",5/25/2023
HNTB Corporation,Operating,"$22,236.02 ",5/31/2023
HNTB Corporation,Services,"$46,858.56 ",5/31/2023
HNTB Corporation,Services,"$52,136.26 ",6/29/2023
HNTB Corporation,Services,"$44,741.41 ",8/10/2023
HNTB Corporation,Services,"$36,327.29 ",8/31/2023
HNTB Corporation,Services,"$69,914.38 ",10/26/2023
HNTB Corporation,Services,"$58,434.12 ",11/16/2023
HNTB Corporation,Services,"$65,665.99 ",11/30/2023
HNTB Corporation,Services,"$59,409.31 ",12/29/2023
Harsco Rail LLC,Services,"$3,695.00 ",11/16/2023
Hazal Transit Inc,Purchased Transportation,$68.25 ,1/12/2023
Hazal Transit Inc,Purchased Transportation,$138.25 ,1/26/2023
Hazal Transit Inc,Purchased Transportation,$111.50 ,3/16/2023
Hazal Transit Inc,Purchased Transportation,$40.50 ,5/25/2023
Hazal Transit Inc,Purchased Transportation,$133.50 ,6/8/2023
Hazal Transit Inc,Purchased Transportation,$483.00 ,7/20/2023
Hazal Transit Inc,Purchased Transportation,$152.00 ,11/16/2023
Hazal Transit Inc,Purchased Transportation,$315.50 ,11/24/2023
Hazal Transit Inc,Purchased Transportation,$104.50 ,12/29/2023
Heidi Muntjanoff,Purchased Transportation,$22.92 ,2/23/2023
Heidi Muntjanoff,Purchased Transportation,$57.76 ,3/16/2023
Heidi Muntjanoff,Purchased Transportation,$13.99 ,3/30/2023
Heidi Muntjanoff,Purchased Transportation,$22.05 ,6/15/2023
Heritage Crystal Clean LLC,Materials and Supplies,"$1,677.00 ",1/12/2023
Heritage Crystal Clean LLC,Materials and Supplies,"$1,467.00 ",1/19/2023
Heritage Crystal Clean LLC,Materials and Supplies,$609.56 ,1/26/2023
Heritage Crystal Clean LLC,Services,$299.02 ,2/2/2023
Heritage Crystal Clean LLC,Materials and Supplies,"$1,661.00 ",2/23/2023
Heritage Crystal Clean LLC,Materials and Supplies,"$4,257.00 ",3/2/2023
Heritage Crystal Clean LLC,Materials and Supplies,"$2,139.00 ",3/9/2023
Heritage Crystal Clean LLC,Materials and Supplies,$609.56 ,3/16/2023
Heritage Crystal Clean LLC,Materials and Supplies,"$1,806.00 ",3/30/2023
Heritage Crystal Clean LLC,Services,$149.51 ,3/30/2023
Heritage Crystal Clean LLC,Materials and Supplies,"$4,170.00 ",4/6/2023
Heritage Crystal Clean LLC,Materials and Supplies,"$1,871.00 ",4/20/2023
Heritage Crystal Clean LLC,Services,$149.51 ,4/20/2023
Heritage Crystal Clean LLC,Materials and Supplies,$147.56 ,4/27/2023
Heritage Crystal Clean LLC,Services,$149.51 ,5/4/2023
Heritage Crystal Clean LLC,Materials and Supplies,"$3,531.00 ",5/18/2023
Heritage Crystal Clean LLC,Materials and Supplies,"$3,477.00 ",5/25/2023
Heritage Crystal Clean LLC,Materials and Supplies,"$8,178.00 ",6/15/2023
Heritage Crystal Clean LLC,Services,$149.51 ,6/15/2023
Heritage Crystal Clean LLC,Materials and Supplies,"$1,705.00 ",6/22/2023
Heritage Crystal Clean LLC,Materials and Supplies,$903.00 ,7/6/2023
Heritage Crystal Clean LLC,Materials and Supplies,"$7,480.00 ",7/27/2023
Heritage Crystal Clean LLC,Services,$598.04 ,8/3/2023
Heritage Crystal Clean LLC,Materials and Supplies,$903.00 ,8/10/2023
Heritage Crystal Clean LLC,Materials and Supplies,"$6,554.00 ",8/24/2023
Heritage Crystal Clean LLC,Services,$149.51 ,8/24/2023
Heritage Crystal Clean LLC,Materials and Supplies,$968.00 ,8/31/2023
Heritage Crystal Clean LLC,Materials and Supplies,"$6,473.00 ",9/14/2023
Heritage Crystal Clean LLC,Services,$149.51 ,9/14/2023
Heritage Crystal Clean LLC,Materials and Supplies,$774.00 ,9/21/2023
Heritage Crystal Clean LLC,Materials and Supplies,"$3,635.00 ",9/28/2023
Heritage Crystal Clean LLC,Materials and Supplies,$693.00 ,10/5/2023
Heritage Crystal Clean LLC,Materials and Supplies,$347.00 ,10/19/2023
Heritage Crystal Clean LLC,Materials and Supplies,"$2,451.00 ",10/26/2023
Heritage Crystal Clean LLC,Materials and Supplies,"$4,653.00 ",11/2/2023
Heritage Crystal Clean LLC,Materials and Supplies,$462.00 ,11/9/2023
Heritage Crystal Clean LLC,Services,$299.02 ,11/9/2023
Heritage Crystal Clean LLC,Materials and Supplies,"$4,550.00 ",11/16/2023
Heritage Crystal Clean LLC,Materials and Supplies,$693.00 ,11/22/2023
Heritage Crystal Clean LLC,Materials and Supplies,"$1,752.00 ",11/30/2023
Heritage Crystal Clean LLC,Materials and Supplies,"$1,224.00 ",12/7/2023
Heritage Crystal Clean LLC,Materials and Supplies,"$4,547.00 ",12/14/2023
Heritage Crystal Clean LLC,Materials and Supplies,$903.00 ,12/21/2023
Heritage Crystal Clean LLC,Services,$299.02 ,12/21/2023
Heyl Royster Voelker Allen,Miscellaneous,$345.00 ,10/12/2023
High PSI Ltd,Equipment,"$19,788.00 ",12/21/2023
Hillside Auto Body & Service,Services,"$5,913.75 ",1/5/2023
Hillside Auto Body & Service,Services,"$1,215.00 ",1/12/2023
Hillside Auto Body & Service,Services,"$1,616.25 ",1/19/2023
Hillside Auto Body & Service,Services,"$3,952.50 ",1/26/2023
Hillside Auto Body & Service,Services,$726.25 ,1/31/2023
Hillside Auto Body & Service,Services,"$1,826.25 ",2/9/2023
Hillside Auto Body & Service,Services,$421.25 ,2/16/2023
Hillside Auto Body & Service,Services,"$3,286.25 ",2/23/2023
Hillside Auto Body & Service,Services,"$1,481.25 ",2/28/2023
Hillside Auto Body & Service,Services,"$1,927.50 ",3/9/2023
Hillside Auto Body & Service,Services,"$2,191.25 ",3/16/2023
Hillside Auto Body & Service,Services,"$3,450.00 ",3/23/2023
Hillside Auto Body & Service,Services,"$3,292.50 ",3/30/2023
Hillside Auto Body & Service,Services,"$1,350.00 ",4/13/2023
Hillside Auto Body & Service,Services,"$4,252.50 ",4/20/2023
Hillside Auto Body & Service,Services,"$1,560.00 ",4/27/2023
Hillside Auto Body & Service,Services,"$3,105.00 ",5/4/2023
Hillside Auto Body & Service,Services,$836.25 ,5/18/2023
Hillside Auto Body & Service,Services,"$3,742.50 ",5/25/2023
Hillside Auto Body & Service,Services,"$2,183.75 ",5/31/2023
Hillside Auto Body & Service,Services,$506.25 ,6/8/2023
Hillside Auto Body & Service,Services,"$5,181.25 ",6/15/2023
Hillside Auto Body & Service,Services,"$1,350.00 ",6/29/2023
Hillside Auto Body & Service,Services,"$1,271.25 ",7/6/2023
Hillside Auto Body & Service,Services,"$1,890.00 ",7/13/2023
Hillside Auto Body & Service,Services,"$3,772.50 ",7/20/2023
Hillside Auto Body & Service,Services,$506.25 ,7/27/2023
Hillside Auto Body & Service,Services,$325.00 ,8/4/2023
Hillside Auto Body & Service,Services,$236.25 ,8/10/2023
Hillside Auto Body & Service,Services,$907.50 ,8/17/2023
Hillside Auto Body & Service,Services,"$3,041.25 ",8/24/2023
Hillside Auto Body & Service,Services,"$9,435.00 ",8/31/2023
Hillside Auto Body & Service,Services,"$9,198.75 ",9/8/2023
Hillside Auto Body & Service,Services,"$2,700.00 ",9/14/2023
Hillside Auto Body & Service,Services,"$1,380.00 ",9/21/2023
Hillside Auto Body & Service,Services,"$3,926.25 ",9/28/2023
Hillside Auto Body & Service,Services,"$4,455.00 ",10/5/2023
Hillside Auto Body & Service,Services,$236.25 ,10/12/2023
Hillside Auto Body & Service,Services,"$2,193.75 ",10/31/2023
Hillside Auto Body & Service,Services,"$11,713.75 ",11/9/2023
Hillside Auto Body & Service,Services,"$1,053.75 ",11/16/2023
Hillside Auto Body & Service,Services,"$4,826.25 ",11/24/2023
Hillside Auto Body & Service,Services,$270.00 ,11/30/2023
Hillside Auto Body & Service,Services,"$5,580.00 ",12/7/2023
Hillside Auto Body & Service,Services,$675.00 ,12/14/2023
Hillside Auto Body & Service,Services,$230.00 ,12/21/2023
Hillside Auto Body & Service,Services,"$4,226.25 ",12/29/2023
Hilton Anaheim,Miscellaneous,"$3,375.66 ",8/17/2023
Humana EAP and Work Life Services,Services,"$6,279.84 ",1/26/2023
Hydraulic Electric Component Supply Inc,Fuel/Parts Inventory,$300.00 ,1/19/2023
Hydraulic Electric Component Supply Inc,Fuel/Parts Inventory,$112.00 ,2/23/2023
I/O Controls Corporation,Fuel/Parts Inventory,"$4,443.39 ",9/14/2023
I/O Controls Corporation,Fuel/Parts Inventory,"$20,668.53 ",11/9/2023
I/O Controls Corporation,Fuel/Parts Inventory,"$4,340.42 ",11/30/2023
I/O Controls Corporation,Fuel/Parts Inventory,"$4,063.56 ",12/7/2023
IBI Group Architects Engineers and Landscape Architects a New York General Partnership,Equipment,"$33,555.00 ",2/16/2023
IBI Group Architects Engineers and Landscape Architects a New York General Partnership,Equipment,"$37,451.25 ",6/1/2023
IBI Group Architects Engineers and Landscape Architects a New York General Partnership,Equipment,"$12,233.75 ",9/21/2023
Ikoko Quarters Inc,Purchased Transportation,$132.75 ,12/14/2023
Ikoko Quarters Inc,Purchased Transportation,$30.25 ,12/29/2023
Illinois Auto Central,Fuel/Parts Inventory,"$3,539.08 ",2/13/2023
Illinois Auto Central,Fuel/Parts Inventory,"$22,008.99 ",2/27/2023
Illinois Auto Central,Fuel/Parts Inventory,"$3,565.02 ",3/7/2023
Illinois Auto Central,Fuel/Parts Inventory,"$38,961.49 ",3/27/2023
Illinois Auto Central,Fuel/Parts Inventory,"$6,542.94 ",4/11/2023
Illinois Auto Central,Fuel/Parts Inventory,"$4,648.37 ",5/4/2023
Illinois Auto Central,Fuel/Parts Inventory,"$5,425.53 ",5/30/2023
Illinois Auto Central,Materials and Supplies,"$1,872.34 ",5/30/2023
Illinois Auto Central,Fuel/Parts Inventory,"$2,923.20 ",6/12/2023
Illinois Auto Central,Fuel/Parts Inventory,"$85,640.33 ",7/5/2023
Illinois Auto Central,Fuel/Parts Inventory,"$91,732.53 ",7/24/2023
Illinois Auto Central,Materials and Supplies,$371.70 ,7/24/2023
Illinois Auto Central,Fuel/Parts Inventory,"$24,053.22 ",8/1/2023
Illinois Auto Central,Fuel/Parts Inventory,"$8,932.96 ",8/28/2023
Illinois Auto Central,Fuel/Parts Inventory,$538.95 ,9/5/2023
Illinois Auto Central,Fuel/Parts Inventory,"$8,799.14 ",10/23/2023
Illinois Auto Central,Materials and Supplies,"$7,617.34 ",11/2/2023
Illinois Auto Central,Fuel/Parts Inventory,"$9,126.46 ",12/12/2023
Illinois Auto Central,Services,$813.25 ,12/12/2023
Illinois Auto Electric Co,Services,$962.26 ,3/30/2023
Illinois Auto Electric Co,Materials and Supplies,"$1,552.00 ",5/11/2023
Illinois Environmental Protection Agency,Services,$500.00 ,1/5/2023
Illinois Hispanic Chamber of Commerce,Miscellaneous,"$1,475.00 ",10/5/2023
Illinois Municipal League,Miscellaneous,$180.00 ,10/19/2023
Illinois State Bar Association,Miscellaneous,$415.00 ,5/25/2023
Illinois Tollway,Miscellaneous,"$12,274.36 ",2/9/2023
Illinois Tollway,Miscellaneous,"$11,835.34 ",2/16/2023
Illinois Tollway,Building/Bldg Improvement,"$1,211,496.29 ",3/16/2023
Illinois Tollway,Miscellaneous,$536.00 ,4/13/2023
Illinois Tollway,Miscellaneous,"$7,492.37 ",5/4/2023
Illinois Tollway,Miscellaneous,"$11,047.59 ",5/11/2023
Illinois Tollway,Miscellaneous,"$6,872.96 ",7/27/2023
Illinois Tollway,Miscellaneous,"$11,094.40 ",8/24/2023
Illinois Tollway,Miscellaneous,$240.00 ,9/7/2023
Illinois Tollway,Miscellaneous,"$6,239.32 ",11/2/2023
Illinois Tollway,Miscellaneous,"$12,133.49 ",11/22/2023
Illinois Tollway,Miscellaneous,$24.00 ,11/30/2023
Impact Networking LLC,Leases and Rentals,"$4,247.82 ",1/12/2023
Impact Networking LLC,Leases and Rentals,"$2,130.93 ",5/11/2023
Impact Networking LLC,Leases and Rentals,"$6,077.46 ",6/8/2023
Impact Networking LLC,Leases and Rentals,"$1,284.87 ",7/20/2023
Impact Networking LLC,Leases and Rentals,"$3,606.35 ",10/12/2023
Info Tech Research Group,Miscellaneous,"$18,665.00 ",3/9/2023
Insight Public Sector Inc.,Services,"$50,890.96 ",7/6/2023
Insurance Information Exchange IIX,Services,$171.20 ,1/19/2023
Insurance Information Exchange IIX,Services,$421.90 ,2/23/2023
Insurance Information Exchange IIX,Services,$414.30 ,3/16/2023
Insurance Information Exchange IIX,Services,$392.95 ,4/13/2023
Insurance Information Exchange IIX,Services,$225.10 ,5/11/2023
Insurance Information Exchange IIX,Services,$521.35 ,6/15/2023
Insurance Information Exchange IIX,Services,$416.90 ,7/13/2023
Insurance Information Exchange IIX,Services,$414.30 ,8/10/2023
Insurance Information Exchange IIX,Services,$817.50 ,9/21/2023
Insurance Information Exchange IIX,Services,$635.50 ,10/12/2023
Insurance Information Exchange IIX,Services,$494.70 ,12/7/2023
Insurance Information Exchange IIX,Services,$469.10 ,12/14/2023
Integrated Controls Technologies LLC,Services,"$3,007.35 ",3/9/2023
Integrated Controls Technologies LLC,Services,$624.00 ,3/16/2023
Integrated Controls Technologies LLC,Services,"$5,190.67 ",3/23/2023
Integrated Controls Technologies LLC,Services,"$1,502.00 ",4/20/2023
Integrated Controls Technologies LLC,Services,"$1,502.00 ",7/6/2023
Integrated Controls Technologies LLC,Services,"$13,038.00 ",7/20/2023
Integrated Controls Technologies LLC,Services,"$4,611.00 ",8/4/2023
Integrated Controls Technologies LLC,Services,"$3,634.00 ",9/21/2023
Integrated Controls Technologies LLC,Services,"$5,088.00 ",10/26/2023
Integrated Controls Technologies LLC,Services,$954.00 ,11/16/2023
Integrated Controls Technologies LLC,Services,$159.00 ,12/7/2023
Integrated Controls Technologies LLC,Services,$477.00 ,12/29/2023
Integrated Lakes Management-ILM,Services,$565.00 ,7/6/2023
Integrated Lakes Management-ILM,Services,$565.00 ,8/10/2023
Integrated Lakes Management-ILM,Services,"$1,735.36 ",9/28/2023
Integrated Lakes Management-ILM,Services,"$3,085.72 ",10/31/2023
Integrated Lakes Management-ILM,Services,"$4,985.72 ",12/7/2023
Intercity Supply Co,Materials and Supplies,$74.38 ,1/5/2023
Intercity Supply Co,Materials and Supplies,$353.84 ,1/12/2023
Intercity Supply Co,Materials and Supplies,"$1,128.64 ",2/16/2023
Intercity Supply Co,Materials and Supplies,"$1,101.86 ",5/25/2023
International Fire Equipment,Services,"$1,761.98 ",5/31/2023
International Fire Equipment Corporation,Services,$865.70 ,7/20/2023
International Fire Equipment Corporation,Services,"$1,674.35 ",11/30/2023
Interstate Power Systems,Fuel/Parts Inventory,$27.78 ,1/26/2023
Interstate Power Systems,Fuel/Parts Inventory,($20.26),2/28/2023
Interstate Power Systems,Services,"$21,665.57 ",2/28/2023
Interstate Power Systems,Services,"$55,794.67 ",4/20/2023
Interstate Power Systems,Services,"$47,197.01 ",5/31/2023
Interstate Power Systems,Services,"$11,085.32 ",6/8/2023
Interstate Power Systems,Fuel/Parts Inventory,$33.90 ,8/10/2023
Interstate Power Systems,Services,"$23,947.53 ",8/10/2023
Interstate Power Systems,Services,"$24,181.32 ",9/28/2023
Interstate Power Systems,Services,"$44,991.02 ",11/9/2023
J & R Hydraulic Service,Services,"$1,825.00 ",11/16/2023
JAR Consulting Inc,Services,"$3,000.00 ",10/31/2023
JAR Consulting Inc,Services,"$3,000.00 ",11/16/2023
JAR Consulting Inc,Services,"$3,000.00 ",12/14/2023
JP Morgan Chase,Health Insurance,"$217,674.19 ",1/17/2023
JP Morgan Chase,Health Insurance,"$105,707.90 ",1/30/2023
JP Morgan Chase,Health Insurance,"$104,960.05 ",3/1/2023
JP Morgan Chase,Health Insurance,"$105,078.39 ",3/27/2023
JP Morgan Chase,Health Insurance,"$1,633.50 ",4/17/2023
JP Morgan Chase,Health Insurance,"$105,966.13 ",4/25/2023
JP Morgan Chase,Health Insurance,"$104,188.99 ",5/22/2023
JP Morgan Chase,Health Insurance,"$104,489.61 ",6/26/2023
JP Morgan Chase,Health Insurance,"$104,582.80 ",7/24/2023
JP Morgan Chase,Health Insurance,"$105,212.39 ",8/17/2023
JP Morgan Chase,Health Insurance,"$104,829.88 ",9/27/2023
JP Morgan Chase,Health Insurance,"$104,482.71 ",10/27/2023
JP Morgan Chase,Health Insurance,"$104,088.32 ",11/30/2023
JP Morgan Chase,Health Insurance,"$104,839.70 ",12/26/2023
Jacobs Engineering Group Inc,Equipment,"$23,119.95 ",2/9/2023
Jacobs Engineering Group Inc,Equipment,"$13,891.54 ",2/23/2023
Jacobs Engineering Group Inc,Equipment,"$25,954.95 ",5/31/2023
Jacobs Engineering Group Inc,Equipment,"$32,838.02 ",8/31/2023
Jacobs Engineering Group Inc,Equipment,"$8,469.30 ",10/12/2023
Jacobs Engineering Group Inc,Equipment,"$40,824.82 ",10/19/2023
Jacobs Engineering Group Inc,Equipment,"$7,394.61 ",11/30/2023
Jacobs Engineering Group Inc,Equipment,"$19,774.89 ",12/7/2023
Jacobs Engineering Group Inc,Equipment,"$1,506.63 ",12/21/2023
Jake Boxrud,Miscellaneous,$22.00 ,9/8/2023
Jam Trans Inc,Purchased Transportation,"$4,692.75 ",8/31/2023
James Drive Safety Lane LLC,Services,$630.00 ,2/23/2023
James Drive Safety Lane LLC,Services,$674.50 ,3/23/2023
James Drive Safety Lane LLC,Services,$510.00 ,5/25/2023
James Drive Safety Lane LLC,Services,$210.00 ,7/6/2023
James Drive Safety Lane LLC,Services,"$1,763.00 ",8/3/2023
James Drive Safety Lane LLC,Services,"$1,476.00 ",10/12/2023
James Drive Safety Lane LLC,Services,$758.00 ,12/7/2023
Jeffry Krasner,Purchased Transportation,$28.99 ,3/30/2023
Jesus Is Lord Corp,Purchased Transportation,$809.15 ,5/25/2023
Jesus Is Lord Corp,Purchased Transportation,$74.50 ,7/20/2023
Jesus Is Lord Corp,Purchased Transportation,$9.25 ,7/27/2023
Jesus Is Lord Corp,Purchased Transportation,$9.25 ,8/24/2023
Jesus Is Lord Corp,Purchased Transportation,$102.00 ,11/30/2023
Jewell Electric Inc,Services,$748.00 ,1/26/2023
Jewell Electric Inc,Services,$285.00 ,7/6/2023
Jim Egeberg,Health Insurance,$468.00 ,3/16/2023
Jim Egeberg,Health Insurance,$468.00 ,7/27/2023
Jims Truck Inspection LLC,Services,$518.70 ,9/28/2023
Jims Truck Inspection LLC,Services,$639.45 ,10/5/2023
Jo Ann Vanthournout,Purchased Transportation,$9.99 ,3/30/2023
John A Dash & Associates,Miscellaneous,$325.00 ,5/18/2023
John Burns Construction Co,Building/Bldg Improvement,"$48,224.88 ",5/18/2023
John Burns Construction Co,Equipment,"$12,638.58 ",5/25/2023
John Burns Construction Co,Equipment,"$43,830.77 ",6/15/2023
John Burns Construction Co,Building/Bldg Improvement,"$9,951.64 ",7/13/2023
John Burns Construction Co,Building/Bldg Improvement,"$1,690.07 ",8/10/2023
John Burns Construction Co,Building/Bldg Improvement,"$69,265.72 ",9/21/2023
John Burns Construction Co,Building/Bldg Improvement,"$49,197.24 ",11/24/2023
Johnnie Jimersom,Purchased Transportation,$60.00 ,10/19/2023
Johnson Locksmith Inc,Services,$970.00 ,9/14/2023
Joliet Junior College,Services,"$1,750.00 ",3/9/2023
Joliet Junior College,Miscellaneous,$50.00 ,4/6/2023
Joliet Junior College,Services,"$3,092.00 ",6/29/2023
Joliet Junior College,Services,"$1,546.00 ",9/21/2023
Jordan Strong,Purchased Transportation,$25.91 ,2/2/2023
Judy Ruffatti,Purchased Transportation,$37.12 ,7/13/2023
Kaltsouni Mehdi Inc KMI,Building/Bldg Improvement,"$7,939.97 ",1/5/2023
Kammes Auto & Truck Repair Inc,Services,$525.00 ,2/9/2023
Kammes Auto & Truck Repair Inc,Services,$805.00 ,2/16/2023
Kammes Auto & Truck Repair Inc,Services,$805.00 ,3/30/2023
Kammes Auto & Truck Repair Inc,Services,$735.00 ,4/20/2023
Kammes Auto & Truck Repair Inc,Services,$490.00 ,5/31/2023
Kammes Auto & Truck Repair Inc,Services,$210.00 ,6/15/2023
Kammes Auto & Truck Repair Inc,Services,$760.00 ,7/20/2023
Kammes Auto & Truck Repair Inc,Services,"$1,795.00 ",9/14/2023
Kammes Auto & Truck Repair Inc,Services,$810.00 ,10/12/2023
Kaplan Paving LLC,Services,"$16,140.00 ",1/19/2023
Kaplan Paving LLC,Services,"$1,365.00 ",1/26/2023
Kaplan Paving LLC,Services,"$9,600.00 ",2/16/2023
Kaplan Paving LLC,Services,"$1,605.00 ",3/2/2023
Kaplan Paving LLC,Services,"$3,545.00 ",3/9/2023
Kaplan Paving LLC,Services,"$8,225.00 ",3/16/2023
Kaplan Paving LLC,Services,"$31,765.00 ",3/30/2023
Kaplan Paving LLC,Services,"$29,290.00 ",4/20/2023
Kaplan Paving LLC,Services,"$3,540.00 ",4/27/2023
Kaplan Paving LLC,Services,"$7,680.00 ",5/11/2023
Kaplan Paving LLC,Services,"$14,830.00 ",5/25/2023
Kaplan Paving LLC,Services,"$1,800.00 ",6/8/2023
Kaplan Paving LLC,Services,$615.00 ,6/15/2023
Kaplan Paving LLC,Services,$455.00 ,12/21/2023
Karoon Bannapradist Cab,Purchased Transportation,$58.75 ,1/12/2023
Karoon Bannapradist Cab,Purchased Transportation,$29.75 ,2/23/2023
Karoon Bannapradist Cab,Purchased Transportation,$73.25 ,4/6/2023
Karoon Bannapradist Cab,Purchased Transportation,$18.25 ,5/25/2023
Karoon Bannapradist Cab,Purchased Transportation,$117.75 ,7/27/2023
Karoon Bannapradist Cab,Purchased Transportation,$160.75 ,10/19/2023
Karoon Bannapradist Cab,Purchased Transportation,$50.00 ,11/24/2023
Katco Development Inc,Services,"$2,880.00 ",7/20/2023
Katco Development Inc,Services,"$52,073.75 ",12/21/2023
